Workbook

Sheet Auswertung
AK1: Platz 1 | AL1: =VERKETTEN_P1(Z5:Z70,CHAR(10)) -> Puck, die Fliege.JPG von Susanne Deinhardt | AN1: Platz 2 | AO1: =VERKETTEN_P1(AA5:AA70,CHAR(10)) -> Pinseltanz.jpg von Gerhard Rieß Tautropfen.JPG von Susanne Deinhardt | AQ1: Platz 3 | AR1: =VERKETTEN_P1(AB5:AB70,CHAR(10)) -> 
AK2: Bestes Bild | AN2: Bestes Bild | AQ2: Bestes Bild
AK3: Platz 1 | AL3: =VERKETTEN_P1('Statistik nach Autor(in)'!E6:'Statistik nach Autor(in)'!E35,CHAR(10)) -> Susanne Deinhardt | AN3: Platz 2 | AO3: =VERKETTEN_P1('Statistik nach Autor(in)'!F6:'Statistik nach Autor(in)'!F35,CHAR(10)) -> Gerhard Rieß | AQ3: Platz 3 | AR3: =VERKETTEN_P1('Statistik nach Autor(in)'!G6:'Statistik nach Autor(in)'!G35,CHAR(10)) -> Andreas Toltz
A4: Bildname | B4: Juror 1 | C4: Juror 2 | D4: Juror 3 | E4: Juror 4 | F4: Juror 5 | G4: Juror 6 | H4: Juror 7 | I4: Juror 8 | J4: Juror 9 | K4: Juror 10 | L4: Juror 11 | M4: Juror 12 | N4: Juror 13 | O4: Juror 14 | P4: Juror 15 | Q4: Juror 16 | R4: Juror 17 | S4: Juror 18 | T4: Juror 19 | U4: Juror 20 | V4: Punkte | W4: Schnitt | X4: Platz | Y4: Autor(in) | Z4: Platz 1 | AA4: Platz 2 | AB4: Platz 3 | AC4: Platz 4 | AD4: Platz 5 | AE4: Platz 6 | AF4: Platz 7 | AG4: Platz 8 | AH4: Platz 9 | AI4: Platz 10 | AK4: Bester Fotograf | AN4: Bester Fotograf | AQ4: Bester Fotograf
A5: Puck, die Fliege.JPG | B5: 10 | C5: 9 | D5: 9 | V5: =IF(Tabelle_Auswertung[[#This Row],[Bildname]]<>"",SUM(Tabelle_Auswertung[[#This Row],[Juror 1]:[Juror 20]])," - ") -> 28 | W5: =IF(Tabelle_Auswertung[[#This Row],[Bildname]]<>"",IF(Tabelle_Auswertung[[#This Row],[Punkte]]>0,AVERAGE(Tabelle_Auswertung[[#This Row],[Juror 1]:[Juror 20]])," - ")," - ") -> 9.33 | X5: =IF(Tabelle_Auswertung[[#This Row],[Bildname]]<>"",IF(Tabelle_Auswertung[[#This Row],[Punkte]]>0,RANK(Tabelle_Auswertung[[#This Row],[Punkte]],[Punkte],0)," - ")," - ") -> 1 | Y5: Susanne Deinhardt | Z5: =IF(Tabelle_Auswertung[[#This Row],[Platz]]=1,CONCATENATE(Tabelle_Auswertung[[#This Row],[Bildname]]," von ",Tabelle_Auswertung[[#This Row],[Autor(in)]]),"") -> Puck, die Fliege.JPG von Susanne Deinhardt | AA5: =IF(Tabelle_Auswertung[[#This Row],[Platz]]=2,CONCATENATE(Tabelle_Auswertung[[#This Row],[Bildname]]," von ",Tabelle_Auswertung[[#This Row],[Autor(in)]]),"") ->  | AB5: =IF(Tabelle_Auswertung[[#This Row],[Platz]]=3,CONCATENATE(Tabelle_Auswertung[[#This Row],[Bildname]]," von ",Tabelle_Auswertung[[#This Row],[Autor(in)]]),"") ->  | AC5: =IF(Tabelle_Auswertung[[#This Row],[Platz]]=4,CONCATENATE(Tabelle_Auswertung[[#This Row],[Bildname]]," von ",Tabelle_Auswertung[[#This Row],[Autor(in)]]),"") ->  | AD5: =IF(Tabelle_Auswertung[[#This Row],[Platz]]=5,CONCATENATE(Tabelle_Auswertung[[#This Row],[Bildname]]," von ",Tabelle_Auswertung[[#This Row],[Autor(in)]]),"") ->  | AE5: =IF(Tabelle_Auswertung[[#This Row],[Platz]]=6,CONCATENATE(Tabelle_Auswertung[[#This Row],[Bildname]]," von ",Tabelle_Auswertung[[#This Row],[Autor(in)]]),"") ->  | AF5: =IF(Tabelle_Auswertung[[#This Row],[Platz]]=7,CONCATENATE(Tabelle_Auswertung[[#This Row],[Bildname]]," von ",Tabelle_Auswertung[[#This Row],[Autor(in)]]),"") ->  | AG5: =IF(Tabelle_Auswertung[[#This Row],[Platz]]=8,CONCATENATE(Tabelle_Auswertung[[#This Row],[Bildname]]," von ",Tabelle_Auswertung[[#This Row],[Autor(in)]]),"") ->  | AH5: =IF(Tabelle_Auswertung[[#This Row],[Platz]]=9,CONCATENATE(Tabelle_Auswertung[[#This Row],[Bildname]]," von ",Tabelle_Auswertung[[#This Row],[Autor(in)]]),"") ->  | AI5: =IF(Tabelle_Auswertung[[#This Row],[Platz]]=10,CONCATENATE(Tabelle_Auswertung[[#This Row],[Bildname]]," von ",Tabelle_Auswertung[[#This Row],[Autor(in)]]),"") -> 
A6: Pinseltanz.jpg | B6: 9 | C6: 7 | D6: 7 | V6: =IF(Tabelle_Auswertung[[#This Row],[Bildname]]<>"",SUM(Tabelle_Auswertung[[#This Row],[Juror 1]:[Juror 20]])," - ") -> 23 | W6: =IF(Tabelle_Auswertung[[#This Row],[Bildname]]<>"",IF(Tabelle_Auswertung[[#This Row],[Punkte]]>0,AVERAGE(Tabelle_Auswertung[[#This Row],[Juror 1]:[Juror 20]])," - ")," - ") -> 7.67 | X6: =IF(Tabelle_Auswertung[[#This Row],[Bildname]]<>"",IF(Tabelle_Auswertung[[#This Row],[Punkte]]>0,RANK(Tabelle_Auswertung[[#This Row],[Punkte]],[Punkte],0)," - ")," - ") -> 2 | Y6: Gerhard Rieß | Z6: =IF(Tabelle_Auswertung[[#This Row],[Platz]]=1,CONCATENATE(Tabelle_Auswertung[[#This Row],[Bildname]]," von ",Tabelle_Auswertung[[#This Row],[Autor(in)]]),"") ->  | AA6: =IF(Tabelle_Auswertung[[#This Row],[Platz]]=2,CONCATENATE(Tabelle_Auswertung[[#This Row],[Bildname]]," von ",Tabelle_Auswertung[[#This Row],[Autor(in)]]),"") -> Pinseltanz.jpg von Gerhard Rieß | AB6: =IF(Tabelle_Auswertung[[#This Row],[Platz]]=3,CONCATENATE(Tabelle_Auswertung[[#This Row],[Bildname]]," von ",Tabelle_Auswertung[[#This Row],[Autor(in)]]),"") ->  | AC6: =IF(Tabelle_Auswertung[[#This Row],[Platz]]=4,CONCATENATE(Tabelle_Auswertung[[#This Row],[Bildname]]," von ",Tabelle_Auswertung[[#This Row],[Autor(in)]]),"") ->  | AD6: =IF(Tabelle_Auswertung[[#This Row],[Platz]]=5,CONCATENATE(Tabelle_Auswertung[[#This Row],[Bildname]]," von ",Tabelle_Auswertung[[#This Row],[Autor(in)]]),"") ->  | AE6: =IF(Tabelle_Auswertung[[#This Row],[Platz]]=6,CONCATENATE(Tabelle_Auswertung[[#This Row],[Bildname]]," von ",Tabelle_Auswertung[[#This Row],[Autor(in)]]),"") ->  | AF6: =IF(Tabelle_Auswertung[[#This Row],[Platz]]=7,CONCATENATE(Tabelle_Auswertung[[#This Row],[Bildname]]," von ",Tabelle_Auswertung[[#This Row],[Autor(in)]]),"") ->  | AG6: =IF(Tabelle_Auswertung[[#This Row],[Platz]]=8,CONCATENATE(Tabelle_Auswertung[[#This Row],[Bildname]]," von ",Tabelle_Auswertung[[#This Row],[Autor(in)]]),"") ->  | AH6: =IF(Tabelle_Auswertung[[#This Row],[Platz]]=9,CONCATENATE(Tabelle_Auswertung[[#This Row],[Bildname]]," von ",Tabelle_Auswertung[[#This Row],[Autor(in)]]),"") ->  | AI6: =IF(Tabelle_Auswertung[[#This Row],[Platz]]=10,CONCATENATE(Tabelle_Auswertung[[#This Row],[Bildname]]," von ",Tabelle_Auswertung[[#This Row],[Autor(in)]]),"") ->  | AK6: Fotoclub Ansbach
A7: Tautropfen.JPG | B7: 9 | C7: 8 | D7: 6 | V7: =IF(Tabelle_Auswertung[[#This Row],[Bildname]]<>"",SUM(Tabelle_Auswertung[[#This Row],[Juror 1]:[Juror 20]])," - ") -> 23 | W7: =IF(Tabelle_Auswertung[[#This Row],[Bildname]]<>"",IF(Tabelle_Auswertung[[#This Row],[Punkte]]>0,AVERAGE(Tabelle_Auswertung[[#This Row],[Juror 1]:[Juror 20]])," - ")," - ") -> 7.67 | X7: =IF(Tabelle_Auswertung[[#This Row],[Bildname]]<>"",IF(Tabelle_Auswertung[[#This Row],[Punkte]]>0,RANK(Tabelle_Auswertung[[#This Row],[Punkte]],[Punkte],0)," - ")," - ") -> 2 | Y7: Susanne Deinhardt | Z7: =IF(Tabelle_Auswertung[[#This Row],[Platz]]=1,CONCATENATE(Tabelle_Auswertung[[#This Row],[Bildname]]," von ",Tabelle_Auswertung[[#This Row],[Autor(in)]]),"") ->  | AA7: =IF(Tabelle_Auswertung[[#This Row],[Platz]]=2,CONCATENATE(Tabelle_Auswertung[[#This Row],[Bildname]]," von ",Tabelle_Auswertung[[#This Row],[Autor(in)]]),"") -> Tautropfen.JPG von Susanne Deinhardt | AB7: =IF(Tabelle_Auswertung[[#This Row],[Platz]]=3,CONCATENATE(Tabelle_Auswertung[[#This Row],[Bildname]]," von ",Tabelle_Auswertung[[#This Row],[Autor(in)]]),"") ->  | AC7: =IF(Tabelle_Auswertung[[#This Row],[Platz]]=4,CONCATENATE(Tabelle_Auswertung[[#This Row],[Bildname]]," von ",Tabelle_Auswertung[[#This Row],[Autor(in)]]),"") ->  | AD7: =IF(Tabelle_Auswertung[[#This Row],[Platz]]=5,CONCATENATE(Tabelle_Auswertung[[#This Row],[Bildname]]," von ",Tabelle_Auswertung[[#This Row],[Autor(in)]]),"") ->  | AE7: =IF(Tabelle_Auswertung[[#This Row],[Platz]]=6,CONCATENATE(Tabelle_Auswertung[[#This Row],[Bildname]]," von ",Tabelle_Auswertung[[#This Row],[Autor(in)]]),"") ->  | AF7: =IF(Tabelle_Auswertung[[#This Row],[Platz]]=7,CONCATENATE(Tabelle_Auswertung[[#This Row],[Bildname]]," von ",Tabelle_Auswertung[[#This Row],[Autor(in)]]),"") ->  | AG7: =IF(Tabelle_Auswertung[[#This Row],[Platz]]=8,CONCATENATE(Tabelle_Auswertung[[#This Row],[Bildname]]," von ",Tabelle_Auswertung[[#This Row],[Autor(in)]]),"") ->  | AH7: =IF(Tabelle_Auswertung[[#This Row],[Platz]]=9,CONCATENATE(Tabelle_Auswertung[[#This Row],[Bildname]]," von ",Tabelle_Auswertung[[#This Row],[Autor(in)]]),"") ->  | AI7: =IF(Tabelle_Auswertung[[#This Row],[Platz]]=10,CONCATENATE(Tabelle_Auswertung[[#This Row],[Bildname]]," von ",Tabelle_Auswertung[[#This Row],[Autor(in)]]),"") -> 
A8: Ready to take off.jpg | B8: 9 | C8: 6 | D8: 7 | V8: =IF(Tabelle_Auswertung[[#This Row],[Bildname]]<>"",SUM(Tabelle_Auswertung[[#This Row],[Juror 1]:[Juror 20]])," - ") -> 22 | W8: =IF(Tabelle_Auswertung[[#This Row],[Bildname]]<>"",IF(Tabelle_Auswertung[[#This Row],[Punkte]]>0,AVERAGE(Tabelle_Auswertung[[#This Row],[Juror 1]:[Juror 20]])," - ")," - ") -> 7.333333333 | X8: =IF(Tabelle_Auswertung[[#This Row],[Bildname]]<>"",IF(Tabelle_Auswertung[[#This Row],[Punkte]]>0,RANK(Tabelle_Auswertung[[#This Row],[Punkte]],[Punkte],0)," - ")," - ") -> 4 | Y8: Jan Grünler | Z8: =IF(Tabelle_Auswertung[[#This Row],[Platz]]=1,CONCATENATE(Tabelle_Auswertung[[#This Row],[Bildname]]," von ",Tabelle_Auswertung[[#This Row],[Autor(in)]]),"") ->  | AA8: =IF(Tabelle_Auswertung[[#This Row],[Platz]]=2,CONCATENATE(Tabelle_Auswertung[[#This Row],[Bildname]]," von ",Tabelle_Auswertung[[#This Row],[Autor(in)]]),"") ->  | AB8: =IF(Tabelle_Auswertung[[#This Row],[Platz]]=3,CONCATENATE(Tabelle_Auswertung[[#This Row],[Bildname]]," von ",Tabelle_Auswertung[[#This Row],[Autor(in)]]),"") ->  | AC8: =IF(Tabelle_Auswertung[[#This Row],[Platz]]=4,CONCATENATE(Tabelle_Auswertung[[#This Row],[Bildname]]," von ",Tabelle_Auswertung[[#This Row],[Autor(in)]]),"") -> Ready to take off.jpg von Jan Grünler | AD8: =IF(Tabelle_Auswertung[[#This Row],[Platz]]=5,CONCATENATE(Tabelle_Auswertung[[#This Row],[Bildname]]," von ",Tabelle_Auswertung[[#This Row],[Autor(in)]]),"") ->  | AE8: =IF(Tabelle_Auswertung[[#This Row],[Platz]]=6,CONCATENATE(Tabelle_Auswertung[[#This Row],[Bildname]]," von ",Tabelle_Auswertung[[#This Row],[Autor(in)]]),"") ->  | AF8: =IF(Tabelle_Auswertung[[#This Row],[Platz]]=7,CONCATENATE(Tabelle_Auswertung[[#This Row],[Bildname]]," von ",Tabelle_Auswertung[[#This Row],[Autor(in)]]),"") ->  | AG8: =IF(Tabelle_Auswertung[[#This Row],[Platz]]=8,CONCATENATE(Tabelle_Auswertung[[#This Row],[Bildname]]," von ",Tabelle_Auswertung[[#This Row],[Autor(in)]]),"") ->  | AH8: =IF(Tabelle_Auswertung[[#This Row],[Platz]]=9,CONCATENATE(Tabelle_Auswertung[[#This Row],[Bildname]]," von ",Tabelle_Auswertung[[#This Row],[Autor(in)]]),"") ->  | AI8: =IF(Tabelle_Auswertung[[#This Row],[Platz]]=10,CONCATENATE(Tabelle_Auswertung[[#This Row],[Bildname]]," von ",Tabelle_Auswertung[[#This Row],[Autor(in)]]),"") -> 
A9: Stairs.jpg | B9: 8 | C9: 8 | D9: 6 | V9: =IF(Tabelle_Auswertung[[#This Row],[Bildname]]<>"",SUM(Tabelle_Auswertung[[#This Row],[Juror 1]:[Juror 20]])," - ") -> 22 | W9: =IF(Tabelle_Auswertung[[#This Row],[Bildname]]<>"",IF(Tabelle_Auswertung[[#This Row],[Punkte]]>0,AVERAGE(Tabelle_Auswertung[[#This Row],[Juror 1]:[Juror 20]])," - ")," - ") -> 7.33 | X9: =IF(Tabelle_Auswertung[[#This Row],[Bildname]]<>"",IF(Tabelle_Auswertung[[#This Row],[Punkte]]>0,RANK(Tabelle_Auswertung[[#This Row],[Punkte]],[Punkte],0)," - ")," - ") -> 4 | Y9: Andreas Toltz | Z9: =IF(Tabelle_Auswertung[[#This Row],[Platz]]=1,CONCATENATE(Tabelle_Auswertung[[#This Row],[Bildname]]," von ",Tabelle_Auswertung[[#This Row],[Autor(in)]]),"") ->  | AA9: =IF(Tabelle_Auswertung[[#This Row],[Platz]]=2,CONCATENATE(Tabelle_Auswertung[[#This Row],[Bildname]]," von ",Tabelle_Auswertung[[#This Row],[Autor(in)]]),"") ->  | AB9: =IF(Tabelle_Auswertung[[#This Row],[Platz]]=3,CONCATENATE(Tabelle_Auswertung[[#This Row],[Bildname]]," von ",Tabelle_Auswertung[[#This Row],[Autor(in)]]),"") ->  | AC9: =IF(Tabelle_Auswertung[[#This Row],[Platz]]=4,CONCATENATE(Tabelle_Auswertung[[#This Row],[Bildname]]," von ",Tabelle_Auswertung[[#This Row],[Autor(in)]]),"") -> Stairs.jpg von Andreas Toltz | AD9: =IF(Tabelle_Auswertung[[#This Row],[Platz]]=5,CONCATENATE(Tabelle_Auswertung[[#This Row],[Bildname]]," von ",Tabelle_Auswertung[[#This Row],[Autor(in)]]),"") ->  | AE9: =IF(Tabelle_Auswertung[[#This Row],[Platz]]=6,CONCATENATE(Tabelle_Auswertung[[#This Row],[Bildname]]," von ",Tabelle_Auswertung[[#This Row],[Autor(in)]]),"") ->  | AF9: =IF(Tabelle_Auswertung[[#This Row],[Platz]]=7,CONCATENATE(Tabelle_Auswertung[[#This Row],[Bildname]]," von ",Tabelle_Auswertung[[#This Row],[Autor(in)]]),"") ->  | AG9: =IF(Tabelle_Auswertung[[#This Row],[Platz]]=8,CONCATENATE(Tabelle_Auswertung[[#This Row],[Bildname]]," von ",Tabelle_Auswertung[[#This Row],[Autor(in)]]),"") ->  | AH9: =IF(Tabelle_Auswertung[[#This Row],[Platz]]=9,CONCATENATE(Tabelle_Auswertung[[#This Row],[Bildname]]," von ",Tabelle_Auswertung[[#This Row],[Autor(in)]]),"") ->  | AI9: =IF(Tabelle_Auswertung[[#This Row],[Platz]]=10,CONCATENATE(Tabelle_Auswertung[[#This Row],[Bildname]]," von ",Tabelle_Auswertung[[#This Row],[Autor(in)]]),"") -> 
A10: Maja.jpg | B10: 8 | C10: 7 | D10: 6 | V10: =IF(Tabelle_Auswertung[[#This Row],[Bildname]]<>"",SUM(Tabelle_Auswertung[[#This Row],[Juror 1]:[Juror 20]])," - ") -> 21 | W10: =IF(Tabelle_Auswertung[[#This Row],[Bildname]]<>"",IF(Tabelle_Auswertung[[#This Row],[Punkte]]>0,AVERAGE(Tabelle_Auswertung[[#This Row],[Juror 1]:[Juror 20]])," - ")," - ") -> 7.00 | X10: =IF(Tabelle_Auswertung[[#This Row],[Bildname]]<>"",IF(Tabelle_Auswertung[[#This Row],[Punkte]]>0,RANK(Tabelle_Auswertung[[#This Row],[Punkte]],[Punkte],0)," - ")," - ") -> 6 | Y10: Gerhard Rieß | Z10: =IF(Tabelle_Auswertung[[#This Row],[Platz]]=1,CONCATENATE(Tabelle_Auswertung[[#This Row],[Bildname]]," von ",Tabelle_Auswertung[[#This Row],[Autor(in)]]),"") ->  | AA10: =IF(Tabelle_Auswertung[[#This Row],[Platz]]=2,CONCATENATE(Tabelle_Auswertung[[#This Row],[Bildname]]," von ",Tabelle_Auswertung[[#This Row],[Autor(in)]]),"") ->  | AB10: =IF(Tabelle_Auswertung[[#This Row],[Platz]]=3,CONCATENATE(Tabelle_Auswertung[[#This Row],[Bildname]]," von ",Tabelle_Auswertung[[#This Row],[Autor(in)]]),"") ->  | AC10: =IF(Tabelle_Auswertung[[#This Row],[Platz]]=4,CONCATENATE(Tabelle_Auswertung[[#This Row],[Bildname]]," von ",Tabelle_Auswertung[[#This Row],[Autor(in)]]),"") ->  | AD10: =IF(Tabelle_Auswertung[[#This Row],[Platz]]=5,CONCATENATE(Tabelle_Auswertung[[#This Row],[Bildname]]," von ",Tabelle_Auswertung[[#This Row],[Autor(in)]]),"") ->  | AE10: =IF(Tabelle_Auswertung[[#This Row],[Platz]]=6,CONCATENATE(Tabelle_Auswertung[[#This Row],[Bildname]]," von ",Tabelle_Auswertung[[#This Row],[Autor(in)]]),"") -> Maja.jpg von Gerhard Rieß | AF10: =IF(Tabelle_Auswertung[[#This Row],[Platz]]=7,CONCATENATE(Tabelle_Auswertung[[#This Row],[Bildname]]," von ",Tabelle_Auswertung[[#This Row],[Autor(in)]]),"") ->  | AG10: =IF(Tabelle_Auswertung[[#This Row],[Platz]]=8,CONCATENATE(Tabelle_Auswertung[[#This Row],[Bildname]]," von ",Tabelle_Auswertung[[#This Row],[Autor(in)]]),"") ->  | AH10: =IF(Tabelle_Auswertung[[#This Row],[Platz]]=9,CONCATENATE(Tabelle_Auswertung[[#This Row],[Bildname]]," von ",Tabelle_Auswertung[[#This Row],[Autor(in)]]),"") ->  | AI10: =IF(Tabelle_Auswertung[[#This Row],[Platz]]=10,CONCATENATE(Tabelle_Auswertung[[#This Row],[Bildname]]," von ",Tabelle_Auswertung[[#This Row],[Autor(in)]]),"") -> 
A11: Moos.jpg | B11: 8 | C11: 8 | D11: 5 | V11: =IF(Tabelle_Auswertung[[#This Row],[Bildname]]<>"",SUM(Tabelle_Auswertung[[#This Row],[Juror 1]:[Juror 20]])," - ") -> 21 | W11: =IF(Tabelle_Auswertung[[#This Row],[Bildname]]<>"",IF(Tabelle_Auswertung[[#This Row],[Punkte]]>0,AVERAGE(Tabelle_Auswertung[[#This Row],[Juror 1]:[Juror 20]])," - ")," - ") -> 7.00 | X11: =IF(Tabelle_Auswertung[[#This Row],[Bildname]]<>"",IF(Tabelle_Auswertung[[#This Row],[Punkte]]>0,RANK(Tabelle_Auswertung[[#This Row],[Punkte]],[Punkte],0)," - ")," - ") -> 6 | Y11: Chris Finsterer | Z11: =IF(Tabelle_Auswertung[[#This Row],[Platz]]=1,CONCATENATE(Tabelle_Auswertung[[#This Row],[Bildname]]," von ",Tabelle_Auswertung[[#This Row],[Autor(in)]]),"") ->  | AA11: =IF(Tabelle_Auswertung[[#This Row],[Platz]]=2,CONCATENATE(Tabelle_Auswertung[[#This Row],[Bildname]]," von ",Tabelle_Auswertung[[#This Row],[Autor(in)]]),"") ->  | AB11: =IF(Tabelle_Auswertung[[#This Row],[Platz]]=3,CONCATENATE(Tabelle_Auswertung[[#This Row],[Bildname]]," von ",Tabelle_Auswertung[[#This Row],[Autor(in)]]),"") ->  | AC11: =IF(Tabelle_Auswertung[[#This Row],[Platz]]=4,CONCATENATE(Tabelle_Auswertung[[#This Row],[Bildname]]," von ",Tabelle_Auswertung[[#This Row],[Autor(in)]]),"") ->  | AD11: =IF(Tabelle_Auswertung[[#This Row],[Platz]]=5,CONCATENATE(Tabelle_Auswertung[[#This Row],[Bildname]]," von ",Tabelle_Auswertung[[#This Row],[Autor(in)]]),"") ->  | AE11: =IF(Tabelle_Auswertung[[#This Row],[Platz]]=6,CONCATENATE(Tabelle_Auswertung[[#This Row],[Bildname]]," von ",Tabelle_Auswertung[[#This Row],[Autor(in)]]),"") -> Moos.jpg von Chris Finsterer | AF11: =IF(Tabelle_Auswertung[[#This Row],[Platz]]=7,CONCATENATE(Tabelle_Auswertung[[#This Row],[Bildname]]," von ",Tabelle_Auswertung[[#This Row],[Autor(in)]]),"") ->  | AG11: =IF(Tabelle_Auswertung[[#This Row],[Platz]]=8,CONCATENATE(Tabelle_Auswertung[[#This Row],[Bildname]]," von ",Tabelle_Auswertung[[#This Row],[Autor(in)]]),"") ->  | AH11: =IF(Tabelle_Auswertung[[#This Row],[Platz]]=9,CONCATENATE(Tabelle_Auswertung[[#This Row],[Bildname]]," von ",Tabelle_Auswertung[[#This Row],[Autor(in)]]),"") ->  | AI11: =IF(Tabelle_Auswertung[[#This Row],[Platz]]=10,CONCATENATE(Tabelle_Auswertung[[#This Row],[Bildname]]," von ",Tabelle_Auswertung[[#This Row],[Autor(in)]]),"") -> 
A12: cedok.jpg | B12: 8 | C12: 6 | D12: 6 | V12: =IF(Tabelle_Auswertung[[#This Row],[Bildname]]<>"",SUM(Tabelle_Auswertung[[#This Row],[Juror 1]:[Juror 20]])," - ") -> 20 | W12: =IF(Tabelle_Auswertung[[#This Row],[Bildname]]<>"",IF(Tabelle_Auswertung[[#This Row],[Punkte]]>0,AVERAGE(Tabelle_Auswertung[[#This Row],[Juror 1]:[Juror 20]])," - ")," - ") -> 6.67 | X12: =IF(Tabelle_Auswertung[[#This Row],[Bildname]]<>"",IF(Tabelle_Auswertung[[#This Row],[Punkte]]>0,RANK(Tabelle_Auswertung[[#This Row],[Punkte]],[Punkte],0)," - ")," - ") -> 8 | Y12: Chris Finsterer | Z12: =IF(Tabelle_Auswertung[[#This Row],[Platz]]=1,CONCATENATE(Tabelle_Auswertung[[#This Row],[Bildname]]," von ",Tabelle_Auswertung[[#This Row],[Autor(in)]]),"") ->  | AA12: =IF(Tabelle_Auswertung[[#This Row],[Platz]]=2,CONCATENATE(Tabelle_Auswertung[[#This Row],[Bildname]]," von ",Tabelle_Auswertung[[#This Row],[Autor(in)]]),"") ->  | AB12: =IF(Tabelle_Auswertung[[#This Row],[Platz]]=3,CONCATENATE(Tabelle_Auswertung[[#This Row],[Bildname]]," von ",Tabelle_Auswertung[[#This Row],[Autor(in)]]),"") ->  | AC12: =IF(Tabelle_Auswertung[[#This Row],[Platz]]=4,CONCATENATE(Tabelle_Auswertung[[#This Row],[Bildname]]," von ",Tabelle_Auswertung[[#This Row],[Autor(in)]]),"") ->  | AD12: =IF(Tabelle_Auswertung[[#This Row],[Platz]]=5,CONCATENATE(Tabelle_Auswertung[[#This Row],[Bildname]]," von ",Tabelle_Auswertung[[#This Row],[Autor(in)]]),"") ->  | AE12: =IF(Tabelle_Auswertung[[#This Row],[Platz]]=6,CONCATENATE(Tabelle_Auswertung[[#This Row],[Bildname]]," von ",Tabelle_Auswertung[[#This Row],[Autor(in)]]),"") ->  | AF12: =IF(Tabelle_Auswertung[[#This Row],[Platz]]=7,CONCATENATE(Tabelle_Auswertung[[#This Row],[Bildname]]," von ",Tabelle_Auswertung[[#This Row],[Autor(in)]]),"") ->  | AG12: =IF(Tabelle_Auswertung[[#This Row],[Platz]]=8,CONCATENATE(Tabelle_Auswertung[[#This Row],[Bildname]]," von ",Tabelle_Auswertung[[#This Row],[Autor(in)]]),"") -> cedok.jpg von Chris Finsterer | AH12: =IF(Tabelle_Auswertung[[#This Row],[Platz]]=9,CONCATENATE(Tabelle_Auswertung[[#This Row],[Bildname]]," von ",Tabelle_Auswertung[[#This Row],[Autor(in)]]),"") ->  | AI12: =IF(Tabelle_Auswertung[[#This Row],[Platz]]=10,CONCATENATE(Tabelle_Auswertung[[#This Row],[Bildname]]," von ",Tabelle_Auswertung[[#This Row],[Autor(in)]]),"") -> 
A13: dicke Raupe.JPG | B13: 7 | C13: 7 | D13: 6 | V13: =IF(Tabelle_Auswertung[[#This Row],[Bildname]]<>"",SUM(Tabelle_Auswertung[[#This Row],[Juror 1]:[Juror 20]])," - ") -> 20 | W13: =IF(Tabelle_Auswertung[[#This Row],[Bildname]]<>"",IF(Tabelle_Auswertung[[#This Row],[Punkte]]>0,AVERAGE(Tabelle_Auswertung[[#This Row],[Juror 1]:[Juror 20]])," - ")," - ") -> 6.67 | X13: =IF(Tabelle_Auswertung[[#This Row],[Bildname]]<>"",IF(Tabelle_Auswertung[[#This Row],[Punkte]]>0,RANK(Tabelle_Auswertung[[#This Row],[Punkte]],[Punkte],0)," - ")," - ") -> 8 | Y13: Susanne Deinhardt | Z13: =IF(Tabelle_Auswertung[[#This Row],[Platz]]=1,CONCATENATE(Tabelle_Auswertung[[#This Row],[Bildname]]," von ",Tabelle_Auswertung[[#This Row],[Autor(in)]]),"") ->  | AA13: =IF(Tabelle_Auswertung[[#This Row],[Platz]]=2,CONCATENATE(Tabelle_Auswertung[[#This Row],[Bildname]]," von ",Tabelle_Auswertung[[#This Row],[Autor(in)]]),"") ->  | AB13: =IF(Tabelle_Auswertung[[#This Row],[Platz]]=3,CONCATENATE(Tabelle_Auswertung[[#This Row],[Bildname]]," von ",Tabelle_Auswertung[[#This Row],[Autor(in)]]),"") ->  | AC13: =IF(Tabelle_Auswertung[[#This Row],[Platz]]=4,CONCATENATE(Tabelle_Auswertung[[#This Row],[Bildname]]," von ",Tabelle_Auswertung[[#This Row],[Autor(in)]]),"") ->  | AD13: =IF(Tabelle_Auswertung[[#This Row],[Platz]]=5,CONCATENATE(Tabelle_Auswertung[[#This Row],[Bildname]]," von ",Tabelle_Auswertung[[#This Row],[Autor(in)]]),"") ->  | AE13: =IF(Tabelle_Auswertung[[#This Row],[Platz]]=6,CONCATENATE(Tabelle_Auswertung[[#This Row],[Bildname]]," von ",Tabelle_Auswertung[[#This Row],[Autor(in)]]),"") ->  | AF13: =IF(Tabelle_Auswertung[[#This Row],[Platz]]=7,CONCATENATE(Tabelle_Auswertung[[#This Row],[Bildname]]," von ",Tabelle_Auswertung[[#This Row],[Autor(in)]]),"") ->  | AG13: =IF(Tabelle_Auswertung[[#This Row],[Platz]]=8,CONCATENATE(Tabelle_Auswertung[[#This Row],[Bildname]]," von ",Tabelle_Auswertung[[#This Row],[Autor(in)]]),"") -> dicke Raupe.JPG von Susanne Deinhardt | AH13: =IF(Tabelle_Auswertung[[#This Row],[Platz]]=9,CONCATENATE(Tabelle_Auswertung[[#This Row],[Bildname]]," von ",Tabelle_Auswertung[[#This Row],[Autor(in)]]),"") ->  | AI13: =IF(Tabelle_Auswertung[[#This Row],[Platz]]=10,CONCATENATE(Tabelle_Auswertung[[#This Row],[Bildname]]," von ",Tabelle_Auswertung[[#This Row],[Autor(in)]]),"") -> 
A14: heavy metal.jpg | B14: 7 | C14: 6 | D14: 7 | V14: =IF(Tabelle_Auswertung[[#This Row],[Bildname]]<>"",SUM(Tabelle_Auswertung[[#This Row],[Juror 1]:[Juror 20]])," - ") -> 20 | W14: =IF(Tabelle_Auswertung[[#This Row],[Bildname]]<>"",IF(Tabelle_Auswertung[[#This Row],[Punkte]]>0,AVERAGE(Tabelle_Auswertung[[#This Row],[Juror 1]:[Juror 20]])," - ")," - ") -> 6.67 | X14: =IF(Tabelle_Auswertung[[#This Row],[Bildname]]<>"",IF(Tabelle_Auswertung[[#This Row],[Punkte]]>0,RANK(Tabelle_Auswertung[[#This Row],[Punkte]],[Punkte],0)," - ")," - ") -> 8 | Y14: Gerhard Rieß | Z14: =IF(Tabelle_Auswertung[[#This Row],[Platz]]=1,CONCATENATE(Tabelle_Auswertung[[#This Row],[Bildname]]," von ",Tabelle_Auswertung[[#This Row],[Autor(in)]]),"") ->  | AA14: =IF(Tabelle_Auswertung[[#This Row],[Platz]]=2,CONCATENATE(Tabelle_Auswertung[[#This Row],[Bildname]]," von ",Tabelle_Auswertung[[#This Row],[Autor(in)]]),"") ->  | AB14: =IF(Tabelle_Auswertung[[#This Row],[Platz]]=3,CONCATENATE(Tabelle_Auswertung[[#This Row],[Bildname]]," von ",Tabelle_Auswertung[[#This Row],[Autor(in)]]),"") ->  | AC14: =IF(Tabelle_Auswertung[[#This Row],[Platz]]=4,CONCATENATE(Tabelle_Auswertung[[#This Row],[Bildname]]," von ",Tabelle_Auswertung[[#This Row],[Autor(in)]]),"") ->  | AD14: =IF(Tabelle_Auswertung[[#This Row],[Platz]]=5,CONCATENATE(Tabelle_Auswertung[[#This Row],[Bildname]]," von ",Tabelle_Auswertung[[#This Row],[Autor(in)]]),"") ->  | AE14: =IF(Tabelle_Auswertung[[#This Row],[Platz]]=6,CONCATENATE(Tabelle_Auswertung[[#This Row],[Bildname]]," von ",Tabelle_Auswertung[[#This Row],[Autor(in)]]),"") ->  | AF14: =IF(Tabelle_Auswertung[[#This Row],[Platz]]=7,CONCATENATE(Tabelle_Auswertung[[#This Row],[Bildname]]," von ",Tabelle_Auswertung[[#This Row],[Autor(in)]]),"") ->  | AG14: =IF(Tabelle_Auswertung[[#This Row],[Platz]]=8,CONCATENATE(Tabelle_Auswertung[[#This Row],[Bildname]]," von ",Tabelle_Auswertung[[#This Row],[Autor(in)]]),"") -> heavy metal.jpg von Gerhard Rieß | AH14: =IF(Tabelle_Auswertung[[#This Row],[Platz]]=9,CONCATENATE(Tabelle_Auswertung[[#This Row],[Bildname]]," von ",Tabelle_Auswertung[[#This Row],[Autor(in)]]),"") ->  | AI14: =IF(Tabelle_Auswertung[[#This Row],[Platz]]=10,CONCATENATE(Tabelle_Auswertung[[#This Row],[Bildname]]," von ",Tabelle_Auswertung[[#This Row],[Autor(in)]]),"") -> 
A15: Love1.JPG | B15: 7 | C15: 5 | D15: 8 | V15: =IF(Tabelle_Auswertung[[#This Row],[Bildname]]<>"",SUM(Tabelle_Auswertung[[#This Row],[Juror 1]:[Juror 20]])," - ") -> 20 | W15: =IF(Tabelle_Auswertung[[#This Row],[Bildname]]<>"",IF(Tabelle_Auswertung[[#This Row],[Punkte]]>0,AVERAGE(Tabelle_Auswertung[[#This Row],[Juror 1]:[Juror 20]])," - ")," - ") -> 6.67 | X15: =IF(Tabelle_Auswertung[[#This Row],[Bildname]]<>"",IF(Tabelle_Auswertung[[#This Row],[Punkte]]>0,RANK(Tabelle_Auswertung[[#This Row],[Punkte]],[Punkte],0)," - ")," - ") -> 8 | Y15: Andreas Toltz | Z15: =IF(Tabelle_Auswertung[[#This Row],[Platz]]=1,CONCATENATE(Tabelle_Auswertung[[#This Row],[Bildname]]," von ",Tabelle_Auswertung[[#This Row],[Autor(in)]]),"") ->  | AA15: =IF(Tabelle_Auswertung[[#This Row],[Platz]]=2,CONCATENATE(Tabelle_Auswertung[[#This Row],[Bildname]]," von ",Tabelle_Auswertung[[#This Row],[Autor(in)]]),"") ->  | AB15: =IF(Tabelle_Auswertung[[#This Row],[Platz]]=3,CONCATENATE(Tabelle_Auswertung[[#This Row],[Bildname]]," von ",Tabelle_Auswertung[[#This Row],[Autor(in)]]),"") ->  | AC15: =IF(Tabelle_Auswertung[[#This Row],[Platz]]=4,CONCATENATE(Tabelle_Auswertung[[#This Row],[Bildname]]," von ",Tabelle_Auswertung[[#This Row],[Autor(in)]]),"") ->  | AD15: =IF(Tabelle_Auswertung[[#This Row],[Platz]]=5,CONCATENATE(Tabelle_Auswertung[[#This Row],[Bildname]]," von ",Tabelle_Auswertung[[#This Row],[Autor(in)]]),"") ->  | AE15: =IF(Tabelle_Auswertung[[#This Row],[Platz]]=6,CONCATENATE(Tabelle_Auswertung[[#This Row],[Bildname]]," von ",Tabelle_Auswertung[[#This Row],[Autor(in)]]),"") ->  | AF15: =IF(Tabelle_Auswertung[[#This Row],[Platz]]=7,CONCATENATE(Tabelle_Auswertung[[#This Row],[Bildname]]," von ",Tabelle_Auswertung[[#This Row],[Autor(in)]]),"") ->  | AG15: =IF(Tabelle_Auswertung[[#This Row],[Platz]]=8,CONCATENATE(Tabelle_Auswertung[[#This Row],[Bildname]]," von ",Tabelle_Auswertung[[#This Row],[Autor(in)]]),"") -> Love1.JPG von Andreas Toltz | AH15: =IF(Tabelle_Auswertung[[#This Row],[Platz]]=9,CONCATENATE(Tabelle_Auswertung[[#This Row],[Bildname]]," von ",Tabelle_Auswertung[[#This Row],[Autor(in)]]),"") ->  | AI15: =IF(Tabelle_Auswertung[[#This Row],[Platz]]=10,CONCATENATE(Tabelle_Auswertung[[#This Row],[Bildname]]," von ",Tabelle_Auswertung[[#This Row],[Autor(in)]]),"") -> 
A16: Fleetschloß.jpg | B16: 8 | C16: 6 | D16: 5 | V16: =IF(Tabelle_Auswertung[[#This Row],[Bildname]]<>"",SUM(Tabelle_Auswertung[[#This Row],[Juror 1]:[Juror 20]])," - ") -> 19 | W16: =IF(Tabelle_Auswertung[[#This Row],[Bildname]]<>"",IF(Tabelle_Auswertung[[#This Row],[Punkte]]>0,AVERAGE(Tabelle_Auswertung[[#This Row],[Juror 1]:[Juror 20]])," - ")," - ") -> 6.33 | X16: =IF(Tabelle_Auswertung[[#This Row],[Bildname]]<>"",IF(Tabelle_Auswertung[[#This Row],[Punkte]]>0,RANK(Tabelle_Auswertung[[#This Row],[Punkte]],[Punkte],0)," - ")," - ") -> 12 | Y16: Andreas Toltz | Z16: =IF(Tabelle_Auswertung[[#This Row],[Platz]]=1,CONCATENATE(Tabelle_Auswertung[[#This Row],[Bildname]]," von ",Tabelle_Auswertung[[#This Row],[Autor(in)]]),"") ->  | AA16: =IF(Tabelle_Auswertung[[#This Row],[Platz]]=2,CONCATENATE(Tabelle_Auswertung[[#This Row],[Bildname]]," von ",Tabelle_Auswertung[[#This Row],[Autor(in)]]),"") ->  | AB16: =IF(Tabelle_Auswertung[[#This Row],[Platz]]=3,CONCATENATE(Tabelle_Auswertung[[#This Row],[Bildname]]," von ",Tabelle_Auswertung[[#This Row],[Autor(in)]]),"") ->  | AC16: =IF(Tabelle_Auswertung[[#This Row],[Platz]]=4,CONCATENATE(Tabelle_Auswertung[[#This Row],[Bildname]]," von ",Tabelle_Auswertung[[#This Row],[Autor(in)]]),"") ->  | AD16: =IF(Tabelle_Auswertung[[#This Row],[Platz]]=5,CONCATENATE(Tabelle_Auswertung[[#This Row],[Bildname]]," von ",Tabelle_Auswertung[[#This Row],[Autor(in)]]),"") ->  | AE16: =IF(Tabelle_Auswertung[[#This Row],[Platz]]=6,CONCATENATE(Tabelle_Auswertung[[#This Row],[Bildname]]," von ",Tabelle_Auswertung[[#This Row],[Autor(in)]]),"") ->  | AF16: =IF(Tabelle_Auswertung[[#This Row],[Platz]]=7,CONCATENATE(Tabelle_Auswertung[[#This Row],[Bildname]]," von ",Tabelle_Auswertung[[#This Row],[Autor(in)]]),"") ->  | AG16: =IF(Tabelle_Auswertung[[#This Row],[Platz]]=8,CONCATENATE(Tabelle_Auswertung[[#This Row],[Bildname]]," von ",Tabelle_Auswertung[[#This Row],[Autor(in)]]),"") ->  | AH16: =IF(Tabelle_Auswertung[[#This Row],[Platz]]=9,CONCATENATE(Tabelle_Auswertung[[#This Row],[Bildname]]," von ",Tabelle_Auswertung[[#This Row],[Autor(in)]]),"") ->  | AI16: =IF(Tabelle_Auswertung[[#This Row],[Platz]]=10,CONCATENATE(Tabelle_Auswertung[[#This Row],[Bildname]]," von ",Tabelle_Auswertung[[#This Row],[Autor(in)]]),"") -> 
A17: Nebelwiese.JPG | B17: 7 | C17: 6 | D17: 6 | V17: =IF(Tabelle_Auswertung[[#This Row],[Bildname]]<>"",SUM(Tabelle_Auswertung[[#This Row],[Juror 1]:[Juror 20]])," - ") -> 19 | W17: =IF(Tabelle_Auswertung[[#This Row],[Bildname]]<>"",IF(Tabelle_Auswertung[[#This Row],[Punkte]]>0,AVERAGE(Tabelle_Auswertung[[#This Row],[Juror 1]:[Juror 20]])," - ")," - ") -> 6.333333333 | X17: =IF(Tabelle_Auswertung[[#This Row],[Bildname]]<>"",IF(Tabelle_Auswertung[[#This Row],[Punkte]]>0,RANK(Tabelle_Auswertung[[#This Row],[Punkte]],[Punkte],0)," - ")," - ") -> 12 | Y17: Susanne Deinhardt | Z17: =IF(Tabelle_Auswertung[[#This Row],[Platz]]=1,CONCATENATE(Tabelle_Auswertung[[#This Row],[Bildname]]," von ",Tabelle_Auswertung[[#This Row],[Autor(in)]]),"") ->  | AA17: =IF(Tabelle_Auswertung[[#This Row],[Platz]]=2,CONCATENATE(Tabelle_Auswertung[[#This Row],[Bildname]]," von ",Tabelle_Auswertung[[#This Row],[Autor(in)]]),"") ->  | AB17: =IF(Tabelle_Auswertung[[#This Row],[Platz]]=3,CONCATENATE(Tabelle_Auswertung[[#This Row],[Bildname]]," von ",Tabelle_Auswertung[[#This Row],[Autor(in)]]),"") ->  | AC17: =IF(Tabelle_Auswertung[[#This Row],[Platz]]=4,CONCATENATE(Tabelle_Auswertung[[#This Row],[Bildname]]," von ",Tabelle_Auswertung[[#This Row],[Autor(in)]]),"") ->  | AD17: =IF(Tabelle_Auswertung[[#This Row],[Platz]]=5,CONCATENATE(Tabelle_Auswertung[[#This Row],[Bildname]]," von ",Tabelle_Auswertung[[#This Row],[Autor(in)]]),"") ->  | AE17: =IF(Tabelle_Auswertung[[#This Row],[Platz]]=6,CONCATENATE(Tabelle_Auswertung[[#This Row],[Bildname]]," von ",Tabelle_Auswertung[[#This Row],[Autor(in)]]),"") ->  | AF17: =IF(Tabelle_Auswertung[[#This Row],[Platz]]=7,CONCATENATE(Tabelle_Auswertung[[#This Row],[Bildname]]," von ",Tabelle_Auswertung[[#This Row],[Autor(in)]]),"") ->  | AG17: =IF(Tabelle_Auswertung[[#This Row],[Platz]]=8,CONCATENATE(Tabelle_Auswertung[[#This Row],[Bildname]]," von ",Tabelle_Auswertung[[#This Row],[Autor(in)]]),"") ->  | AH17: =IF(Tabelle_Auswertung[[#This Row],[Platz]]=9,CONCATENATE(Tabelle_Auswertung[[#This Row],[Bildname]]," von ",Tabelle_Auswertung[[#This Row],[Autor(in)]]),"") ->  | AI17: =IF(Tabelle_Auswertung[[#This Row],[Platz]]=10,CONCATENATE(Tabelle_Auswertung[[#This Row],[Bildname]]," von ",Tabelle_Auswertung[[#This Row],[Autor(in)]]),"") -> 
A18: Flamingos.jpg | B18: 5 | C18: 6 | D18: 7 | V18: =IF(Tabelle_Auswertung[[#This Row],[Bildname]]<>"",SUM(Tabelle_Auswertung[[#This Row],[Juror 1]:[Juror 20]])," - ") -> 18 | W18: =IF(Tabelle_Auswertung[[#This Row],[Bildname]]<>"",IF(Tabelle_Auswertung[[#This Row],[Punkte]]>0,AVERAGE(Tabelle_Auswertung[[#This Row],[Juror 1]:[Juror 20]])," - ")," - ") -> 6 | X18: =IF(Tabelle_Auswertung[[#This Row],[Bildname]]<>"",IF(Tabelle_Auswertung[[#This Row],[Punkte]]>0,RANK(Tabelle_Auswertung[[#This Row],[Punkte]],[Punkte],0)," - ")," - ") -> 14 | Y18: Chris Finsterer | Z18: =IF(Tabelle_Auswertung[[#This Row],[Platz]]=1,CONCATENATE(Tabelle_Auswertung[[#This Row],[Bildname]]," von ",Tabelle_Auswertung[[#This Row],[Autor(in)]]),"") ->  | AA18: =IF(Tabelle_Auswertung[[#This Row],[Platz]]=2,CONCATENATE(Tabelle_Auswertung[[#This Row],[Bildname]]," von ",Tabelle_Auswertung[[#This Row],[Autor(in)]]),"") ->  | AB18: =IF(Tabelle_Auswertung[[#This Row],[Platz]]=3,CONCATENATE(Tabelle_Auswertung[[#This Row],[Bildname]]," von ",Tabelle_Auswertung[[#This Row],[Autor(in)]]),"") ->  | AC18: =IF(Tabelle_Auswertung[[#This Row],[Platz]]=4,CONCATENATE(Tabelle_Auswertung[[#This Row],[Bildname]]," von ",Tabelle_Auswertung[[#This Row],[Autor(in)]]),"") ->  | AD18: =IF(Tabelle_Auswertung[[#This Row],[Platz]]=5,CONCATENATE(Tabelle_Auswertung[[#This Row],[Bildname]]," von ",Tabelle_Auswertung[[#This Row],[Autor(in)]]),"") ->  | AE18: =IF(Tabelle_Auswertung[[#This Row],[Platz]]=6,CONCATENATE(Tabelle_Auswertung[[#This Row],[Bildname]]," von ",Tabelle_Auswertung[[#This Row],[Autor(in)]]),"") ->  | AF18: =IF(Tabelle_Auswertung[[#This Row],[Platz]]=7,CONCATENATE(Tabelle_Auswertung[[#This Row],[Bildname]]," von ",Tabelle_Auswertung[[#This Row],[Autor(in)]]),"") ->  | AG18: =IF(Tabelle_Auswertung[[#This Row],[Platz]]=8,CONCATENATE(Tabelle_Auswertung[[#This Row],[Bildname]]," von ",Tabelle_Auswertung[[#This Row],[Autor(in)]]),"") ->  | AH18: =IF(Tabelle_Auswertung[[#This Row],[Platz]]=9,CONCATENATE(Tabelle_Auswertung[[#This Row],[Bildname]]," von ",Tabelle_Auswertung[[#This Row],[Autor(in)]]),"") ->  | AI18: =IF(Tabelle_Auswertung[[#This Row],[Platz]]=10,CONCATENATE(Tabelle_Auswertung[[#This Row],[Bildname]]," von ",Tabelle_Auswertung[[#This Row],[Autor(in)]]),"") -> 
A19: Maschine.jpg | B19: 7 | C19: 6 | D19: 5 | V19: =IF(Tabelle_Auswertung[[#This Row],[Bildname]]<>"",SUM(Tabelle_Auswertung[[#This Row],[Juror 1]:[Juror 20]])," - ") -> 18 | W19: =IF(Tabelle_Auswertung[[#This Row],[Bildname]]<>"",IF(Tabelle_Auswertung[[#This Row],[Punkte]]>0,AVERAGE(Tabelle_Auswertung[[#This Row],[Juror 1]:[Juror 20]])," - ")," - ") -> 6.00 | X19: =IF(Tabelle_Auswertung[[#This Row],[Bildname]]<>"",IF(Tabelle_Auswertung[[#This Row],[Punkte]]>0,RANK(Tabelle_Auswertung[[#This Row],[Punkte]],[Punkte],0)," - ")," - ") -> 14 | Y19: Chris Finsterer | Z19: =IF(Tabelle_Auswertung[[#This Row],[Platz]]=1,CONCATENATE(Tabelle_Auswertung[[#This Row],[Bildname]]," von ",Tabelle_Auswertung[[#This Row],[Autor(in)]]),"") ->  | AA19: =IF(Tabelle_Auswertung[[#This Row],[Platz]]=2,CONCATENATE(Tabelle_Auswertung[[#This Row],[Bildname]]," von ",Tabelle_Auswertung[[#This Row],[Autor(in)]]),"") ->  | AB19: =IF(Tabelle_Auswertung[[#This Row],[Platz]]=3,CONCATENATE(Tabelle_Auswertung[[#This Row],[Bildname]]," von ",Tabelle_Auswertung[[#This Row],[Autor(in)]]),"") ->  | AC19: =IF(Tabelle_Auswertung[[#This Row],[Platz]]=4,CONCATENATE(Tabelle_Auswertung[[#This Row],[Bildname]]," von ",Tabelle_Auswertung[[#This Row],[Autor(in)]]),"") ->  | AD19: =IF(Tabelle_Auswertung[[#This Row],[Platz]]=5,CONCATENATE(Tabelle_Auswertung[[#This Row],[Bildname]]," von ",Tabelle_Auswertung[[#This Row],[Autor(in)]]),"") ->  | AE19: =IF(Tabelle_Auswertung[[#This Row],[Platz]]=6,CONCATENATE(Tabelle_Auswertung[[#This Row],[Bildname]]," von ",Tabelle_Auswertung[[#This Row],[Autor(in)]]),"") ->  | AF19: =IF(Tabelle_Auswertung[[#This Row],[Platz]]=7,CONCATENATE(Tabelle_Auswertung[[#This Row],[Bildname]]," von ",Tabelle_Auswertung[[#This Row],[Autor(in)]]),"") ->  | AG19: =IF(Tabelle_Auswertung[[#This Row],[Platz]]=8,CONCATENATE(Tabelle_Auswertung[[#This Row],[Bildname]]," von ",Tabelle_Auswertung[[#This Row],[Autor(in)]]),"") ->  | AH19: =IF(Tabelle_Auswertung[[#This Row],[Platz]]=9,CONCATENATE(Tabelle_Auswertung[[#This Row],[Bildname]]," von ",Tabelle_Auswertung[[#This Row],[Autor(in)]]),"") ->  | AI19: =IF(Tabelle_Auswertung[[#This Row],[Platz]]=10,CONCATENATE(Tabelle_Auswertung[[#This Row],[Bildname]]," von ",Tabelle_Auswertung[[#This Row],[Autor(in)]]),"") -> 
A20: Mehlexplosion.jpg | B20: 6 | C20: 5 | D20: 7 | V20: =IF(Tabelle_Auswertung[[#This Row],[Bildname]]<>"",SUM(Tabelle_Auswertung[[#This Row],[Juror 1]:[Juror 20]])," - ") -> 18 | W20: =IF(Tabelle_Auswertung[[#This Row],[Bildname]]<>"",IF(Tabelle_Auswertung[[#This Row],[Punkte]]>0,AVERAGE(Tabelle_Auswertung[[#This Row],[Juror 1]:[Juror 20]])," - ")," - ") -> 6.00 | X20: =IF(Tabelle_Auswertung[[#This Row],[Bildname]]<>"",IF(Tabelle_Auswertung[[#This Row],[Punkte]]>0,RANK(Tabelle_Auswertung[[#This Row],[Punkte]],[Punkte],0)," - ")," - ") -> 14 | Y20: Gerhard Rieß | Z20: =IF(Tabelle_Auswertung[[#This Row],[Platz]]=1,CONCATENATE(Tabelle_Auswertung[[#This Row],[Bildname]]," von ",Tabelle_Auswertung[[#This Row],[Autor(in)]]),"") ->  | AA20: =IF(Tabelle_Auswertung[[#This Row],[Platz]]=2,CONCATENATE(Tabelle_Auswertung[[#This Row],[Bildname]]," von ",Tabelle_Auswertung[[#This Row],[Autor(in)]]),"") ->  | AB20: =IF(Tabelle_Auswertung[[#This Row],[Platz]]=3,CONCATENATE(Tabelle_Auswertung[[#This Row],[Bildname]]," von ",Tabelle_Auswertung[[#This Row],[Autor(in)]]),"") ->  | AC20: =IF(Tabelle_Auswertung[[#This Row],[Platz]]=4,CONCATENATE(Tabelle_Auswertung[[#This Row],[Bildname]]," von ",Tabelle_Auswertung[[#This Row],[Autor(in)]]),"") ->  | AD20: =IF(Tabelle_Auswertung[[#This Row],[Platz]]=5,CONCATENATE(Tabelle_Auswertung[[#This Row],[Bildname]]," von ",Tabelle_Auswertung[[#This Row],[Autor(in)]]),"") ->  | AE20: =IF(Tabelle_Auswertung[[#This Row],[Platz]]=6,CONCATENATE(Tabelle_Auswertung[[#This Row],[Bildname]]," von ",Tabelle_Auswertung[[#This Row],[Autor(in)]]),"") ->  | AF20: =IF(Tabelle_Auswertung[[#This Row],[Platz]]=7,CONCATENATE(Tabelle_Auswertung[[#This Row],[Bildname]]," von ",Tabelle_Auswertung[[#This Row],[Autor(in)]]),"") ->  | AG20: =IF(Tabelle_Auswertung[[#This Row],[Platz]]=8,CONCATENATE(Tabelle_Auswertung[[#This Row],[Bildname]]," von ",Tabelle_Auswertung[[#This Row],[Autor(in)]]),"") ->  | AH20: =IF(Tabelle_Auswertung[[#This Row],[Platz]]=9,CONCATENATE(Tabelle_Auswertung[[#This Row],[Bildname]]," von ",Tabelle_Auswertung[[#This Row],[Autor(in)]]),"") ->  | AI20: =IF(Tabelle_Auswertung[[#This Row],[Platz]]=10,CONCATENATE(Tabelle_Auswertung[[#This Row],[Bildname]]," von ",Tabelle_Auswertung[[#This Row],[Autor(in)]]),"") -> 
A21: Mercedes_Benz_170_S_Cabriolet_A.jpg | B21: 6 | C21: 6 | D21: 6 | V21: =IF(Tabelle_Auswertung[[#This Row],[Bildname]]<>"",SUM(Tabelle_Auswertung[[#This Row],[Juror 1]:[Juror 20]])," - ") -> 18 | W21: =IF(Tabelle_Auswertung[[#This Row],[Bildname]]<>"",IF(Tabelle_Auswertung[[#This Row],[Punkte]]>0,AVERAGE(Tabelle_Auswertung[[#This Row],[Juror 1]:[Juror 20]])," - ")," - ") -> 6.00 | X21: =IF(Tabelle_Auswertung[[#This Row],[Bildname]]<>"",IF(Tabelle_Auswertung[[#This Row],[Punkte]]>0,RANK(Tabelle_Auswertung[[#This Row],[Punkte]],[Punkte],0)," - ")," - ") -> 14 | Y21: Chris Finsterer | Z21: =IF(Tabelle_Auswertung[[#This Row],[Platz]]=1,CONCATENATE(Tabelle_Auswertung[[#This Row],[Bildname]]," von ",Tabelle_Auswertung[[#This Row],[Autor(in)]]),"") ->  | AA21: =IF(Tabelle_Auswertung[[#This Row],[Platz]]=2,CONCATENATE(Tabelle_Auswertung[[#This Row],[Bildname]]," von ",Tabelle_Auswertung[[#This Row],[Autor(in)]]),"") ->  | AB21: =IF(Tabelle_Auswertung[[#This Row],[Platz]]=3,CONCATENATE(Tabelle_Auswertung[[#This Row],[Bildname]]," von ",Tabelle_Auswertung[[#This Row],[Autor(in)]]),"") ->  | AC21: =IF(Tabelle_Auswertung[[#This Row],[Platz]]=4,CONCATENATE(Tabelle_Auswertung[[#This Row],[Bildname]]," von ",Tabelle_Auswertung[[#This Row],[Autor(in)]]),"") ->  | AD21: =IF(Tabelle_Auswertung[[#This Row],[Platz]]=5,CONCATENATE(Tabelle_Auswertung[[#This Row],[Bildname]]," von ",Tabelle_Auswertung[[#This Row],[Autor(in)]]),"") ->  | AE21: =IF(Tabelle_Auswertung[[#This Row],[Platz]]=6,CONCATENATE(Tabelle_Auswertung[[#This Row],[Bildname]]," von ",Tabelle_Auswertung[[#This Row],[Autor(in)]]),"") ->  | AF21: =IF(Tabelle_Auswertung[[#This Row],[Platz]]=7,CONCATENATE(Tabelle_Auswertung[[#This Row],[Bildname]]," von ",Tabelle_Auswertung[[#This Row],[Autor(in)]]),"") ->  | AG21: =IF(Tabelle_Auswertung[[#This Row],[Platz]]=8,CONCATENATE(Tabelle_Auswertung[[#This Row],[Bildname]]," von ",Tabelle_Auswertung[[#This Row],[Autor(in)]]),"") ->  | AH21: =IF(Tabelle_Auswertung[[#This Row],[Platz]]=9,CONCATENATE(Tabelle_Auswertung[[#This Row],[Bildname]]," von ",Tabelle_Auswertung[[#This Row],[Autor(in)]]),"") ->  | AI21: =IF(Tabelle_Auswertung[[#This Row],[Platz]]=10,CONCATENATE(Tabelle_Auswertung[[#This Row],[Bildname]]," von ",Tabelle_Auswertung[[#This Row],[Autor(in)]]),"") -> 
A22: Seven Sisters.jpg | B22: 6 | C22: 7 | D22: 5 | V22: =IF(Tabelle_Auswertung[[#This Row],[Bildname]]<>"",SUM(Tabelle_Auswertung[[#This Row],[Juror 1]:[Juror 20]])," - ") -> 18 | W22: =IF(Tabelle_Auswertung[[#This Row],[Bildname]]<>"",IF(Tabelle_Auswertung[[#This Row],[Punkte]]>0,AVERAGE(Tabelle_Auswertung[[#This Row],[Juror 1]:[Juror 20]])," - ")," - ") -> 6 | X22: =IF(Tabelle_Auswertung[[#This Row],[Bildname]]<>"",IF(Tabelle_Auswertung[[#This Row],[Punkte]]>0,RANK(Tabelle_Auswertung[[#This Row],[Punkte]],[Punkte],0)," - ")," - ") -> 14 | Y22: Gert Häberlein | Z22: =IF(Tabelle_Auswertung[[#This Row],[Platz]]=1,CONCATENATE(Tabelle_Auswertung[[#This Row],[Bildname]]," von ",Tabelle_Auswertung[[#This Row],[Autor(in)]]),"") ->  | AA22: =IF(Tabelle_Auswertung[[#This Row],[Platz]]=2,CONCATENATE(Tabelle_Auswertung[[#This Row],[Bildname]]," von ",Tabelle_Auswertung[[#This Row],[Autor(in)]]),"") ->  | AB22: =IF(Tabelle_Auswertung[[#This Row],[Platz]]=3,CONCATENATE(Tabelle_Auswertung[[#This Row],[Bildname]]," von ",Tabelle_Auswertung[[#This Row],[Autor(in)]]),"") ->  | AC22: =IF(Tabelle_Auswertung[[#This Row],[Platz]]=4,CONCATENATE(Tabelle_Auswertung[[#This Row],[Bildname]]," von ",Tabelle_Auswertung[[#This Row],[Autor(in)]]),"") ->  | AD22: =IF(Tabelle_Auswertung[[#This Row],[Platz]]=5,CONCATENATE(Tabelle_Auswertung[[#This Row],[Bildname]]," von ",Tabelle_Auswertung[[#This Row],[Autor(in)]]),"") ->  | AE22: =IF(Tabelle_Auswertung[[#This Row],[Platz]]=6,CONCATENATE(Tabelle_Auswertung[[#This Row],[Bildname]]," von ",Tabelle_Auswertung[[#This Row],[Autor(in)]]),"") ->  | AF22: =IF(Tabelle_Auswertung[[#This Row],[Platz]]=7,CONCATENATE(Tabelle_Auswertung[[#This Row],[Bildname]]," von ",Tabelle_Auswertung[[#This Row],[Autor(in)]]),"") ->  | AG22: =IF(Tabelle_Auswertung[[#This Row],[Platz]]=8,CONCATENATE(Tabelle_Auswertung[[#This Row],[Bildname]]," von ",Tabelle_Auswertung[[#This Row],[Autor(in)]]),"") ->  | AH22: =IF(Tabelle_Auswertung[[#This Row],[Platz]]=9,CONCATENATE(Tabelle_Auswertung[[#This Row],[Bildname]]," von ",Tabelle_Auswertung[[#This Row],[Autor(in)]]),"") ->  | AI22: =IF(Tabelle_Auswertung[[#This Row],[Platz]]=10,CONCATENATE(Tabelle_Auswertung[[#This Row],[Bildname]]," von ",Tabelle_Auswertung[[#This Row],[Autor(in)]]),"") -> 
A23: The Look.jpg | B23: 8 | C23: 6 | D23: 4 | V23: =IF(Tabelle_Auswertung[[#This Row],[Bildname]]<>"",SUM(Tabelle_Auswertung[[#This Row],[Juror 1]:[Juror 20]])," - ") -> 18 | W23: =IF(Tabelle_Auswertung[[#This Row],[Bildname]]<>"",IF(Tabelle_Auswertung[[#This Row],[Punkte]]>0,AVERAGE(Tabelle_Auswertung[[#This Row],[Juror 1]:[Juror 20]])," - ")," - ") -> 6.00 | X23: =IF(Tabelle_Auswertung[[#This Row],[Bildname]]<>"",IF(Tabelle_Auswertung[[#This Row],[Punkte]]>0,RANK(Tabelle_Auswertung[[#This Row],[Punkte]],[Punkte],0)," - ")," - ") -> 14 | Y23: Jan Grünler | Z23: =IF(Tabelle_Auswertung[[#This Row],[Platz]]=1,CONCATENATE(Tabelle_Auswertung[[#This Row],[Bildname]]," von ",Tabelle_Auswertung[[#This Row],[Autor(in)]]),"") ->  | AA23: =IF(Tabelle_Auswertung[[#This Row],[Platz]]=2,CONCATENATE(Tabelle_Auswertung[[#This Row],[Bildname]]," von ",Tabelle_Auswertung[[#This Row],[Autor(in)]]),"") ->  | AB23: =IF(Tabelle_Auswertung[[#This Row],[Platz]]=3,CONCATENATE(Tabelle_Auswertung[[#This Row],[Bildname]]," von ",Tabelle_Auswertung[[#This Row],[Autor(in)]]),"") ->  | AC23: =IF(Tabelle_Auswertung[[#This Row],[Platz]]=4,CONCATENATE(Tabelle_Auswertung[[#This Row],[Bildname]]," von ",Tabelle_Auswertung[[#This Row],[Autor(in)]]),"") ->  | AD23: =IF(Tabelle_Auswertung[[#This Row],[Platz]]=5,CONCATENATE(Tabelle_Auswertung[[#This Row],[Bildname]]," von ",Tabelle_Auswertung[[#This Row],[Autor(in)]]),"") ->  | AE23: =IF(Tabelle_Auswertung[[#This Row],[Platz]]=6,CONCATENATE(Tabelle_Auswertung[[#This Row],[Bildname]]," von ",Tabelle_Auswertung[[#This Row],[Autor(in)]]),"") ->  | AF23: =IF(Tabelle_Auswertung[[#This Row],[Platz]]=7,CONCATENATE(Tabelle_Auswertung[[#This Row],[Bildname]]," von ",Tabelle_Auswertung[[#This Row],[Autor(in)]]),"") ->  | AG23: =IF(Tabelle_Auswertung[[#This Row],[Platz]]=8,CONCATENATE(Tabelle_Auswertung[[#This Row],[Bildname]]," von ",Tabelle_Auswertung[[#This Row],[Autor(in)]]),"") ->  | AH23: =IF(Tabelle_Auswertung[[#This Row],[Platz]]=9,CONCATENATE(Tabelle_Auswertung[[#This Row],[Bildname]]," von ",Tabelle_Auswertung[[#This Row],[Autor(in)]]),"") ->  | AI23: =IF(Tabelle_Auswertung[[#This Row],[Platz]]=10,CONCATENATE(Tabelle_Auswertung[[#This Row],[Bildname]]," von ",Tabelle_Auswertung[[#This Row],[Autor(in)]]),"") -> 
A24: The Look1.jpg | B24: 7 | C24: 6 | D24: 5 | V24: =IF(Tabelle_Auswertung[[#This Row],[Bildname]]<>"",SUM(Tabelle_Auswertung[[#This Row],[Juror 1]:[Juror 20]])," - ") -> 18 | W24: =IF(Tabelle_Auswertung[[#This Row],[Bildname]]<>"",IF(Tabelle_Auswertung[[#This Row],[Punkte]]>0,AVERAGE(Tabelle_Auswertung[[#This Row],[Juror 1]:[Juror 20]])," - ")," - ") -> 6.00 | X24: =IF(Tabelle_Auswertung[[#This Row],[Bildname]]<>"",IF(Tabelle_Auswertung[[#This Row],[Punkte]]>0,RANK(Tabelle_Auswertung[[#This Row],[Punkte]],[Punkte],0)," - ")," - ") -> 14 | Y24: Andreas Toltz | Z24: =IF(Tabelle_Auswertung[[#This Row],[Platz]]=1,CONCATENATE(Tabelle_Auswertung[[#This Row],[Bildname]]," von ",Tabelle_Auswertung[[#This Row],[Autor(in)]]),"") ->  | AA24: =IF(Tabelle_Auswertung[[#This Row],[Platz]]=2,CONCATENATE(Tabelle_Auswertung[[#This Row],[Bildname]]," von ",Tabelle_Auswertung[[#This Row],[Autor(in)]]),"") ->  | AB24: =IF(Tabelle_Auswertung[[#This Row],[Platz]]=3,CONCATENATE(Tabelle_Auswertung[[#This Row],[Bildname]]," von ",Tabelle_Auswertung[[#This Row],[Autor(in)]]),"") ->  | AC24: =IF(Tabelle_Auswertung[[#This Row],[Platz]]=4,CONCATENATE(Tabelle_Auswertung[[#This Row],[Bildname]]," von ",Tabelle_Auswertung[[#This Row],[Autor(in)]]),"") ->  | AD24: =IF(Tabelle_Auswertung[[#This Row],[Platz]]=5,CONCATENATE(Tabelle_Auswertung[[#This Row],[Bildname]]," von ",Tabelle_Auswertung[[#This Row],[Autor(in)]]),"") ->  | AE24: =IF(Tabelle_Auswertung[[#This Row],[Platz]]=6,CONCATENATE(Tabelle_Auswertung[[#This Row],[Bildname]]," von ",Tabelle_Auswertung[[#This Row],[Autor(in)]]),"") ->  | AF24: =IF(Tabelle_Auswertung[[#This Row],[Platz]]=7,CONCATENATE(Tabelle_Auswertung[[#This Row],[Bildname]]," von ",Tabelle_Auswertung[[#This Row],[Autor(in)]]),"") ->  | AG24: =IF(Tabelle_Auswertung[[#This Row],[Platz]]=8,CONCATENATE(Tabelle_Auswertung[[#This Row],[Bildname]]," von ",Tabelle_Auswertung[[#This Row],[Autor(in)]]),"") ->  | AH24: =IF(Tabelle_Auswertung[[#This Row],[Platz]]=9,CONCATENATE(Tabelle_Auswertung[[#This Row],[Bildname]]," von ",Tabelle_Auswertung[[#This Row],[Autor(in)]]),"") ->  | AI24: =IF(Tabelle_Auswertung[[#This Row],[Platz]]=10,CONCATENATE(Tabelle_Auswertung[[#This Row],[Bildname]]," von ",Tabelle_Auswertung[[#This Row],[Autor(in)]]),"") -> 
A25: Annika.jpg | B25: 4 | C25: 5 | D25: 8 | V25: =IF(Tabelle_Auswertung[[#This Row],[Bildname]]<>"",SUM(Tabelle_Auswertung[[#This Row],[Juror 1]:[Juror 20]])," - ") -> 17 | W25: =IF(Tabelle_Auswertung[[#This Row],[Bildname]]<>"",IF(Tabelle_Auswertung[[#This Row],[Punkte]]>0,AVERAGE(Tabelle_Auswertung[[#This Row],[Juror 1]:[Juror 20]])," - ")," - ") -> 5.67 | X25: =IF(Tabelle_Auswertung[[#This Row],[Bildname]]<>"",IF(Tabelle_Auswertung[[#This Row],[Punkte]]>0,RANK(Tabelle_Auswertung[[#This Row],[Punkte]],[Punkte],0)," - ")," - ") -> 21 | Y25: Susanne Deinhardt | Z25: =IF(Tabelle_Auswertung[[#This Row],[Platz]]=1,CONCATENATE(Tabelle_Auswertung[[#This Row],[Bildname]]," von ",Tabelle_Auswertung[[#This Row],[Autor(in)]]),"") ->  | AA25: =IF(Tabelle_Auswertung[[#This Row],[Platz]]=2,CONCATENATE(Tabelle_Auswertung[[#This Row],[Bildname]]," von ",Tabelle_Auswertung[[#This Row],[Autor(in)]]),"") ->  | AB25: =IF(Tabelle_Auswertung[[#This Row],[Platz]]=3,CONCATENATE(Tabelle_Auswertung[[#This Row],[Bildname]]," von ",Tabelle_Auswertung[[#This Row],[Autor(in)]]),"") ->  | AC25: =IF(Tabelle_Auswertung[[#This Row],[Platz]]=4,CONCATENATE(Tabelle_Auswertung[[#This Row],[Bildname]]," von ",Tabelle_Auswertung[[#This Row],[Autor(in)]]),"") ->  | AD25: =IF(Tabelle_Auswertung[[#This Row],[Platz]]=5,CONCATENATE(Tabelle_Auswertung[[#This Row],[Bildname]]," von ",Tabelle_Auswertung[[#This Row],[Autor(in)]]),"") ->  | AE25: =IF(Tabelle_Auswertung[[#This Row],[Platz]]=6,CONCATENATE(Tabelle_Auswertung[[#This Row],[Bildname]]," von ",Tabelle_Auswertung[[#This Row],[Autor(in)]]),"") ->  | AF25: =IF(Tabelle_Auswertung[[#This Row],[Platz]]=7,CONCATENATE(Tabelle_Auswertung[[#This Row],[Bildname]]," von ",Tabelle_Auswertung[[#This Row],[Autor(in)]]),"") ->  | AG25: =IF(Tabelle_Auswertung[[#This Row],[Platz]]=8,CONCATENATE(Tabelle_Auswertung[[#This Row],[Bildname]]," von ",Tabelle_Auswertung[[#This Row],[Autor(in)]]),"") ->  | AH25: =IF(Tabelle_Auswertung[[#This Row],[Platz]]=9,CONCATENATE(Tabelle_Auswertung[[#This Row],[Bildname]]," von ",Tabelle_Auswertung[[#This Row],[Autor(in)]]),"") ->  | AI25: =IF(Tabelle_Auswertung[[#This Row],[Platz]]=10,CONCATENATE(Tabelle_Auswertung[[#This Row],[Bildname]]," von ",Tabelle_Auswertung[[#This Row],[Autor(in)]]),"") -> 
A26: Beauty01.jpg | B26: 6 | C26: 6 | D26: 5 | V26: =IF(Tabelle_Auswertung[[#This Row],[Bildname]]<>"",SUM(Tabelle_Auswertung[[#This Row],[Juror 1]:[Juror 20]])," - ") -> 17 | W26: =IF(Tabelle_Auswertung[[#This Row],[Bildname]]<>"",IF(Tabelle_Auswertung[[#This Row],[Punkte]]>0,AVERAGE(Tabelle_Auswertung[[#This Row],[Juror 1]:[Juror 20]])," - ")," - ") -> 5.67 | X26: =IF(Tabelle_Auswertung[[#This Row],[Bildname]]<>"",IF(Tabelle_Auswertung[[#This Row],[Punkte]]>0,RANK(Tabelle_Auswertung[[#This Row],[Punkte]],[Punkte],0)," - ")," - ") -> 21 | Y26: Andreas Toltz | Z26: =IF(Tabelle_Auswertung[[#This Row],[Platz]]=1,CONCATENATE(Tabelle_Auswertung[[#This Row],[Bildname]]," von ",Tabelle_Auswertung[[#This Row],[Autor(in)]]),"") ->  | AA26: =IF(Tabelle_Auswertung[[#This Row],[Platz]]=2,CONCATENATE(Tabelle_Auswertung[[#This Row],[Bildname]]," von ",Tabelle_Auswertung[[#This Row],[Autor(in)]]),"") ->  | AB26: =IF(Tabelle_Auswertung[[#This Row],[Platz]]=3,CONCATENATE(Tabelle_Auswertung[[#This Row],[Bildname]]," von ",Tabelle_Auswertung[[#This Row],[Autor(in)]]),"") ->  | AC26: =IF(Tabelle_Auswertung[[#This Row],[Platz]]=4,CONCATENATE(Tabelle_Auswertung[[#This Row],[Bildname]]," von ",Tabelle_Auswertung[[#This Row],[Autor(in)]]),"") ->  | AD26: =IF(Tabelle_Auswertung[[#This Row],[Platz]]=5,CONCATENATE(Tabelle_Auswertung[[#This Row],[Bildname]]," von ",Tabelle_Auswertung[[#This Row],[Autor(in)]]),"") ->  | AE26: =IF(Tabelle_Auswertung[[#This Row],[Platz]]=6,CONCATENATE(Tabelle_Auswertung[[#This Row],[Bildname]]," von ",Tabelle_Auswertung[[#This Row],[Autor(in)]]),"") ->  | AF26: =IF(Tabelle_Auswertung[[#This Row],[Platz]]=7,CONCATENATE(Tabelle_Auswertung[[#This Row],[Bildname]]," von ",Tabelle_Auswertung[[#This Row],[Autor(in)]]),"") ->  | AG26: =IF(Tabelle_Auswertung[[#This Row],[Platz]]=8,CONCATENATE(Tabelle_Auswertung[[#This Row],[Bildname]]," von ",Tabelle_Auswertung[[#This Row],[Autor(in)]]),"") ->  | AH26: =IF(Tabelle_Auswertung[[#This Row],[Platz]]=9,CONCATENATE(Tabelle_Auswertung[[#This Row],[Bildname]]," von ",Tabelle_Auswertung[[#This Row],[Autor(in)]]),"") ->  | AI26: =IF(Tabelle_Auswertung[[#This Row],[Platz]]=10,CONCATENATE(Tabelle_Auswertung[[#This Row],[Bildname]]," von ",Tabelle_Auswertung[[#This Row],[Autor(in)]]),"") -> 
A27: Fruehe Stunde.jpg | B27: 7 | C27: 4 | D27: 6 | V27: =IF(Tabelle_Auswertung[[#This Row],[Bildname]]<>"",SUM(Tabelle_Auswertung[[#This Row],[Juror 1]:[Juror 20]])," - ") -> 17 | W27: =IF(Tabelle_Auswertung[[#This Row],[Bildname]]<>"",IF(Tabelle_Auswertung[[#This Row],[Punkte]]>0,AVERAGE(Tabelle_Auswertung[[#This Row],[Juror 1]:[Juror 20]])," - ")," - ") -> 5.67 | X27: =IF(Tabelle_Auswertung[[#This Row],[Bildname]]<>"",IF(Tabelle_Auswertung[[#This Row],[Punkte]]>0,RANK(Tabelle_Auswertung[[#This Row],[Punkte]],[Punkte],0)," - ")," - ") -> 21 | Y27: Gert Häberlein | Z27: =IF(Tabelle_Auswertung[[#This Row],[Platz]]=1,CONCATENATE(Tabelle_Auswertung[[#This Row],[Bildname]]," von ",Tabelle_Auswertung[[#This Row],[Autor(in)]]),"") ->  | AA27: =IF(Tabelle_Auswertung[[#This Row],[Platz]]=2,CONCATENATE(Tabelle_Auswertung[[#This Row],[Bildname]]," von ",Tabelle_Auswertung[[#This Row],[Autor(in)]]),"") ->  | AB27: =IF(Tabelle_Auswertung[[#This Row],[Platz]]=3,CONCATENATE(Tabelle_Auswertung[[#This Row],[Bildname]]," von ",Tabelle_Auswertung[[#This Row],[Autor(in)]]),"") ->  | AC27: =IF(Tabelle_Auswertung[[#This Row],[Platz]]=4,CONCATENATE(Tabelle_Auswertung[[#This Row],[Bildname]]," von ",Tabelle_Auswertung[[#This Row],[Autor(in)]]),"") ->  | AD27: =IF(Tabelle_Auswertung[[#This Row],[Platz]]=5,CONCATENATE(Tabelle_Auswertung[[#This Row],[Bildname]]," von ",Tabelle_Auswertung[[#This Row],[Autor(in)]]),"") ->  | AE27: =IF(Tabelle_Auswertung[[#This Row],[Platz]]=6,CONCATENATE(Tabelle_Auswertung[[#This Row],[Bildname]]," von ",Tabelle_Auswertung[[#This Row],[Autor(in)]]),"") ->  | AF27: =IF(Tabelle_Auswertung[[#This Row],[Platz]]=7,CONCATENATE(Tabelle_Auswertung[[#This Row],[Bildname]]," von ",Tabelle_Auswertung[[#This Row],[Autor(in)]]),"") ->  | AG27: =IF(Tabelle_Auswertung[[#This Row],[Platz]]=8,CONCATENATE(Tabelle_Auswertung[[#This Row],[Bildname]]," von ",Tabelle_Auswertung[[#This Row],[Autor(in)]]),"") ->  | AH27: =IF(Tabelle_Auswertung[[#This Row],[Platz]]=9,CONCATENATE(Tabelle_Auswertung[[#This Row],[Bildname]]," von ",Tabelle_Auswertung[[#This Row],[Autor(in)]]),"") ->  | AI27: =IF(Tabelle_Auswertung[[#This Row],[Platz]]=10,CONCATENATE(Tabelle_Auswertung[[#This Row],[Bildname]]," von ",Tabelle_Auswertung[[#This Row],[Autor(in)]]),"") -> 
A28: Regenbogen.jpg | B28: 5 | C28: 7 | D28: 5 | V28: =IF(Tabelle_Auswertung[[#This Row],[Bildname]]<>"",SUM(Tabelle_Auswertung[[#This Row],[Juror 1]:[Juror 20]])," - ") -> 17 | W28: =IF(Tabelle_Auswertung[[#This Row],[Bildname]]<>"",IF(Tabelle_Auswertung[[#This Row],[Punkte]]>0,AVERAGE(Tabelle_Auswertung[[#This Row],[Juror 1]:[Juror 20]])," - ")," - ") -> 5.67 | X28: =IF(Tabelle_Auswertung[[#This Row],[Bildname]]<>"",IF(Tabelle_Auswertung[[#This Row],[Punkte]]>0,RANK(Tabelle_Auswertung[[#This Row],[Punkte]],[Punkte],0)," - ")," - ") -> 21 | Y28: Gert Häberlein | Z28: =IF(Tabelle_Auswertung[[#This Row],[Platz]]=1,CONCATENATE(Tabelle_Auswertung[[#This Row],[Bildname]]," von ",Tabelle_Auswertung[[#This Row],[Autor(in)]]),"") ->  | AA28: =IF(Tabelle_Auswertung[[#This Row],[Platz]]=2,CONCATENATE(Tabelle_Auswertung[[#This Row],[Bildname]]," von ",Tabelle_Auswertung[[#This Row],[Autor(in)]]),"") ->  | AB28: =IF(Tabelle_Auswertung[[#This Row],[Platz]]=3,CONCATENATE(Tabelle_Auswertung[[#This Row],[Bildname]]," von ",Tabelle_Auswertung[[#This Row],[Autor(in)]]),"") ->  | AC28: =IF(Tabelle_Auswertung[[#This Row],[Platz]]=4,CONCATENATE(Tabelle_Auswertung[[#This Row],[Bildname]]," von ",Tabelle_Auswertung[[#This Row],[Autor(in)]]),"") ->  | AD28: =IF(Tabelle_Auswertung[[#This Row],[Platz]]=5,CONCATENATE(Tabelle_Auswertung[[#This Row],[Bildname]]," von ",Tabelle_Auswertung[[#This Row],[Autor(in)]]),"") ->  | AE28: =IF(Tabelle_Auswertung[[#This Row],[Platz]]=6,CONCATENATE(Tabelle_Auswertung[[#This Row],[Bildname]]," von ",Tabelle_Auswertung[[#This Row],[Autor(in)]]),"") ->  | AF28: =IF(Tabelle_Auswertung[[#This Row],[Platz]]=7,CONCATENATE(Tabelle_Auswertung[[#This Row],[Bildname]]," von ",Tabelle_Auswertung[[#This Row],[Autor(in)]]),"") ->  | AG28: =IF(Tabelle_Auswertung[[#This Row],[Platz]]=8,CONCATENATE(Tabelle_Auswertung[[#This Row],[Bildname]]," von ",Tabelle_Auswertung[[#This Row],[Autor(in)]]),"") ->  | AH28: =IF(Tabelle_Auswertung[[#This Row],[Platz]]=9,CONCATENATE(Tabelle_Auswertung[[#This Row],[Bildname]]," von ",Tabelle_Auswertung[[#This Row],[Autor(in)]]),"") ->  | AI28: =IF(Tabelle_Auswertung[[#This Row],[Platz]]=10,CONCATENATE(Tabelle_Auswertung[[#This Row],[Bildname]]," von ",Tabelle_Auswertung[[#This Row],[Autor(in)]]),"") -> 
A29: Nostalgie.jpg | B29: 5 | C29: 7 | D29: 4 | V29: =IF(Tabelle_Auswertung[[#This Row],[Bildname]]<>"",SUM(Tabelle_Auswertung[[#This Row],[Juror 1]:[Juror 20]])," - ") -> 16 | W29: =IF(Tabelle_Auswertung[[#This Row],[Bildname]]<>"",IF(Tabelle_Auswertung[[#This Row],[Punkte]]>0,AVERAGE(Tabelle_Auswertung[[#This Row],[Juror 1]:[Juror 20]])," - ")," - ") -> 5.333333333 | X29: =IF(Tabelle_Auswertung[[#This Row],[Bildname]]<>"",IF(Tabelle_Auswertung[[#This Row],[Punkte]]>0,RANK(Tabelle_Auswertung[[#This Row],[Punkte]],[Punkte],0)," - ")," - ") -> 25 | Y29: Gerhard Rieß | Z29: =IF(Tabelle_Auswertung[[#This Row],[Platz]]=1,CONCATENATE(Tabelle_Auswertung[[#This Row],[Bildname]]," von ",Tabelle_Auswertung[[#This Row],[Autor(in)]]),"") ->  | AA29: =IF(Tabelle_Auswertung[[#This Row],[Platz]]=2,CONCATENATE(Tabelle_Auswertung[[#This Row],[Bildname]]," von ",Tabelle_Auswertung[[#This Row],[Autor(in)]]),"") ->  | AB29: =IF(Tabelle_Auswertung[[#This Row],[Platz]]=3,CONCATENATE(Tabelle_Auswertung[[#This Row],[Bildname]]," von ",Tabelle_Auswertung[[#This Row],[Autor(in)]]),"") ->  | AC29: =IF(Tabelle_Auswertung[[#This Row],[Platz]]=4,CONCATENATE(Tabelle_Auswertung[[#This Row],[Bildname]]," von ",Tabelle_Auswertung[[#This Row],[Autor(in)]]),"") ->  | AD29: =IF(Tabelle_Auswertung[[#This Row],[Platz]]=5,CONCATENATE(Tabelle_Auswertung[[#This Row],[Bildname]]," von ",Tabelle_Auswertung[[#This Row],[Autor(in)]]),"") ->  | AE29: =IF(Tabelle_Auswertung[[#This Row],[Platz]]=6,CONCATENATE(Tabelle_Auswertung[[#This Row],[Bildname]]," von ",Tabelle_Auswertung[[#This Row],[Autor(in)]]),"") ->  | AF29: =IF(Tabelle_Auswertung[[#This Row],[Platz]]=7,CONCATENATE(Tabelle_Auswertung[[#This Row],[Bildname]]," von ",Tabelle_Auswertung[[#This Row],[Autor(in)]]),"") ->  | AG29: =IF(Tabelle_Auswertung[[#This Row],[Platz]]=8,CONCATENATE(Tabelle_Auswertung[[#This Row],[Bildname]]," von ",Tabelle_Auswertung[[#This Row],[Autor(in)]]),"") ->  | AH29: =IF(Tabelle_Auswertung[[#This Row],[Platz]]=9,CONCATENATE(Tabelle_Auswertung[[#This Row],[Bildname]]," von ",Tabelle_Auswertung[[#This Row],[Autor(in)]]),"") ->  | AI29: =IF(Tabelle_Auswertung[[#This Row],[Platz]]=10,CONCATENATE(Tabelle_Auswertung[[#This Row],[Bildname]]," von ",Tabelle_Auswertung[[#This Row],[Autor(in)]]),"") -> 
A30: Sunset.jpg | B30: 6 | C30: 6 | D30: 4 | V30: =IF(Tabelle_Auswertung[[#This Row],[Bildname]]<>"",SUM(Tabelle_Auswertung[[#This Row],[Juror 1]:[Juror 20]])," - ") -> 16 | W30: =IF(Tabelle_Auswertung[[#This Row],[Bildname]]<>"",IF(Tabelle_Auswertung[[#This Row],[Punkte]]>0,AVERAGE(Tabelle_Auswertung[[#This Row],[Juror 1]:[Juror 20]])," - ")," - ") -> 5.33 | X30: =IF(Tabelle_Auswertung[[#This Row],[Bildname]]<>"",IF(Tabelle_Auswertung[[#This Row],[Punkte]]>0,RANK(Tabelle_Auswertung[[#This Row],[Punkte]],[Punkte],0)," - ")," - ") -> 25 | Y30: Gert Häberlein | Z30: =IF(Tabelle_Auswertung[[#This Row],[Platz]]=1,CONCATENATE(Tabelle_Auswertung[[#This Row],[Bildname]]," von ",Tabelle_Auswertung[[#This Row],[Autor(in)]]),"") ->  | AA30: =IF(Tabelle_Auswertung[[#This Row],[Platz]]=2,CONCATENATE(Tabelle_Auswertung[[#This Row],[Bildname]]," von ",Tabelle_Auswertung[[#This Row],[Autor(in)]]),"") ->  | AB30: =IF(Tabelle_Auswertung[[#This Row],[Platz]]=3,CONCATENATE(Tabelle_Auswertung[[#This Row],[Bildname]]," von ",Tabelle_Auswertung[[#This Row],[Autor(in)]]),"") ->  | AC30: =IF(Tabelle_Auswertung[[#This Row],[Platz]]=4,CONCATENATE(Tabelle_Auswertung[[#This Row],[Bildname]]," von ",Tabelle_Auswertung[[#This Row],[Autor(in)]]),"") ->  | AD30: =IF(Tabelle_Auswertung[[#This Row],[Platz]]=5,CONCATENATE(Tabelle_Auswertung[[#This Row],[Bildname]]," von ",Tabelle_Auswertung[[#This Row],[Autor(in)]]),"") ->  | AE30: =IF(Tabelle_Auswertung[[#This Row],[Platz]]=6,CONCATENATE(Tabelle_Auswertung[[#This Row],[Bildname]]," von ",Tabelle_Auswertung[[#This Row],[Autor(in)]]),"") ->  | AF30: =IF(Tabelle_Auswertung[[#This Row],[Platz]]=7,CONCATENATE(Tabelle_Auswertung[[#This Row],[Bildname]]," von ",Tabelle_Auswertung[[#This Row],[Autor(in)]]),"") ->  | AG30: =IF(Tabelle_Auswertung[[#This Row],[Platz]]=8,CONCATENATE(Tabelle_Auswertung[[#This Row],[Bildname]]," von ",Tabelle_Auswertung[[#This Row],[Autor(in)]]),"") ->  | AH30: =IF(Tabelle_Auswertung[[#This Row],[Platz]]=9,CONCATENATE(Tabelle_Auswertung[[#This Row],[Bildname]]," von ",Tabelle_Auswertung[[#This Row],[Autor(in)]]),"") ->  | AI30: =IF(Tabelle_Auswertung[[#This Row],[Platz]]=10,CONCATENATE(Tabelle_Auswertung[[#This Row],[Bildname]]," von ",Tabelle_Auswertung[[#This Row],[Autor(in)]]),"") -> 
A31: Grandhotel.jpg | B31: 6 | C31: 5 | D31: 4 | V31: =IF(Tabelle_Auswertung[[#This Row],[Bildname]]<>"",SUM(Tabelle_Auswertung[[#This Row],[Juror 1]:[Juror 20]])," - ") -> 15 | W31: =IF(Tabelle_Auswertung[[#This Row],[Bildname]]<>"",IF(Tabelle_Auswertung[[#This Row],[Punkte]]>0,AVERAGE(Tabelle_Auswertung[[#This Row],[Juror 1]:[Juror 20]])," - ")," - ") -> 5 | X31: =IF(Tabelle_Auswertung[[#This Row],[Bildname]]<>"",IF(Tabelle_Auswertung[[#This Row],[Punkte]]>0,RANK(Tabelle_Auswertung[[#This Row],[Punkte]],[Punkte],0)," - ")," - ") -> 27 | Y31: Gert Häberlein | Z31: =IF(Tabelle_Auswertung[[#This Row],[Platz]]=1,CONCATENATE(Tabelle_Auswertung[[#This Row],[Bildname]]," von ",Tabelle_Auswertung[[#This Row],[Autor(in)]]),"") ->  | AA31: =IF(Tabelle_Auswertung[[#This Row],[Platz]]=2,CONCATENATE(Tabelle_Auswertung[[#This Row],[Bildname]]," von ",Tabelle_Auswertung[[#This Row],[Autor(in)]]),"") ->  | AB31: =IF(Tabelle_Auswertung[[#This Row],[Platz]]=3,CONCATENATE(Tabelle_Auswertung[[#This Row],[Bildname]]," von ",Tabelle_Auswertung[[#This Row],[Autor(in)]]),"") ->  | AC31: =IF(Tabelle_Auswertung[[#This Row],[Platz]]=4,CONCATENATE(Tabelle_Auswertung[[#This Row],[Bildname]]," von ",Tabelle_Auswertung[[#This Row],[Autor(in)]]),"") ->  | AD31: =IF(Tabelle_Auswertung[[#This Row],[Platz]]=5,CONCATENATE(Tabelle_Auswertung[[#This Row],[Bildname]]," von ",Tabelle_Auswertung[[#This Row],[Autor(in)]]),"") ->  | AE31: =IF(Tabelle_Auswertung[[#This Row],[Platz]]=6,CONCATENATE(Tabelle_Auswertung[[#This Row],[Bildname]]," von ",Tabelle_Auswertung[[#This Row],[Autor(in)]]),"") ->  | AF31: =IF(Tabelle_Auswertung[[#This Row],[Platz]]=7,CONCATENATE(Tabelle_Auswertung[[#This Row],[Bildname]]," von ",Tabelle_Auswertung[[#This Row],[Autor(in)]]),"") ->  | AG31: =IF(Tabelle_Auswertung[[#This Row],[Platz]]=8,CONCATENATE(Tabelle_Auswertung[[#This Row],[Bildname]]," von ",Tabelle_Auswertung[[#This Row],[Autor(in)]]),"") ->  | AH31: =IF(Tabelle_Auswertung[[#This Row],[Platz]]=9,CONCATENATE(Tabelle_Auswertung[[#This Row],[Bildname]]," von ",Tabelle_Auswertung[[#This Row],[Autor(in)]]),"") ->  | AI31: =IF(Tabelle_Auswertung[[#This Row],[Platz]]=10,CONCATENATE(Tabelle_Auswertung[[#This Row],[Bildname]]," von ",Tabelle_Auswertung[[#This Row],[Autor(in)]]),"") -> 
A32: Herbst mal anders.JPG | B32: 7 | C32: 5 | D32: 3 | V32: =IF(Tabelle_Auswertung[[#This Row],[Bildname]]<>"",SUM(Tabelle_Auswertung[[#This Row],[Juror 1]:[Juror 20]])," - ") -> 15 | W32: =IF(Tabelle_Auswertung[[#This Row],[Bildname]]<>"",IF(Tabelle_Auswertung[[#This Row],[Punkte]]>0,AVERAGE(Tabelle_Auswertung[[#This Row],[Juror 1]:[Juror 20]])," - ")," - ") -> 5.00 | X32: =IF(Tabelle_Auswertung[[#This Row],[Bildname]]<>"",IF(Tabelle_Auswertung[[#This Row],[Punkte]]>0,RANK(Tabelle_Auswertung[[#This Row],[Punkte]],[Punkte],0)," - ")," - ") -> 27 | Y32: Susanne Deinhardt | Z32: =IF(Tabelle_Auswertung[[#This Row],[Platz]]=1,CONCATENATE(Tabelle_Auswertung[[#This Row],[Bildname]]," von ",Tabelle_Auswertung[[#This Row],[Autor(in)]]),"") ->  | AA32: =IF(Tabelle_Auswertung[[#This Row],[Platz]]=2,CONCATENATE(Tabelle_Auswertung[[#This Row],[Bildname]]," von ",Tabelle_Auswertung[[#This Row],[Autor(in)]]),"") ->  | AB32: =IF(Tabelle_Auswertung[[#This Row],[Platz]]=3,CONCATENATE(Tabelle_Auswertung[[#This Row],[Bildname]]," von ",Tabelle_Auswertung[[#This Row],[Autor(in)]]),"") ->  | AC32: =IF(Tabelle_Auswertung[[#This Row],[Platz]]=4,CONCATENATE(Tabelle_Auswertung[[#This Row],[Bildname]]," von ",Tabelle_Auswertung[[#This Row],[Autor(in)]]),"") ->  | AD32: =IF(Tabelle_Auswertung[[#This Row],[Platz]]=5,CONCATENATE(Tabelle_Auswertung[[#This Row],[Bildname]]," von ",Tabelle_Auswertung[[#This Row],[Autor(in)]]),"") ->  | AE32: =IF(Tabelle_Auswertung[[#This Row],[Platz]]=6,CONCATENATE(Tabelle_Auswertung[[#This Row],[Bildname]]," von ",Tabelle_Auswertung[[#This Row],[Autor(in)]]),"") ->  | AF32: =IF(Tabelle_Auswertung[[#This Row],[Platz]]=7,CONCATENATE(Tabelle_Auswertung[[#This Row],[Bildname]]," von ",Tabelle_Auswertung[[#This Row],[Autor(in)]]),"") ->  | AG32: =IF(Tabelle_Auswertung[[#This Row],[Platz]]=8,CONCATENATE(Tabelle_Auswertung[[#This Row],[Bildname]]," von ",Tabelle_Auswertung[[#This Row],[Autor(in)]]),"") ->  | AH32: =IF(Tabelle_Auswertung[[#This Row],[Platz]]=9,CONCATENATE(Tabelle_Auswertung[[#This Row],[Bildname]]," von ",Tabelle_Auswertung[[#This Row],[Autor(in)]]),"") ->  | AI32: =IF(Tabelle_Auswertung[[#This Row],[Platz]]=10,CONCATENATE(Tabelle_Auswertung[[#This Row],[Bildname]]," von ",Tabelle_Auswertung[[#This Row],[Autor(in)]]),"") -> 
A33: Love.jpg | B33: 6 | C33: 5 | D33: 4 | V33: =IF(Tabelle_Auswertung[[#This Row],[Bildname]]<>"",SUM(Tabelle_Auswertung[[#This Row],[Juror 1]:[Juror 20]])," - ") -> 15 | W33: =IF(Tabelle_Auswertung[[#This Row],[Bildname]]<>"",IF(Tabelle_Auswertung[[#This Row],[Punkte]]>0,AVERAGE(Tabelle_Auswertung[[#This Row],[Juror 1]:[Juror 20]])," - ")," - ") -> 5 | X33: =IF(Tabelle_Auswertung[[#This Row],[Bildname]]<>"",IF(Tabelle_Auswertung[[#This Row],[Punkte]]>0,RANK(Tabelle_Auswertung[[#This Row],[Punkte]],[Punkte],0)," - ")," - ") -> 27 | Y33: Jan Grünler | Z33: =IF(Tabelle_Auswertung[[#This Row],[Platz]]=1,CONCATENATE(Tabelle_Auswertung[[#This Row],[Bildname]]," von ",Tabelle_Auswertung[[#This Row],[Autor(in)]]),"") ->  | AA33: =IF(Tabelle_Auswertung[[#This Row],[Platz]]=2,CONCATENATE(Tabelle_Auswertung[[#This Row],[Bildname]]," von ",Tabelle_Auswertung[[#This Row],[Autor(in)]]),"") ->  | AB33: =IF(Tabelle_Auswertung[[#This Row],[Platz]]=3,CONCATENATE(Tabelle_Auswertung[[#This Row],[Bildname]]," von ",Tabelle_Auswertung[[#This Row],[Autor(in)]]),"") ->  | AC33: =IF(Tabelle_Auswertung[[#This Row],[Platz]]=4,CONCATENATE(Tabelle_Auswertung[[#This Row],[Bildname]]," von ",Tabelle_Auswertung[[#This Row],[Autor(in)]]),"") ->  | AD33: =IF(Tabelle_Auswertung[[#This Row],[Platz]]=5,CONCATENATE(Tabelle_Auswertung[[#This Row],[Bildname]]," von ",Tabelle_Auswertung[[#This Row],[Autor(in)]]),"") ->  | AE33: =IF(Tabelle_Auswertung[[#This Row],[Platz]]=6,CONCATENATE(Tabelle_Auswertung[[#This Row],[Bildname]]," von ",Tabelle_Auswertung[[#This Row],[Autor(in)]]),"") ->  | AF33: =IF(Tabelle_Auswertung[[#This Row],[Platz]]=7,CONCATENATE(Tabelle_Auswertung[[#This Row],[Bildname]]," von ",Tabelle_Auswertung[[#This Row],[Autor(in)]]),"") ->  | AG33: =IF(Tabelle_Auswertung[[#This Row],[Platz]]=8,CONCATENATE(Tabelle_Auswertung[[#This Row],[Bildname]]," von ",Tabelle_Auswertung[[#This Row],[Autor(in)]]),"") ->  | AH33: =IF(Tabelle_Auswertung[[#This Row],[Platz]]=9,CONCATENATE(Tabelle_Auswertung[[#This Row],[Bildname]]," von ",Tabelle_Auswertung[[#This Row],[Autor(in)]]),"") ->  | AI33: =IF(Tabelle_Auswertung[[#This Row],[Platz]]=10,CONCATENATE(Tabelle_Auswertung[[#This Row],[Bildname]]," von ",Tabelle_Auswertung[[#This Row],[Autor(in)]]),"") -> 
A34: Sea the boats.jpg | B34: 3 | C34: 7 | D34: 5 | V34: =IF(Tabelle_Auswertung[[#This Row],[Bildname]]<>"",SUM(Tabelle_Auswertung[[#This Row],[Juror 1]:[Juror 20]])," - ") -> 15 | W34: =IF(Tabelle_Auswertung[[#This Row],[Bildname]]<>"",IF(Tabelle_Auswertung[[#This Row],[Punkte]]>0,AVERAGE(Tabelle_Auswertung[[#This Row],[Juror 1]:[Juror 20]])," - ")," - ") -> 5.00 | X34: =IF(Tabelle_Auswertung[[#This Row],[Bildname]]<>"",IF(Tabelle_Auswertung[[#This Row],[Punkte]]>0,RANK(Tabelle_Auswertung[[#This Row],[Punkte]],[Punkte],0)," - ")," - ") -> 27 | Y34: Jan Grünler | Z34: =IF(Tabelle_Auswertung[[#This Row],[Platz]]=1,CONCATENATE(Tabelle_Auswertung[[#This Row],[Bildname]]," von ",Tabelle_Auswertung[[#This Row],[Autor(in)]]),"") ->  | AA34: =IF(Tabelle_Auswertung[[#This Row],[Platz]]=2,CONCATENATE(Tabelle_Auswertung[[#This Row],[Bildname]]," von ",Tabelle_Auswertung[[#This Row],[Autor(in)]]),"") ->  | AB34: =IF(Tabelle_Auswertung[[#This Row],[Platz]]=3,CONCATENATE(Tabelle_Auswertung[[#This Row],[Bildname]]," von ",Tabelle_Auswertung[[#This Row],[Autor(in)]]),"") ->  | AC34: =IF(Tabelle_Auswertung[[#This Row],[Platz]]=4,CONCATENATE(Tabelle_Auswertung[[#This Row],[Bildname]]," von ",Tabelle_Auswertung[[#This Row],[Autor(in)]]),"") ->  | AD34: =IF(Tabelle_Auswertung[[#This Row],[Platz]]=5,CONCATENATE(Tabelle_Auswertung[[#This Row],[Bildname]]," von ",Tabelle_Auswertung[[#This Row],[Autor(in)]]),"") ->  | AE34: =IF(Tabelle_Auswertung[[#This Row],[Platz]]=6,CONCATENATE(Tabelle_Auswertung[[#This Row],[Bildname]]," von ",Tabelle_Auswertung[[#This Row],[Autor(in)]]),"") ->  | AF34: =IF(Tabelle_Auswertung[[#This Row],[Platz]]=7,CONCATENATE(Tabelle_Auswertung[[#This Row],[Bildname]]," von ",Tabelle_Auswertung[[#This Row],[Autor(in)]]),"") ->  | AG34: =IF(Tabelle_Auswertung[[#This Row],[Platz]]=8,CONCATENATE(Tabelle_Auswertung[[#This Row],[Bildname]]," von ",Tabelle_Auswertung[[#This Row],[Autor(in)]]),"") ->  | AH34: =IF(Tabelle_Auswertung[[#This Row],[Platz]]=9,CONCATENATE(Tabelle_Auswertung[[#This Row],[Bildname]]," von ",Tabelle_Auswertung[[#This Row],[Autor(in)]]),"") ->  | AI34: =IF(Tabelle_Auswertung[[#This Row],[Platz]]=10,CONCATENATE(Tabelle_Auswertung[[#This Row],[Bildname]]," von ",Tabelle_Auswertung[[#This Row],[Autor(in)]]),"") -> 
A35: Deejay.jpg | B35: 6 | C35: 4 | D35: 4 | V35: =IF(Tabelle_Auswertung[[#This Row],[Bildname]]<>"",SUM(Tabelle_Auswertung[[#This Row],[Juror 1]:[Juror 20]])," - ") -> 14 | W35: =IF(Tabelle_Auswertung[[#This Row],[Bildname]]<>"",IF(Tabelle_Auswertung[[#This Row],[Punkte]]>0,AVERAGE(Tabelle_Auswertung[[#This Row],[Juror 1]:[Juror 20]])," - ")," - ") -> 4.666666667 | X35: =IF(Tabelle_Auswertung[[#This Row],[Bildname]]<>"",IF(Tabelle_Auswertung[[#This Row],[Punkte]]>0,RANK(Tabelle_Auswertung[[#This Row],[Punkte]],[Punkte],0)," - ")," - ") -> 31 | Y35: Jan Grünler | Z35: =IF(Tabelle_Auswertung[[#This Row],[Platz]]=1,CONCATENATE(Tabelle_Auswertung[[#This Row],[Bildname]]," von ",Tabelle_Auswertung[[#This Row],[Autor(in)]]),"") ->  | AA35: =IF(Tabelle_Auswertung[[#This Row],[Platz]]=2,CONCATENATE(Tabelle_Auswertung[[#This Row],[Bildname]]," von ",Tabelle_Auswertung[[#This Row],[Autor(in)]]),"") ->  | AB35: =IF(Tabelle_Auswertung[[#This Row],[Platz]]=3,CONCATENATE(Tabelle_Auswertung[[#This Row],[Bildname]]," von ",Tabelle_Auswertung[[#This Row],[Autor(in)]]),"") ->  | AC35: =IF(Tabelle_Auswertung[[#This Row],[Platz]]=4,CONCATENATE(Tabelle_Auswertung[[#This Row],[Bildname]]," von ",Tabelle_Auswertung[[#This Row],[Autor(in)]]),"") ->  | AD35: =IF(Tabelle_Auswertung[[#This Row],[Platz]]=5,CONCATENATE(Tabelle_Auswertung[[#This Row],[Bildname]]," von ",Tabelle_Auswertung[[#This Row],[Autor(in)]]),"") ->  | AE35: =IF(Tabelle_Auswertung[[#This Row],[Platz]]=6,CONCATENATE(Tabelle_Auswertung[[#This Row],[Bildname]]," von ",Tabelle_Auswertung[[#This Row],[Autor(in)]]),"") ->  | AF35: =IF(Tabelle_Auswertung[[#This Row],[Platz]]=7,CONCATENATE(Tabelle_Auswertung[[#This Row],[Bildname]]," von ",Tabelle_Auswertung[[#This Row],[Autor(in)]]),"") ->  | AG35: =IF(Tabelle_Auswertung[[#This Row],[Platz]]=8,CONCATENATE(Tabelle_Auswertung[[#This Row],[Bildname]]," von ",Tabelle_Auswertung[[#This Row],[Autor(in)]]),"") ->  | AH35: =IF(Tabelle_Auswertung[[#This Row],[Platz]]=9,CONCATENATE(Tabelle_Auswertung[[#This Row],[Bildname]]," von ",Tabelle_Auswertung[[#This Row],[Autor(in)]]),"") ->  | AI35: =IF(Tabelle_Auswertung[[#This Row],[Platz]]=10,CONCATENATE(Tabelle_Auswertung[[#This Row],[Bildname]]," von ",Tabelle_Auswertung[[#This Row],[Autor(in)]]),"") -> 
A36: Face.jpg | B36: 5 | C36: 5 | D36: 4 | V36: =IF(Tabelle_Auswertung[[#This Row],[Bildname]]<>"",SUM(Tabelle_Auswertung[[#This Row],[Juror 1]:[Juror 20]])," - ") -> 14 | W36: =IF(Tabelle_Auswertung[[#This Row],[Bildname]]<>"",IF(Tabelle_Auswertung[[#This Row],[Punkte]]>0,AVERAGE(Tabelle_Auswertung[[#This Row],[Juror 1]:[Juror 20]])," - ")," - ") -> 4.67 | X36: =IF(Tabelle_Auswertung[[#This Row],[Bildname]]<>"",IF(Tabelle_Auswertung[[#This Row],[Punkte]]>0,RANK(Tabelle_Auswertung[[#This Row],[Punkte]],[Punkte],0)," - ")," - ") -> 31 | Y36: Andreas Toltz | Z36: =IF(Tabelle_Auswertung[[#This Row],[Platz]]=1,CONCATENATE(Tabelle_Auswertung[[#This Row],[Bildname]]," von ",Tabelle_Auswertung[[#This Row],[Autor(in)]]),"") ->  | AA36: =IF(Tabelle_Auswertung[[#This Row],[Platz]]=2,CONCATENATE(Tabelle_Auswertung[[#This Row],[Bildname]]," von ",Tabelle_Auswertung[[#This Row],[Autor(in)]]),"") ->  | AB36: =IF(Tabelle_Auswertung[[#This Row],[Platz]]=3,CONCATENATE(Tabelle_Auswertung[[#This Row],[Bildname]]," von ",Tabelle_Auswertung[[#This Row],[Autor(in)]]),"") ->  | AC36: =IF(Tabelle_Auswertung[[#This Row],[Platz]]=4,CONCATENATE(Tabelle_Auswertung[[#This Row],[Bildname]]," von ",Tabelle_Auswertung[[#This Row],[Autor(in)]]),"") ->  | AD36: =IF(Tabelle_Auswertung[[#This Row],[Platz]]=5,CONCATENATE(Tabelle_Auswertung[[#This Row],[Bildname]]," von ",Tabelle_Auswertung[[#This Row],[Autor(in)]]),"") ->  | AE36: =IF(Tabelle_Auswertung[[#This Row],[Platz]]=6,CONCATENATE(Tabelle_Auswertung[[#This Row],[Bildname]]," von ",Tabelle_Auswertung[[#This Row],[Autor(in)]]),"") ->  | AF36: =IF(Tabelle_Auswertung[[#This Row],[Platz]]=7,CONCATENATE(Tabelle_Auswertung[[#This Row],[Bildname]]," von ",Tabelle_Auswertung[[#This Row],[Autor(in)]]),"") ->  | AG36: =IF(Tabelle_Auswertung[[#This Row],[Platz]]=8,CONCATENATE(Tabelle_Auswertung[[#This Row],[Bildname]]," von ",Tabelle_Auswertung[[#This Row],[Autor(in)]]),"") ->  | AH36: =IF(Tabelle_Auswertung[[#This Row],[Platz]]=9,CONCATENATE(Tabelle_Auswertung[[#This Row],[Bildname]]," von ",Tabelle_Auswertung[[#This Row],[Autor(in)]]),"") ->  | AI36: =IF(Tabelle_Auswertung[[#This Row],[Platz]]=10,CONCATENATE(Tabelle_Auswertung[[#This Row],[Bildname]]," von ",Tabelle_Auswertung[[#This Row],[Autor(in)]]),"") -> 
A37: plopp.jpg | B37: 7 | C37: 4 | D37: 3 | V37: =IF(Tabelle_Auswertung[[#This Row],[Bildname]]<>"",SUM(Tabelle_Auswertung[[#This Row],[Juror 1]:[Juror 20]])," - ") -> 14 | W37: =IF(Tabelle_Auswertung[[#This Row],[Bildname]]<>"",IF(Tabelle_Auswertung[[#This Row],[Punkte]]>0,AVERAGE(Tabelle_Auswertung[[#This Row],[Juror 1]:[Juror 20]])," - ")," - ") -> 4.67 | X37: =IF(Tabelle_Auswertung[[#This Row],[Bildname]]<>"",IF(Tabelle_Auswertung[[#This Row],[Punkte]]>0,RANK(Tabelle_Auswertung[[#This Row],[Punkte]],[Punkte],0)," - ")," - ") -> 31 | Y37: Gerhard Rieß | Z37: =IF(Tabelle_Auswertung[[#This Row],[Platz]]=1,CONCATENATE(Tabelle_Auswertung[[#This Row],[Bildname]]," von ",Tabelle_Auswertung[[#This Row],[Autor(in)]]),"") ->  | AA37: =IF(Tabelle_Auswertung[[#This Row],[Platz]]=2,CONCATENATE(Tabelle_Auswertung[[#This Row],[Bildname]]," von ",Tabelle_Auswertung[[#This Row],[Autor(in)]]),"") ->  | AB37: =IF(Tabelle_Auswertung[[#This Row],[Platz]]=3,CONCATENATE(Tabelle_Auswertung[[#This Row],[Bildname]]," von ",Tabelle_Auswertung[[#This Row],[Autor(in)]]),"") ->  | AC37: =IF(Tabelle_Auswertung[[#This Row],[Platz]]=4,CONCATENATE(Tabelle_Auswertung[[#This Row],[Bildname]]," von ",Tabelle_Auswertung[[#This Row],[Autor(in)]]),"") ->  | AD37: =IF(Tabelle_Auswertung[[#This Row],[Platz]]=5,CONCATENATE(Tabelle_Auswertung[[#This Row],[Bildname]]," von ",Tabelle_Auswertung[[#This Row],[Autor(in)]]),"") ->  | AE37: =IF(Tabelle_Auswertung[[#This Row],[Platz]]=6,CONCATENATE(Tabelle_Auswertung[[#This Row],[Bildname]]," von ",Tabelle_Auswertung[[#This Row],[Autor(in)]]),"") ->  | AF37: =IF(Tabelle_Auswertung[[#This Row],[Platz]]=7,CONCATENATE(Tabelle_Auswertung[[#This Row],[Bildname]]," von ",Tabelle_Auswertung[[#This Row],[Autor(in)]]),"") ->  | AG37: =IF(Tabelle_Auswertung[[#This Row],[Platz]]=8,CONCATENATE(Tabelle_Auswertung[[#This Row],[Bildname]]," von ",Tabelle_Auswertung[[#This Row],[Autor(in)]]),"") ->  | AH37: =IF(Tabelle_Auswertung[[#This Row],[Platz]]=9,CONCATENATE(Tabelle_Auswertung[[#This Row],[Bildname]]," von ",Tabelle_Auswertung[[#This Row],[Autor(in)]]),"") ->  | AI37: =IF(Tabelle_Auswertung[[#This Row],[Platz]]=10,CONCATENATE(Tabelle_Auswertung[[#This Row],[Bildname]]," von ",Tabelle_Auswertung[[#This Row],[Autor(in)]]),"") -> 
A38: Guitar.jpg | B38: 4 | C38: 4 | D38: 4 | V38: =IF(Tabelle_Auswertung[[#This Row],[Bildname]]<>"",SUM(Tabelle_Auswertung[[#This Row],[Juror 1]:[Juror 20]])," - ") -> 12 | W38: =IF(Tabelle_Auswertung[[#This Row],[Bildname]]<>"",IF(Tabelle_Auswertung[[#This Row],[Punkte]]>0,AVERAGE(Tabelle_Auswertung[[#This Row],[Juror 1]:[Juror 20]])," - ")," - ") -> 4.00 | X38: =IF(Tabelle_Auswertung[[#This Row],[Bildname]]<>"",IF(Tabelle_Auswertung[[#This Row],[Punkte]]>0,RANK(Tabelle_Auswertung[[#This Row],[Punkte]],[Punkte],0)," - ")," - ") -> 34 | Y38: Jan Grünler | Z38: =IF(Tabelle_Auswertung[[#This Row],[Platz]]=1,CONCATENATE(Tabelle_Auswertung[[#This Row],[Bildname]]," von ",Tabelle_Auswertung[[#This Row],[Autor(in)]]),"") ->  | AA38: =IF(Tabelle_Auswertung[[#This Row],[Platz]]=2,CONCATENATE(Tabelle_Auswertung[[#This Row],[Bildname]]," von ",Tabelle_Auswertung[[#This Row],[Autor(in)]]),"") ->  | AB38: =IF(Tabelle_Auswertung[[#This Row],[Platz]]=3,CONCATENATE(Tabelle_Auswertung[[#This Row],[Bildname]]," von ",Tabelle_Auswertung[[#This Row],[Autor(in)]]),"") ->  | AC38: =IF(Tabelle_Auswertung[[#This Row],[Platz]]=4,CONCATENATE(Tabelle_Auswertung[[#This Row],[Bildname]]," von ",Tabelle_Auswertung[[#This Row],[Autor(in)]]),"") ->  | AD38: =IF(Tabelle_Auswertung[[#This Row],[Platz]]=5,CONCATENATE(Tabelle_Auswertung[[#This Row],[Bildname]]," von ",Tabelle_Auswertung[[#This Row],[Autor(in)]]),"") ->  | AE38: =IF(Tabelle_Auswertung[[#This Row],[Platz]]=6,CONCATENATE(Tabelle_Auswertung[[#This Row],[Bildname]]," von ",Tabelle_Auswertung[[#This Row],[Autor(in)]]),"") ->  | AF38: =IF(Tabelle_Auswertung[[#This Row],[Platz]]=7,CONCATENATE(Tabelle_Auswertung[[#This Row],[Bildname]]," von ",Tabelle_Auswertung[[#This Row],[Autor(in)]]),"") ->  | AG38: =IF(Tabelle_Auswertung[[#This Row],[Platz]]=8,CONCATENATE(Tabelle_Auswertung[[#This Row],[Bildname]]," von ",Tabelle_Auswertung[[#This Row],[Autor(in)]]),"") ->  | AH38: =IF(Tabelle_Auswertung[[#This Row],[Platz]]=9,CONCATENATE(Tabelle_Auswertung[[#This Row],[Bildname]]," von ",Tabelle_Auswertung[[#This Row],[Autor(in)]]),"") ->  | AI38: =IF(Tabelle_Auswertung[[#This Row],[Platz]]=10,CONCATENATE(Tabelle_Auswertung[[#This Row],[Bildname]]," von ",Tabelle_Auswertung[[#This Row],[Autor(in)]]),"") -> 
A39: nile_cruise.jpg | B39: 3 | C39: 4 | D39: 5 | V39: =IF(Tabelle_Auswertung[[#This Row],[Bildname]]<>"",SUM(Tabelle_Auswertung[[#This Row],[Juror 1]:[Juror 20]])," - ") -> 12 | W39: =IF(Tabelle_Auswertung[[#This Row],[Bildname]]<>"",IF(Tabelle_Auswertung[[#This Row],[Punkte]]>0,AVERAGE(Tabelle_Auswertung[[#This Row],[Juror 1]:[Juror 20]])," - ")," - ") -> 4.00 | X39: =IF(Tabelle_Auswertung[[#This Row],[Bildname]]<>"",IF(Tabelle_Auswertung[[#This Row],[Punkte]]>0,RANK(Tabelle_Auswertung[[#This Row],[Punkte]],[Punkte],0)," - ")," - ") -> 34 | Y39: Chris Finsterer | Z39: =IF(Tabelle_Auswertung[[#This Row],[Platz]]=1,CONCATENATE(Tabelle_Auswertung[[#This Row],[Bildname]]," von ",Tabelle_Auswertung[[#This Row],[Autor(in)]]),"") ->  | AA39: =IF(Tabelle_Auswertung[[#This Row],[Platz]]=2,CONCATENATE(Tabelle_Auswertung[[#This Row],[Bildname]]," von ",Tabelle_Auswertung[[#This Row],[Autor(in)]]),"") ->  | AB39: =IF(Tabelle_Auswertung[[#This Row],[Platz]]=3,CONCATENATE(Tabelle_Auswertung[[#This Row],[Bildname]]," von ",Tabelle_Auswertung[[#This Row],[Autor(in)]]),"") ->  | AC39: =IF(Tabelle_Auswertung[[#This Row],[Platz]]=4,CONCATENATE(Tabelle_Auswertung[[#This Row],[Bildname]]," von ",Tabelle_Auswertung[[#This Row],[Autor(in)]]),"") ->  | AD39: =IF(Tabelle_Auswertung[[#This Row],[Platz]]=5,CONCATENATE(Tabelle_Auswertung[[#This Row],[Bildname]]," von ",Tabelle_Auswertung[[#This Row],[Autor(in)]]),"") ->  | AE39: =IF(Tabelle_Auswertung[[#This Row],[Platz]]=6,CONCATENATE(Tabelle_Auswertung[[#This Row],[Bildname]]," von ",Tabelle_Auswertung[[#This Row],[Autor(in)]]),"") ->  | AF39: =IF(Tabelle_Auswertung[[#This Row],[Platz]]=7,CONCATENATE(Tabelle_Auswertung[[#This Row],[Bildname]]," von ",Tabelle_Auswertung[[#This Row],[Autor(in)]]),"") ->  | AG39: =IF(Tabelle_Auswertung[[#This Row],[Platz]]=8,CONCATENATE(Tabelle_Auswertung[[#This Row],[Bildname]]," von ",Tabelle_Auswertung[[#This Row],[Autor(in)]]),"") ->  | AH39: =IF(Tabelle_Auswertung[[#This Row],[Platz]]=9,CONCATENATE(Tabelle_Auswertung[[#This Row],[Bildname]]," von ",Tabelle_Auswertung[[#This Row],[Autor(in)]]),"") ->  | AI39: =IF(Tabelle_Auswertung[[#This Row],[Platz]]=10,CONCATENATE(Tabelle_Auswertung[[#This Row],[Bildname]]," von ",Tabelle_Auswertung[[#This Row],[Autor(in)]]),"") -> 
A40: Gruene Nacht.jpg | B40: 5 | C40: 4 | D40: 2 | V40: =IF(Tabelle_Auswertung[[#This Row],[Bildname]]<>"",SUM(Tabelle_Auswertung[[#This Row],[Juror 1]:[Juror 20]])," - ") -> 11 | W40: =IF(Tabelle_Auswertung[[#This Row],[Bildname]]<>"",IF(Tabelle_Auswertung[[#This Row],[Punkte]]>0,AVERAGE(Tabelle_Auswertung[[#This Row],[Juror 1]:[Juror 20]])," - ")," - ") -> 3.67 | X40: =IF(Tabelle_Auswertung[[#This Row],[Bildname]]<>"",IF(Tabelle_Auswertung[[#This Row],[Punkte]]>0,RANK(Tabelle_Auswertung[[#This Row],[Punkte]],[Punkte],0)," - ")," - ") -> 36 | Y40: Gert Häberlein | Z40: =IF(Tabelle_Auswertung[[#This Row],[Platz]]=1,CONCATENATE(Tabelle_Auswertung[[#This Row],[Bildname]]," von ",Tabelle_Auswertung[[#This Row],[Autor(in)]]),"") ->  | AA40: =IF(Tabelle_Auswertung[[#This Row],[Platz]]=2,CONCATENATE(Tabelle_Auswertung[[#This Row],[Bildname]]," von ",Tabelle_Auswertung[[#This Row],[Autor(in)]]),"") ->  | AB40: =IF(Tabelle_Auswertung[[#This Row],[Platz]]=3,CONCATENATE(Tabelle_Auswertung[[#This Row],[Bildname]]," von ",Tabelle_Auswertung[[#This Row],[Autor(in)]]),"") ->  | AC40: =IF(Tabelle_Auswertung[[#This Row],[Platz]]=4,CONCATENATE(Tabelle_Auswertung[[#This Row],[Bildname]]," von ",Tabelle_Auswertung[[#This Row],[Autor(in)]]),"") ->  | AD40: =IF(Tabelle_Auswertung[[#This Row],[Platz]]=5,CONCATENATE(Tabelle_Auswertung[[#This Row],[Bildname]]," von ",Tabelle_Auswertung[[#This Row],[Autor(in)]]),"") ->  | AE40: =IF(Tabelle_Auswertung[[#This Row],[Platz]]=6,CONCATENATE(Tabelle_Auswertung[[#This Row],[Bildname]]," von ",Tabelle_Auswertung[[#This Row],[Autor(in)]]),"") ->  | AF40: =IF(Tabelle_Auswertung[[#This Row],[Platz]]=7,CONCATENATE(Tabelle_Auswertung[[#This Row],[Bildname]]," von ",Tabelle_Auswertung[[#This Row],[Autor(in)]]),"") ->  | AG40: =IF(Tabelle_Auswertung[[#This Row],[Platz]]=8,CONCATENATE(Tabelle_Auswertung[[#This Row],[Bildname]]," von ",Tabelle_Auswertung[[#This Row],[Autor(in)]]),"") ->  | AH40: =IF(Tabelle_Auswertung[[#This Row],[Platz]]=9,CONCATENATE(Tabelle_Auswertung[[#This Row],[Bildname]]," von ",Tabelle_Auswertung[[#This Row],[Autor(in)]]),"") ->  | AI40: =IF(Tabelle_Auswertung[[#This Row],[Platz]]=10,CONCATENATE(Tabelle_Auswertung[[#This Row],[Bildname]]," von ",Tabelle_Auswertung[[#This Row],[Autor(in)]]),"") -> 
V41: =IF(Tabelle_Auswertung[[#This Row],[Bildname]]<>"",SUM(Tabelle_Auswertung[[#This Row],[Juror 1]:[Juror 20]])," - ") -> - | W41: =IF(Tabelle_Auswertung[[#This Row],[Bildname]]<>"",IF(Tabelle_Auswertung[[#This Row],[Punkte]]>0,AVERAGE(Tabelle_Auswertung[[#This Row],[Juror 1]:[Juror 20]])," - ")," - ") -> - | X41: =IF(Tabelle_Auswertung[[#This Row],[Bildname]]<>"",IF(Tabelle_Auswertung[[#This Row],[Punkte]]>0,RANK(Tabelle_Auswertung[[#This Row],[Punkte]],[Punkte],0)," - ")," - ") -> - | Y41: - - - | Z41: =IF(Tabelle_Auswertung[[#This Row],[Platz]]=1,CONCATENATE(Tabelle_Auswertung[[#This Row],[Bildname]]," von ",Tabelle_Auswertung[[#This Row],[Autor(in)]]),"") ->  | AA41: =IF(Tabelle_Auswertung[[#This Row],[Platz]]=2,CONCATENATE(Tabelle_Auswertung[[#This Row],[Bildname]]," von ",Tabelle_Auswertung[[#This Row],[Autor(in)]]),"") ->  | AB41: =IF(Tabelle_Auswertung[[#This Row],[Platz]]=3,CONCATENATE(Tabelle_Auswertung[[#This Row],[Bildname]]," von ",Tabelle_Auswertung[[#This Row],[Autor(in)]]),"") ->  | AC41: =IF(Tabelle_Auswertung[[#This Row],[Platz]]=4,CONCATENATE(Tabelle_Auswertung[[#This Row],[Bildname]]," von ",Tabelle_Auswertung[[#This Row],[Autor(in)]]),"") ->  | AD41: =IF(Tabelle_Auswertung[[#This Row],[Platz]]=5,CONCATENATE(Tabelle_Auswertung[[#This Row],[Bildname]]," von ",Tabelle_Auswertung[[#This Row],[Autor(in)]]),"") ->  | AE41: =IF(Tabelle_Auswertung[[#This Row],[Platz]]=6,CONCATENATE(Tabelle_Auswertung[[#This Row],[Bildname]]," von ",Tabelle_Auswertung[[#This Row],[Autor(in)]]),"") ->  | AF41: =IF(Tabelle_Auswertung[[#This Row],[Platz]]=7,CONCATENATE(Tabelle_Auswertung[[#This Row],[Bildname]]," von ",Tabelle_Auswertung[[#This Row],[Autor(in)]]),"") ->  | AG41: =IF(Tabelle_Auswertung[[#This Row],[Platz]]=8,CONCATENATE(Tabelle_Auswertung[[#This Row],[Bildname]]," von ",Tabelle_Auswertung[[#This Row],[Autor(in)]]),"") ->  | AH41: =IF(Tabelle_Auswertung[[#This Row],[Platz]]=9,CONCATENATE(Tabelle_Auswertung[[#This Row],[Bildname]]," von ",Tabelle_Auswertung[[#This Row],[Autor(in)]]),"") ->  | AI41: =IF(Tabelle_Auswertung[[#This Row],[Platz]]=10,CONCATENATE(Tabelle_Auswertung[[#This Row],[Bildname]]," von ",Tabelle_Auswertung[[#This Row],[Autor(in)]]),"") -> 
V42: =IF(Tabelle_Auswertung[[#This Row],[Bildname]]<>"",SUM(Tabelle_Auswertung[[#This Row],[Juror 1]:[Juror 20]])," - ") -> - | W42: =IF(Tabelle_Auswertung[[#This Row],[Bildname]]<>"",IF(Tabelle_Auswertung[[#This Row],[Punkte]]>0,AVERAGE(Tabelle_Auswertung[[#This Row],[Juror 1]:[Juror 20]])," - ")," - ") -> - | X42: =IF(Tabelle_Auswertung[[#This Row],[Bildname]]<>"",IF(Tabelle_Auswertung[[#This Row],[Punkte]]>0,RANK(Tabelle_Auswertung[[#This Row],[Punkte]],[Punkte],0)," - ")," - ") -> - | Y42: - - - | Z42: =IF(Tabelle_Auswertung[[#This Row],[Platz]]=1,CONCATENATE(Tabelle_Auswertung[[#This Row],[Bildname]]," von ",Tabelle_Auswertung[[#This Row],[Autor(in)]]),"") ->  | AA42: =IF(Tabelle_Auswertung[[#This Row],[Platz]]=2,CONCATENATE(Tabelle_Auswertung[[#This Row],[Bildname]]," von ",Tabelle_Auswertung[[#This Row],[Autor(in)]]),"") ->  | AB42: =IF(Tabelle_Auswertung[[#This Row],[Platz]]=3,CONCATENATE(Tabelle_Auswertung[[#This Row],[Bildname]]," von ",Tabelle_Auswertung[[#This Row],[Autor(in)]]),"") ->  | AC42: =IF(Tabelle_Auswertung[[#This Row],[Platz]]=4,CONCATENATE(Tabelle_Auswertung[[#This Row],[Bildname]]," von ",Tabelle_Auswertung[[#This Row],[Autor(in)]]),"") ->  | AD42: =IF(Tabelle_Auswertung[[#This Row],[Platz]]=5,CONCATENATE(Tabelle_Auswertung[[#This Row],[Bildname]]," von ",Tabelle_Auswertung[[#This Row],[Autor(in)]]),"") ->  | AE42: =IF(Tabelle_Auswertung[[#This Row],[Platz]]=6,CONCATENATE(Tabelle_Auswertung[[#This Row],[Bildname]]," von ",Tabelle_Auswertung[[#This Row],[Autor(in)]]),"") ->  | AF42: =IF(Tabelle_Auswertung[[#This Row],[Platz]]=7,CONCATENATE(Tabelle_Auswertung[[#This Row],[Bildname]]," von ",Tabelle_Auswertung[[#This Row],[Autor(in)]]),"") ->  | AG42: =IF(Tabelle_Auswertung[[#This Row],[Platz]]=8,CONCATENATE(Tabelle_Auswertung[[#This Row],[Bildname]]," von ",Tabelle_Auswertung[[#This Row],[Autor(in)]]),"") ->  | AH42: =IF(Tabelle_Auswertung[[#This Row],[Platz]]=9,CONCATENATE(Tabelle_Auswertung[[#This Row],[Bildname]]," von ",Tabelle_Auswertung[[#This Row],[Autor(in)]]),"") ->  | AI42: =IF(Tabelle_Auswertung[[#This Row],[Platz]]=10,CONCATENATE(Tabelle_Auswertung[[#This Row],[Bildname]]," von ",Tabelle_Auswertung[[#This Row],[Autor(in)]]),"") -> 
V43: =IF(Tabelle_Auswertung[[#This Row],[Bildname]]<>"",SUM(Tabelle_Auswertung[[#This Row],[Juror 1]:[Juror 20]])," - ") -> - | W43: =IF(Tabelle_Auswertung[[#This Row],[Bildname]]<>"",IF(Tabelle_Auswertung[[#This Row],[Punkte]]>0,AVERAGE(Tabelle_Auswertung[[#This Row],[Juror 1]:[Juror 20]])," - ")," - ") -> - | X43: =IF(Tabelle_Auswertung[[#This Row],[Bildname]]<>"",IF(Tabelle_Auswertung[[#This Row],[Punkte]]>0,RANK(Tabelle_Auswertung[[#This Row],[Punkte]],[Punkte],0)," - ")," - ") -> - | Y43: - - - | Z43: =IF(Tabelle_Auswertung[[#This Row],[Platz]]=1,CONCATENATE(Tabelle_Auswertung[[#This Row],[Bildname]]," von ",Tabelle_Auswertung[[#This Row],[Autor(in)]]),"") ->  | AA43: =IF(Tabelle_Auswertung[[#This Row],[Platz]]=2,CONCATENATE(Tabelle_Auswertung[[#This Row],[Bildname]]," von ",Tabelle_Auswertung[[#This Row],[Autor(in)]]),"") ->  | AB43: =IF(Tabelle_Auswertung[[#This Row],[Platz]]=3,CONCATENATE(Tabelle_Auswertung[[#This Row],[Bildname]]," von ",Tabelle_Auswertung[[#This Row],[Autor(in)]]),"") ->  | AC43: =IF(Tabelle_Auswertung[[#This Row],[Platz]]=4,CONCATENATE(Tabelle_Auswertung[[#This Row],[Bildname]]," von ",Tabelle_Auswertung[[#This Row],[Autor(in)]]),"") ->  | AD43: =IF(Tabelle_Auswertung[[#This Row],[Platz]]=5,CONCATENATE(Tabelle_Auswertung[[#This Row],[Bildname]]," von ",Tabelle_Auswertung[[#This Row],[Autor(in)]]),"") ->  | AE43: =IF(Tabelle_Auswertung[[#This Row],[Platz]]=6,CONCATENATE(Tabelle_Auswertung[[#This Row],[Bildname]]," von ",Tabelle_Auswertung[[#This Row],[Autor(in)]]),"") ->  | AF43: =IF(Tabelle_Auswertung[[#This Row],[Platz]]=7,CONCATENATE(Tabelle_Auswertung[[#This Row],[Bildname]]," von ",Tabelle_Auswertung[[#This Row],[Autor(in)]]),"") ->  | AG43: =IF(Tabelle_Auswertung[[#This Row],[Platz]]=8,CONCATENATE(Tabelle_Auswertung[[#This Row],[Bildname]]," von ",Tabelle_Auswertung[[#This Row],[Autor(in)]]),"") ->  | AH43: =IF(Tabelle_Auswertung[[#This Row],[Platz]]=9,CONCATENATE(Tabelle_Auswertung[[#This Row],[Bildname]]," von ",Tabelle_Auswertung[[#This Row],[Autor(in)]]),"") ->  | AI43: =IF(Tabelle_Auswertung[[#This Row],[Platz]]=10,CONCATENATE(Tabelle_Auswertung[[#This Row],[Bildname]]," von ",Tabelle_Auswertung[[#This Row],[Autor(in)]]),"") -> 
V44: =IF(Tabelle_Auswertung[[#This Row],[Bildname]]<>"",SUM(Tabelle_Auswertung[[#This Row],[Juror 1]:[Juror 20]])," - ") -> - | W44: =IF(Tabelle_Auswertung[[#This Row],[Bildname]]<>"",IF(Tabelle_Auswertung[[#This Row],[Punkte]]>0,AVERAGE(Tabelle_Auswertung[[#This Row],[Juror 1]:[Juror 20]])," - ")," - ") -> - | X44: =IF(Tabelle_Auswertung[[#This Row],[Bildname]]<>"",IF(Tabelle_Auswertung[[#This Row],[Punkte]]>0,RANK(Tabelle_Auswertung[[#This Row],[Punkte]],[Punkte],0)," - ")," - ") -> - | Y44: - - - | Z44: =IF(Tabelle_Auswertung[[#This Row],[Platz]]=1,CONCATENATE(Tabelle_Auswertung[[#This Row],[Bildname]]," von ",Tabelle_Auswertung[[#This Row],[Autor(in)]]),"") ->  | AA44: =IF(Tabelle_Auswertung[[#This Row],[Platz]]=2,CONCATENATE(Tabelle_Auswertung[[#This Row],[Bildname]]," von ",Tabelle_Auswertung[[#This Row],[Autor(in)]]),"") ->  | AB44: =IF(Tabelle_Auswertung[[#This Row],[Platz]]=3,CONCATENATE(Tabelle_Auswertung[[#This Row],[Bildname]]," von ",Tabelle_Auswertung[[#This Row],[Autor(in)]]),"") ->  | AC44: =IF(Tabelle_Auswertung[[#This Row],[Platz]]=4,CONCATENATE(Tabelle_Auswertung[[#This Row],[Bildname]]," von ",Tabelle_Auswertung[[#This Row],[Autor(in)]]),"") ->  | AD44: =IF(Tabelle_Auswertung[[#This Row],[Platz]]=5,CONCATENATE(Tabelle_Auswertung[[#This Row],[Bildname]]," von ",Tabelle_Auswertung[[#This Row],[Autor(in)]]),"") ->  | AE44: =IF(Tabelle_Auswertung[[#This Row],[Platz]]=6,CONCATENATE(Tabelle_Auswertung[[#This Row],[Bildname]]," von ",Tabelle_Auswertung[[#This Row],[Autor(in)]]),"") ->  | AF44: =IF(Tabelle_Auswertung[[#This Row],[Platz]]=7,CONCATENATE(Tabelle_Auswertung[[#This Row],[Bildname]]," von ",Tabelle_Auswertung[[#This Row],[Autor(in)]]),"") ->  | AG44: =IF(Tabelle_Auswertung[[#This Row],[Platz]]=8,CONCATENATE(Tabelle_Auswertung[[#This Row],[Bildname]]," von ",Tabelle_Auswertung[[#This Row],[Autor(in)]]),"") ->  | AH44: =IF(Tabelle_Auswertung[[#This Row],[Platz]]=9,CONCATENATE(Tabelle_Auswertung[[#This Row],[Bildname]]," von ",Tabelle_Auswertung[[#This Row],[Autor(in)]]),"") ->  | AI44: =IF(Tabelle_Auswertung[[#This Row],[Platz]]=10,CONCATENATE(Tabelle_Auswertung[[#This Row],[Bildname]]," von ",Tabelle_Auswertung[[#This Row],[Autor(in)]]),"") -> 
V45: =IF(Tabelle_Auswertung[[#This Row],[Bildname]]<>"",SUM(Tabelle_Auswertung[[#This Row],[Juror 1]:[Juror 20]])," - ") -> - | W45: =IF(Tabelle_Auswertung[[#This Row],[Bildname]]<>"",IF(Tabelle_Auswertung[[#This Row],[Punkte]]>0,AVERAGE(Tabelle_Auswertung[[#This Row],[Juror 1]:[Juror 20]])," - ")," - ") -> - | X45: =IF(Tabelle_Auswertung[[#This Row],[Bildname]]<>"",IF(Tabelle_Auswertung[[#This Row],[Punkte]]>0,RANK(Tabelle_Auswertung[[#This Row],[Punkte]],[Punkte],0)," - ")," - ") -> - | Y45: - - - | Z45: =IF(Tabelle_Auswertung[[#This Row],[Platz]]=1,CONCATENATE(Tabelle_Auswertung[[#This Row],[Bildname]]," von ",Tabelle_Auswertung[[#This Row],[Autor(in)]]),"") ->  | AA45: =IF(Tabelle_Auswertung[[#This Row],[Platz]]=2,CONCATENATE(Tabelle_Auswertung[[#This Row],[Bildname]]," von ",Tabelle_Auswertung[[#This Row],[Autor(in)]]),"") ->  | AB45: =IF(Tabelle_Auswertung[[#This Row],[Platz]]=3,CONCATENATE(Tabelle_Auswertung[[#This Row],[Bildname]]," von ",Tabelle_Auswertung[[#This Row],[Autor(in)]]),"") ->  | AC45: =IF(Tabelle_Auswertung[[#This Row],[Platz]]=4,CONCATENATE(Tabelle_Auswertung[[#This Row],[Bildname]]," von ",Tabelle_Auswertung[[#This Row],[Autor(in)]]),"") ->  | AD45: =IF(Tabelle_Auswertung[[#This Row],[Platz]]=5,CONCATENATE(Tabelle_Auswertung[[#This Row],[Bildname]]," von ",Tabelle_Auswertung[[#This Row],[Autor(in)]]),"") ->  | AE45: =IF(Tabelle_Auswertung[[#This Row],[Platz]]=6,CONCATENATE(Tabelle_Auswertung[[#This Row],[Bildname]]," von ",Tabelle_Auswertung[[#This Row],[Autor(in)]]),"") ->  | AF45: =IF(Tabelle_Auswertung[[#This Row],[Platz]]=7,CONCATENATE(Tabelle_Auswertung[[#This Row],[Bildname]]," von ",Tabelle_Auswertung[[#This Row],[Autor(in)]]),"") ->  | AG45: =IF(Tabelle_Auswertung[[#This Row],[Platz]]=8,CONCATENATE(Tabelle_Auswertung[[#This Row],[Bildname]]," von ",Tabelle_Auswertung[[#This Row],[Autor(in)]]),"") ->  | AH45: =IF(Tabelle_Auswertung[[#This Row],[Platz]]=9,CONCATENATE(Tabelle_Auswertung[[#This Row],[Bildname]]," von ",Tabelle_Auswertung[[#This Row],[Autor(in)]]),"") ->  | AI45: =IF(Tabelle_Auswertung[[#This Row],[Platz]]=10,CONCATENATE(Tabelle_Auswertung[[#This Row],[Bildname]]," von ",Tabelle_Auswertung[[#This Row],[Autor(in)]]),"") -> 
V46: =IF(Tabelle_Auswertung[[#This Row],[Bildname]]<>"",SUM(Tabelle_Auswertung[[#This Row],[Juror 1]:[Juror 20]])," - ") -> - | W46: =IF(Tabelle_Auswertung[[#This Row],[Bildname]]<>"",IF(Tabelle_Auswertung[[#This Row],[Punkte]]>0,AVERAGE(Tabelle_Auswertung[[#This Row],[Juror 1]:[Juror 20]])," - ")," - ") -> - | X46: =IF(Tabelle_Auswertung[[#This Row],[Bildname]]<>"",IF(Tabelle_Auswertung[[#This Row],[Punkte]]>0,RANK(Tabelle_Auswertung[[#This Row],[Punkte]],[Punkte],0)," - ")," - ") -> - | Y46: - - - | Z46: =IF(Tabelle_Auswertung[[#This Row],[Platz]]=1,CONCATENATE(Tabelle_Auswertung[[#This Row],[Bildname]]," von ",Tabelle_Auswertung[[#This Row],[Autor(in)]]),"") ->  | AA46: =IF(Tabelle_Auswertung[[#This Row],[Platz]]=2,CONCATENATE(Tabelle_Auswertung[[#This Row],[Bildname]]," von ",Tabelle_Auswertung[[#This Row],[Autor(in)]]),"") ->  | AB46: =IF(Tabelle_Auswertung[[#This Row],[Platz]]=3,CONCATENATE(Tabelle_Auswertung[[#This Row],[Bildname]]," von ",Tabelle_Auswertung[[#This Row],[Autor(in)]]),"") ->  | AC46: =IF(Tabelle_Auswertung[[#This Row],[Platz]]=4,CONCATENATE(Tabelle_Auswertung[[#This Row],[Bildname]]," von ",Tabelle_Auswertung[[#This Row],[Autor(in)]]),"") ->  | AD46: =IF(Tabelle_Auswertung[[#This Row],[Platz]]=5,CONCATENATE(Tabelle_Auswertung[[#This Row],[Bildname]]," von ",Tabelle_Auswertung[[#This Row],[Autor(in)]]),"") ->  | AE46: =IF(Tabelle_Auswertung[[#This Row],[Platz]]=6,CONCATENATE(Tabelle_Auswertung[[#This Row],[Bildname]]," von ",Tabelle_Auswertung[[#This Row],[Autor(in)]]),"") ->  | AF46: =IF(Tabelle_Auswertung[[#This Row],[Platz]]=7,CONCATENATE(Tabelle_Auswertung[[#This Row],[Bildname]]," von ",Tabelle_Auswertung[[#This Row],[Autor(in)]]),"") ->  | AG46: =IF(Tabelle_Auswertung[[#This Row],[Platz]]=8,CONCATENATE(Tabelle_Auswertung[[#This Row],[Bildname]]," von ",Tabelle_Auswertung[[#This Row],[Autor(in)]]),"") ->  | AH46: =IF(Tabelle_Auswertung[[#This Row],[Platz]]=9,CONCATENATE(Tabelle_Auswertung[[#This Row],[Bildname]]," von ",Tabelle_Auswertung[[#This Row],[Autor(in)]]),"") ->  | AI46: =IF(Tabelle_Auswertung[[#This Row],[Platz]]=10,CONCATENATE(Tabelle_Auswertung[[#This Row],[Bildname]]," von ",Tabelle_Auswertung[[#This Row],[Autor(in)]]),"") -> 
V47: =IF(Tabelle_Auswertung[[#This Row],[Bildname]]<>"",SUM(Tabelle_Auswertung[[#This Row],[Juror 1]:[Juror 20]])," - ") -> - | W47: =IF(Tabelle_Auswertung[[#This Row],[Bildname]]<>"",IF(Tabelle_Auswertung[[#This Row],[Punkte]]>0,AVERAGE(Tabelle_Auswertung[[#This Row],[Juror 1]:[Juror 20]])," - ")," - ") -> - | X47: =IF(Tabelle_Auswertung[[#This Row],[Bildname]]<>"",IF(Tabelle_Auswertung[[#This Row],[Punkte]]>0,RANK(Tabelle_Auswertung[[#This Row],[Punkte]],[Punkte],0)," - ")," - ") -> - | Y47: - - - | Z47: =IF(Tabelle_Auswertung[[#This Row],[Platz]]=1,CONCATENATE(Tabelle_Auswertung[[#This Row],[Bildname]]," von ",Tabelle_Auswertung[[#This Row],[Autor(in)]]),"") ->  | AA47: =IF(Tabelle_Auswertung[[#This Row],[Platz]]=2,CONCATENATE(Tabelle_Auswertung[[#This Row],[Bildname]]," von ",Tabelle_Auswertung[[#This Row],[Autor(in)]]),"") ->  | AB47: =IF(Tabelle_Auswertung[[#This Row],[Platz]]=3,CONCATENATE(Tabelle_Auswertung[[#This Row],[Bildname]]," von ",Tabelle_Auswertung[[#This Row],[Autor(in)]]),"") ->  | AC47: =IF(Tabelle_Auswertung[[#This Row],[Platz]]=4,CONCATENATE(Tabelle_Auswertung[[#This Row],[Bildname]]," von ",Tabelle_Auswertung[[#This Row],[Autor(in)]]),"") ->  | AD47: =IF(Tabelle_Auswertung[[#This Row],[Platz]]=5,CONCATENATE(Tabelle_Auswertung[[#This Row],[Bildname]]," von ",Tabelle_Auswertung[[#This Row],[Autor(in)]]),"") ->  | AE47: =IF(Tabelle_Auswertung[[#This Row],[Platz]]=6,CONCATENATE(Tabelle_Auswertung[[#This Row],[Bildname]]," von ",Tabelle_Auswertung[[#This Row],[Autor(in)]]),"") ->  | AF47: =IF(Tabelle_Auswertung[[#This Row],[Platz]]=7,CONCATENATE(Tabelle_Auswertung[[#This Row],[Bildname]]," von ",Tabelle_Auswertung[[#This Row],[Autor(in)]]),"") ->  | AG47: =IF(Tabelle_Auswertung[[#This Row],[Platz]]=8,CONCATENATE(Tabelle_Auswertung[[#This Row],[Bildname]]," von ",Tabelle_Auswertung[[#This Row],[Autor(in)]]),"") ->  | AH47: =IF(Tabelle_Auswertung[[#This Row],[Platz]]=9,CONCATENATE(Tabelle_Auswertung[[#This Row],[Bildname]]," von ",Tabelle_Auswertung[[#This Row],[Autor(in)]]),"") ->  | AI47: =IF(Tabelle_Auswertung[[#This Row],[Platz]]=10,CONCATENATE(Tabelle_Auswertung[[#This Row],[Bildname]]," von ",Tabelle_Auswertung[[#This Row],[Autor(in)]]),"") -> 
V48: =IF(Tabelle_Auswertung[[#This Row],[Bildname]]<>"",SUM(Tabelle_Auswertung[[#This Row],[Juror 1]:[Juror 20]])," - ") -> - | W48: =IF(Tabelle_Auswertung[[#This Row],[Bildname]]<>"",IF(Tabelle_Auswertung[[#This Row],[Punkte]]>0,AVERAGE(Tabelle_Auswertung[[#This Row],[Juror 1]:[Juror 20]])," - ")," - ") -> - | X48: =IF(Tabelle_Auswertung[[#This Row],[Bildname]]<>"",IF(Tabelle_Auswertung[[#This Row],[Punkte]]>0,RANK(Tabelle_Auswertung[[#This Row],[Punkte]],[Punkte],0)," - ")," - ") -> - | Y48: - - - | Z48: =IF(Tabelle_Auswertung[[#This Row],[Platz]]=1,CONCATENATE(Tabelle_Auswertung[[#This Row],[Bildname]]," von ",Tabelle_Auswertung[[#This Row],[Autor(in)]]),"") ->  | AA48: =IF(Tabelle_Auswertung[[#This Row],[Platz]]=2,CONCATENATE(Tabelle_Auswertung[[#This Row],[Bildname]]," von ",Tabelle_Auswertung[[#This Row],[Autor(in)]]),"") ->  | AB48: =IF(Tabelle_Auswertung[[#This Row],[Platz]]=3,CONCATENATE(Tabelle_Auswertung[[#This Row],[Bildname]]," von ",Tabelle_Auswertung[[#This Row],[Autor(in)]]),"") ->  | AC48: =IF(Tabelle_Auswertung[[#This Row],[Platz]]=4,CONCATENATE(Tabelle_Auswertung[[#This Row],[Bildname]]," von ",Tabelle_Auswertung[[#This Row],[Autor(in)]]),"") ->  | AD48: =IF(Tabelle_Auswertung[[#This Row],[Platz]]=5,CONCATENATE(Tabelle_Auswertung[[#This Row],[Bildname]]," von ",Tabelle_Auswertung[[#This Row],[Autor(in)]]),"") ->  | AE48: =IF(Tabelle_Auswertung[[#This Row],[Platz]]=6,CONCATENATE(Tabelle_Auswertung[[#This Row],[Bildname]]," von ",Tabelle_Auswertung[[#This Row],[Autor(in)]]),"") ->  | AF48: =IF(Tabelle_Auswertung[[#This Row],[Platz]]=7,CONCATENATE(Tabelle_Auswertung[[#This Row],[Bildname]]," von ",Tabelle_Auswertung[[#This Row],[Autor(in)]]),"") ->  | AG48: =IF(Tabelle_Auswertung[[#This Row],[Platz]]=8,CONCATENATE(Tabelle_Auswertung[[#This Row],[Bildname]]," von ",Tabelle_Auswertung[[#This Row],[Autor(in)]]),"") ->  | AH48: =IF(Tabelle_Auswertung[[#This Row],[Platz]]=9,CONCATENATE(Tabelle_Auswertung[[#This Row],[Bildname]]," von ",Tabelle_Auswertung[[#This Row],[Autor(in)]]),"") ->  | AI48: =IF(Tabelle_Auswertung[[#This Row],[Platz]]=10,CONCATENATE(Tabelle_Auswertung[[#This Row],[Bildname]]," von ",Tabelle_Auswertung[[#This Row],[Autor(in)]]),"") -> 
V49: =IF(Tabelle_Auswertung[[#This Row],[Bildname]]<>"",SUM(Tabelle_Auswertung[[#This Row],[Juror 1]:[Juror 20]])," - ") -> - | W49: =IF(Tabelle_Auswertung[[#This Row],[Bildname]]<>"",IF(Tabelle_Auswertung[[#This Row],[Punkte]]>0,AVERAGE(Tabelle_Auswertung[[#This Row],[Juror 1]:[Juror 20]])," - ")," - ") -> - | X49: =IF(Tabelle_Auswertung[[#This Row],[Bildname]]<>"",IF(Tabelle_Auswertung[[#This Row],[Punkte]]>0,RANK(Tabelle_Auswertung[[#This Row],[Punkte]],[Punkte],0)," - ")," - ") -> - | Y49: - - - | Z49: =IF(Tabelle_Auswertung[[#This Row],[Platz]]=1,CONCATENATE(Tabelle_Auswertung[[#This Row],[Bildname]]," von ",Tabelle_Auswertung[[#This Row],[Autor(in)]]),"") ->  | AA49: =IF(Tabelle_Auswertung[[#This Row],[Platz]]=2,CONCATENATE(Tabelle_Auswertung[[#This Row],[Bildname]]," von ",Tabelle_Auswertung[[#This Row],[Autor(in)]]),"") ->  | AB49: =IF(Tabelle_Auswertung[[#This Row],[Platz]]=3,CONCATENATE(Tabelle_Auswertung[[#This Row],[Bildname]]," von ",Tabelle_Auswertung[[#This Row],[Autor(in)]]),"") ->  | AC49: =IF(Tabelle_Auswertung[[#This Row],[Platz]]=4,CONCATENATE(Tabelle_Auswertung[[#This Row],[Bildname]]," von ",Tabelle_Auswertung[[#This Row],[Autor(in)]]),"") ->  | AD49: =IF(Tabelle_Auswertung[[#This Row],[Platz]]=5,CONCATENATE(Tabelle_Auswertung[[#This Row],[Bildname]]," von ",Tabelle_Auswertung[[#This Row],[Autor(in)]]),"") ->  | AE49: =IF(Tabelle_Auswertung[[#This Row],[Platz]]=6,CONCATENATE(Tabelle_Auswertung[[#This Row],[Bildname]]," von ",Tabelle_Auswertung[[#This Row],[Autor(in)]]),"") ->  | AF49: =IF(Tabelle_Auswertung[[#This Row],[Platz]]=7,CONCATENATE(Tabelle_Auswertung[[#This Row],[Bildname]]," von ",Tabelle_Auswertung[[#This Row],[Autor(in)]]),"") ->  | AG49: =IF(Tabelle_Auswertung[[#This Row],[Platz]]=8,CONCATENATE(Tabelle_Auswertung[[#This Row],[Bildname]]," von ",Tabelle_Auswertung[[#This Row],[Autor(in)]]),"") ->  | AH49: =IF(Tabelle_Auswertung[[#This Row],[Platz]]=9,CONCATENATE(Tabelle_Auswertung[[#This Row],[Bildname]]," von ",Tabelle_Auswertung[[#This Row],[Autor(in)]]),"") ->  | AI49: =IF(Tabelle_Auswertung[[#This Row],[Platz]]=10,CONCATENATE(Tabelle_Auswertung[[#This Row],[Bildname]]," von ",Tabelle_Auswertung[[#This Row],[Autor(in)]]),"") -> 
V50: =IF(Tabelle_Auswertung[[#This Row],[Bildname]]<>"",SUM(Tabelle_Auswertung[[#This Row],[Juror 1]:[Juror 20]])," - ") -> - | W50: =IF(Tabelle_Auswertung[[#This Row],[Bildname]]<>"",IF(Tabelle_Auswertung[[#This Row],[Punkte]]>0,AVERAGE(Tabelle_Auswertung[[#This Row],[Juror 1]:[Juror 20]])," - ")," - ") -> - | X50: =IF(Tabelle_Auswertung[[#This Row],[Bildname]]<>"",IF(Tabelle_Auswertung[[#This Row],[Punkte]]>0,RANK(Tabelle_Auswertung[[#This Row],[Punkte]],[Punkte],0)," - ")," - ") -> - | Y50: - - - | Z50: =IF(Tabelle_Auswertung[[#This Row],[Platz]]=1,CONCATENATE(Tabelle_Auswertung[[#This Row],[Bildname]]," von ",Tabelle_Auswertung[[#This Row],[Autor(in)]]),"") ->  | AA50: =IF(Tabelle_Auswertung[[#This Row],[Platz]]=2,CONCATENATE(Tabelle_Auswertung[[#This Row],[Bildname]]," von ",Tabelle_Auswertung[[#This Row],[Autor(in)]]),"") ->  | AB50: =IF(Tabelle_Auswertung[[#This Row],[Platz]]=3,CONCATENATE(Tabelle_Auswertung[[#This Row],[Bildname]]," von ",Tabelle_Auswertung[[#This Row],[Autor(in)]]),"") ->  | AC50: =IF(Tabelle_Auswertung[[#This Row],[Platz]]=4,CONCATENATE(Tabelle_Auswertung[[#This Row],[Bildname]]," von ",Tabelle_Auswertung[[#This Row],[Autor(in)]]),"") ->  | AD50: =IF(Tabelle_Auswertung[[#This Row],[Platz]]=5,CONCATENATE(Tabelle_Auswertung[[#This Row],[Bildname]]," von ",Tabelle_Auswertung[[#This Row],[Autor(in)]]),"") ->  | AE50: =IF(Tabelle_Auswertung[[#This Row],[Platz]]=6,CONCATENATE(Tabelle_Auswertung[[#This Row],[Bildname]]," von ",Tabelle_Auswertung[[#This Row],[Autor(in)]]),"") ->  | AF50: =IF(Tabelle_Auswertung[[#This Row],[Platz]]=7,CONCATENATE(Tabelle_Auswertung[[#This Row],[Bildname]]," von ",Tabelle_Auswertung[[#This Row],[Autor(in)]]),"") ->  | AG50: =IF(Tabelle_Auswertung[[#This Row],[Platz]]=8,CONCATENATE(Tabelle_Auswertung[[#This Row],[Bildname]]," von ",Tabelle_Auswertung[[#This Row],[Autor(in)]]),"") ->  | AH50: =IF(Tabelle_Auswertung[[#This Row],[Platz]]=9,CONCATENATE(Tabelle_Auswertung[[#This Row],[Bildname]]," von ",Tabelle_Auswertung[[#This Row],[Autor(in)]]),"") ->  | AI50: =IF(Tabelle_Auswertung[[#This Row],[Platz]]=10,CONCATENATE(Tabelle_Auswertung[[#This Row],[Bildname]]," von ",Tabelle_Auswertung[[#This Row],[Autor(in)]]),"") -> 
V51: =IF(Tabelle_Auswertung[[#This Row],[Bildname]]<>"",SUM(Tabelle_Auswertung[[#This Row],[Juror 1]:[Juror 20]])," - ") -> - | W51: =IF(Tabelle_Auswertung[[#This Row],[Bildname]]<>"",IF(Tabelle_Auswertung[[#This Row],[Punkte]]>0,AVERAGE(Tabelle_Auswertung[[#This Row],[Juror 1]:[Juror 20]])," - ")," - ") -> - | X51: =IF(Tabelle_Auswertung[[#This Row],[Bildname]]<>"",IF(Tabelle_Auswertung[[#This Row],[Punkte]]>0,RANK(Tabelle_Auswertung[[#This Row],[Punkte]],[Punkte],0)," - ")," - ") -> - | Y51: - - - | Z51: =IF(Tabelle_Auswertung[[#This Row],[Platz]]=1,CONCATENATE(Tabelle_Auswertung[[#This Row],[Bildname]]," von ",Tabelle_Auswertung[[#This Row],[Autor(in)]]),"") ->  | AA51: =IF(Tabelle_Auswertung[[#This Row],[Platz]]=2,CONCATENATE(Tabelle_Auswertung[[#This Row],[Bildname]]," von ",Tabelle_Auswertung[[#This Row],[Autor(in)]]),"") ->  | AB51: =IF(Tabelle_Auswertung[[#This Row],[Platz]]=3,CONCATENATE(Tabelle_Auswertung[[#This Row],[Bildname]]," von ",Tabelle_Auswertung[[#This Row],[Autor(in)]]),"") ->  | AC51: =IF(Tabelle_Auswertung[[#This Row],[Platz]]=4,CONCATENATE(Tabelle_Auswertung[[#This Row],[Bildname]]," von ",Tabelle_Auswertung[[#This Row],[Autor(in)]]),"") ->  | AD51: =IF(Tabelle_Auswertung[[#This Row],[Platz]]=5,CONCATENATE(Tabelle_Auswertung[[#This Row],[Bildname]]," von ",Tabelle_Auswertung[[#This Row],[Autor(in)]]),"") ->  | AE51: =IF(Tabelle_Auswertung[[#This Row],[Platz]]=6,CONCATENATE(Tabelle_Auswertung[[#This Row],[Bildname]]," von ",Tabelle_Auswertung[[#This Row],[Autor(in)]]),"") ->  | AF51: =IF(Tabelle_Auswertung[[#This Row],[Platz]]=7,CONCATENATE(Tabelle_Auswertung[[#This Row],[Bildname]]," von ",Tabelle_Auswertung[[#This Row],[Autor(in)]]),"") ->  | AG51: =IF(Tabelle_Auswertung[[#This Row],[Platz]]=8,CONCATENATE(Tabelle_Auswertung[[#This Row],[Bildname]]," von ",Tabelle_Auswertung[[#This Row],[Autor(in)]]),"") ->  | AH51: =IF(Tabelle_Auswertung[[#This Row],[Platz]]=9,CONCATENATE(Tabelle_Auswertung[[#This Row],[Bildname]]," von ",Tabelle_Auswertung[[#This Row],[Autor(in)]]),"") ->  | AI51: =IF(Tabelle_Auswertung[[#This Row],[Platz]]=10,CONCATENATE(Tabelle_Auswertung[[#This Row],[Bildname]]," von ",Tabelle_Auswertung[[#This Row],[Autor(in)]]),"") -> 
V52: =IF(Tabelle_Auswertung[[#This Row],[Bildname]]<>"",SUM(Tabelle_Auswertung[[#This Row],[Juror 1]:[Juror 20]])," - ") -> - | W52: =IF(Tabelle_Auswertung[[#This Row],[Bildname]]<>"",IF(Tabelle_Auswertung[[#This Row],[Punkte]]>0,AVERAGE(Tabelle_Auswertung[[#This Row],[Juror 1]:[Juror 20]])," - ")," - ") -> - | X52: =IF(Tabelle_Auswertung[[#This Row],[Bildname]]<>"",IF(Tabelle_Auswertung[[#This Row],[Punkte]]>0,RANK(Tabelle_Auswertung[[#This Row],[Punkte]],[Punkte],0)," - ")," - ") -> - | Y52: - - - | Z52: =IF(Tabelle_Auswertung[[#This Row],[Platz]]=1,CONCATENATE(Tabelle_Auswertung[[#This Row],[Bildname]]," von ",Tabelle_Auswertung[[#This Row],[Autor(in)]]),"") ->  | AA52: =IF(Tabelle_Auswertung[[#This Row],[Platz]]=2,CONCATENATE(Tabelle_Auswertung[[#This Row],[Bildname]]," von ",Tabelle_Auswertung[[#This Row],[Autor(in)]]),"") ->  | AB52: =IF(Tabelle_Auswertung[[#This Row],[Platz]]=3,CONCATENATE(Tabelle_Auswertung[[#This Row],[Bildname]]," von ",Tabelle_Auswertung[[#This Row],[Autor(in)]]),"") ->  | AC52: =IF(Tabelle_Auswertung[[#This Row],[Platz]]=4,CONCATENATE(Tabelle_Auswertung[[#This Row],[Bildname]]," von ",Tabelle_Auswertung[[#This Row],[Autor(in)]]),"") ->  | AD52: =IF(Tabelle_Auswertung[[#This Row],[Platz]]=5,CONCATENATE(Tabelle_Auswertung[[#This Row],[Bildname]]," von ",Tabelle_Auswertung[[#This Row],[Autor(in)]]),"") ->  | AE52: =IF(Tabelle_Auswertung[[#This Row],[Platz]]=6,CONCATENATE(Tabelle_Auswertung[[#This Row],[Bildname]]," von ",Tabelle_Auswertung[[#This Row],[Autor(in)]]),"") ->  | AF52: =IF(Tabelle_Auswertung[[#This Row],[Platz]]=7,CONCATENATE(Tabelle_Auswertung[[#This Row],[Bildname]]," von ",Tabelle_Auswertung[[#This Row],[Autor(in)]]),"") ->  | AG52: =IF(Tabelle_Auswertung[[#This Row],[Platz]]=8,CONCATENATE(Tabelle_Auswertung[[#This Row],[Bildname]]," von ",Tabelle_Auswertung[[#This Row],[Autor(in)]]),"") ->  | AH52: =IF(Tabelle_Auswertung[[#This Row],[Platz]]=9,CONCATENATE(Tabelle_Auswertung[[#This Row],[Bildname]]," von ",Tabelle_Auswertung[[#This Row],[Autor(in)]]),"") ->  | AI52: =IF(Tabelle_Auswertung[[#This Row],[Platz]]=10,CONCATENATE(Tabelle_Auswertung[[#This Row],[Bildname]]," von ",Tabelle_Auswertung[[#This Row],[Autor(in)]]),"") -> 
V53: =IF(Tabelle_Auswertung[[#This Row],[Bildname]]<>"",SUM(Tabelle_Auswertung[[#This Row],[Juror 1]:[Juror 20]])," - ") -> - | W53: =IF(Tabelle_Auswertung[[#This Row],[Bildname]]<>"",IF(Tabelle_Auswertung[[#This Row],[Punkte]]>0,AVERAGE(Tabelle_Auswertung[[#This Row],[Juror 1]:[Juror 20]])," - ")," - ") -> - | X53: =IF(Tabelle_Auswertung[[#This Row],[Bildname]]<>"",IF(Tabelle_Auswertung[[#This Row],[Punkte]]>0,RANK(Tabelle_Auswertung[[#This Row],[Punkte]],[Punkte],0)," - ")," - ") -> - | Y53: - - - | Z53: =IF(Tabelle_Auswertung[[#This Row],[Platz]]=1,CONCATENATE(Tabelle_Auswertung[[#This Row],[Bildname]]," von ",Tabelle_Auswertung[[#This Row],[Autor(in)]]),"") ->  | AA53: =IF(Tabelle_Auswertung[[#This Row],[Platz]]=2,CONCATENATE(Tabelle_Auswertung[[#This Row],[Bildname]]," von ",Tabelle_Auswertung[[#This Row],[Autor(in)]]),"") ->  | AB53: =IF(Tabelle_Auswertung[[#This Row],[Platz]]=3,CONCATENATE(Tabelle_Auswertung[[#This Row],[Bildname]]," von ",Tabelle_Auswertung[[#This Row],[Autor(in)]]),"") ->  | AC53: =IF(Tabelle_Auswertung[[#This Row],[Platz]]=4,CONCATENATE(Tabelle_Auswertung[[#This Row],[Bildname]]," von ",Tabelle_Auswertung[[#This Row],[Autor(in)]]),"") ->  | AD53: =IF(Tabelle_Auswertung[[#This Row],[Platz]]=5,CONCATENATE(Tabelle_Auswertung[[#This Row],[Bildname]]," von ",Tabelle_Auswertung[[#This Row],[Autor(in)]]),"") ->  | AE53: =IF(Tabelle_Auswertung[[#This Row],[Platz]]=6,CONCATENATE(Tabelle_Auswertung[[#This Row],[Bildname]]," von ",Tabelle_Auswertung[[#This Row],[Autor(in)]]),"") ->  | AF53: =IF(Tabelle_Auswertung[[#This Row],[Platz]]=7,CONCATENATE(Tabelle_Auswertung[[#This Row],[Bildname]]," von ",Tabelle_Auswertung[[#This Row],[Autor(in)]]),"") ->  | AG53: =IF(Tabelle_Auswertung[[#This Row],[Platz]]=8,CONCATENATE(Tabelle_Auswertung[[#This Row],[Bildname]]," von ",Tabelle_Auswertung[[#This Row],[Autor(in)]]),"") ->  | AH53: =IF(Tabelle_Auswertung[[#This Row],[Platz]]=9,CONCATENATE(Tabelle_Auswertung[[#This Row],[Bildname]]," von ",Tabelle_Auswertung[[#This Row],[Autor(in)]]),"") ->  | AI53: =IF(Tabelle_Auswertung[[#This Row],[Platz]]=10,CONCATENATE(Tabelle_Auswertung[[#This Row],[Bildname]]," von ",Tabelle_Auswertung[[#This Row],[Autor(in)]]),"") -> 
V54: =IF(Tabelle_Auswertung[[#This Row],[Bildname]]<>"",SUM(Tabelle_Auswertung[[#This Row],[Juror 1]:[Juror 20]])," - ") -> - | W54: =IF(Tabelle_Auswertung[[#This Row],[Bildname]]<>"",IF(Tabelle_Auswertung[[#This Row],[Punkte]]>0,AVERAGE(Tabelle_Auswertung[[#This Row],[Juror 1]:[Juror 20]])," - ")," - ") -> - | X54: =IF(Tabelle_Auswertung[[#This Row],[Bildname]]<>"",IF(Tabelle_Auswertung[[#This Row],[Punkte]]>0,RANK(Tabelle_Auswertung[[#This Row],[Punkte]],[Punkte],0)," - ")," - ") -> - | Y54: - - - | Z54: =IF(Tabelle_Auswertung[[#This Row],[Platz]]=1,CONCATENATE(Tabelle_Auswertung[[#This Row],[Bildname]]," von ",Tabelle_Auswertung[[#This Row],[Autor(in)]]),"") ->  | AA54: =IF(Tabelle_Auswertung[[#This Row],[Platz]]=2,CONCATENATE(Tabelle_Auswertung[[#This Row],[Bildname]]," von ",Tabelle_Auswertung[[#This Row],[Autor(in)]]),"") ->  | AB54: =IF(Tabelle_Auswertung[[#This Row],[Platz]]=3,CONCATENATE(Tabelle_Auswertung[[#This Row],[Bildname]]," von ",Tabelle_Auswertung[[#This Row],[Autor(in)]]),"") ->  | AC54: =IF(Tabelle_Auswertung[[#This Row],[Platz]]=4,CONCATENATE(Tabelle_Auswertung[[#This Row],[Bildname]]," von ",Tabelle_Auswertung[[#This Row],[Autor(in)]]),"") ->  | AD54: =IF(Tabelle_Auswertung[[#This Row],[Platz]]=5,CONCATENATE(Tabelle_Auswertung[[#This Row],[Bildname]]," von ",Tabelle_Auswertung[[#This Row],[Autor(in)]]),"") ->  | AE54: =IF(Tabelle_Auswertung[[#This Row],[Platz]]=6,CONCATENATE(Tabelle_Auswertung[[#This Row],[Bildname]]," von ",Tabelle_Auswertung[[#This Row],[Autor(in)]]),"") ->  | AF54: =IF(Tabelle_Auswertung[[#This Row],[Platz]]=7,CONCATENATE(Tabelle_Auswertung[[#This Row],[Bildname]]," von ",Tabelle_Auswertung[[#This Row],[Autor(in)]]),"") ->  | AG54: =IF(Tabelle_Auswertung[[#This Row],[Platz]]=8,CONCATENATE(Tabelle_Auswertung[[#This Row],[Bildname]]," von ",Tabelle_Auswertung[[#This Row],[Autor(in)]]),"") ->  | AH54: =IF(Tabelle_Auswertung[[#This Row],[Platz]]=9,CONCATENATE(Tabelle_Auswertung[[#This Row],[Bildname]]," von ",Tabelle_Auswertung[[#This Row],[Autor(in)]]),"") ->  | AI54: =IF(Tabelle_Auswertung[[#This Row],[Platz]]=10,CONCATENATE(Tabelle_Auswertung[[#This Row],[Bildname]]," von ",Tabelle_Auswertung[[#This Row],[Autor(in)]]),"") -> 
V55: =IF(Tabelle_Auswertung[[#This Row],[Bildname]]<>"",SUM(Tabelle_Auswertung[[#This Row],[Juror 1]:[Juror 20]])," - ") -> - | W55: =IF(Tabelle_Auswertung[[#This Row],[Bildname]]<>"",IF(Tabelle_Auswertung[[#This Row],[Punkte]]>0,AVERAGE(Tabelle_Auswertung[[#This Row],[Juror 1]:[Juror 20]])," - ")," - ") -> - | X55: =IF(Tabelle_Auswertung[[#This Row],[Bildname]]<>"",IF(Tabelle_Auswertung[[#This Row],[Punkte]]>0,RANK(Tabelle_Auswertung[[#This Row],[Punkte]],[Punkte],0)," - ")," - ") -> - | Y55: - - - | Z55: =IF(Tabelle_Auswertung[[#This Row],[Platz]]=1,CONCATENATE(Tabelle_Auswertung[[#This Row],[Bildname]]," von ",Tabelle_Auswertung[[#This Row],[Autor(in)]]),"") ->  | AA55: =IF(Tabelle_Auswertung[[#This Row],[Platz]]=2,CONCATENATE(Tabelle_Auswertung[[#This Row],[Bildname]]," von ",Tabelle_Auswertung[[#This Row],[Autor(in)]]),"") ->  | AB55: =IF(Tabelle_Auswertung[[#This Row],[Platz]]=3,CONCATENATE(Tabelle_Auswertung[[#This Row],[Bildname]]," von ",Tabelle_Auswertung[[#This Row],[Autor(in)]]),"") ->  | AC55: =IF(Tabelle_Auswertung[[#This Row],[Platz]]=4,CONCATENATE(Tabelle_Auswertung[[#This Row],[Bildname]]," von ",Tabelle_Auswertung[[#This Row],[Autor(in)]]),"") ->  | AD55: =IF(Tabelle_Auswertung[[#This Row],[Platz]]=5,CONCATENATE(Tabelle_Auswertung[[#This Row],[Bildname]]," von ",Tabelle_Auswertung[[#This Row],[Autor(in)]]),"") ->  | AE55: =IF(Tabelle_Auswertung[[#This Row],[Platz]]=6,CONCATENATE(Tabelle_Auswertung[[#This Row],[Bildname]]," von ",Tabelle_Auswertung[[#This Row],[Autor(in)]]),"") ->  | AF55: =IF(Tabelle_Auswertung[[#This Row],[Platz]]=7,CONCATENATE(Tabelle_Auswertung[[#This Row],[Bildname]]," von ",Tabelle_Auswertung[[#This Row],[Autor(in)]]),"") ->  | AG55: =IF(Tabelle_Auswertung[[#This Row],[Platz]]=8,CONCATENATE(Tabelle_Auswertung[[#This Row],[Bildname]]," von ",Tabelle_Auswertung[[#This Row],[Autor(in)]]),"") ->  | AH55: =IF(Tabelle_Auswertung[[#This Row],[Platz]]=9,CONCATENATE(Tabelle_Auswertung[[#This Row],[Bildname]]," von ",Tabelle_Auswertung[[#This Row],[Autor(in)]]),"") ->  | AI55: =IF(Tabelle_Auswertung[[#This Row],[Platz]]=10,CONCATENATE(Tabelle_Auswertung[[#This Row],[Bildname]]," von ",Tabelle_Auswertung[[#This Row],[Autor(in)]]),"") -> 
V56: =IF(Tabelle_Auswertung[[#This Row],[Bildname]]<>"",SUM(Tabelle_Auswertung[[#This Row],[Juror 1]:[Juror 20]])," - ") -> - | W56: =IF(Tabelle_Auswertung[[#This Row],[Bildname]]<>"",IF(Tabelle_Auswertung[[#This Row],[Punkte]]>0,AVERAGE(Tabelle_Auswertung[[#This Row],[Juror 1]:[Juror 20]])," - ")," - ") -> - | X56: =IF(Tabelle_Auswertung[[#This Row],[Bildname]]<>"",IF(Tabelle_Auswertung[[#This Row],[Punkte]]>0,RANK(Tabelle_Auswertung[[#This Row],[Punkte]],[Punkte],0)," - ")," - ") -> - | Y56: - - - | Z56: =IF(Tabelle_Auswertung[[#This Row],[Platz]]=1,CONCATENATE(Tabelle_Auswertung[[#This Row],[Bildname]]," von ",Tabelle_Auswertung[[#This Row],[Autor(in)]]),"") ->  | AA56: =IF(Tabelle_Auswertung[[#This Row],[Platz]]=2,CONCATENATE(Tabelle_Auswertung[[#This Row],[Bildname]]," von ",Tabelle_Auswertung[[#This Row],[Autor(in)]]),"") ->  | AB56: =IF(Tabelle_Auswertung[[#This Row],[Platz]]=3,CONCATENATE(Tabelle_Auswertung[[#This Row],[Bildname]]," von ",Tabelle_Auswertung[[#This Row],[Autor(in)]]),"") ->  | AC56: =IF(Tabelle_Auswertung[[#This Row],[Platz]]=4,CONCATENATE(Tabelle_Auswertung[[#This Row],[Bildname]]," von ",Tabelle_Auswertung[[#This Row],[Autor(in)]]),"") ->  | AD56: =IF(Tabelle_Auswertung[[#This Row],[Platz]]=5,CONCATENATE(Tabelle_Auswertung[[#This Row],[Bildname]]," von ",Tabelle_Auswertung[[#This Row],[Autor(in)]]),"") ->  | AE56: =IF(Tabelle_Auswertung[[#This Row],[Platz]]=6,CONCATENATE(Tabelle_Auswertung[[#This Row],[Bildname]]," von ",Tabelle_Auswertung[[#This Row],[Autor(in)]]),"") ->  | AF56: =IF(Tabelle_Auswertung[[#This Row],[Platz]]=7,CONCATENATE(Tabelle_Auswertung[[#This Row],[Bildname]]," von ",Tabelle_Auswertung[[#This Row],[Autor(in)]]),"") ->  | AG56: =IF(Tabelle_Auswertung[[#This Row],[Platz]]=8,CONCATENATE(Tabelle_Auswertung[[#This Row],[Bildname]]," von ",Tabelle_Auswertung[[#This Row],[Autor(in)]]),"") ->  | AH56: =IF(Tabelle_Auswertung[[#This Row],[Platz]]=9,CONCATENATE(Tabelle_Auswertung[[#This Row],[Bildname]]," von ",Tabelle_Auswertung[[#This Row],[Autor(in)]]),"") ->  | AI56: =IF(Tabelle_Auswertung[[#This Row],[Platz]]=10,CONCATENATE(Tabelle_Auswertung[[#This Row],[Bildname]]," von ",Tabelle_Auswertung[[#This Row],[Autor(in)]]),"") -> 
V57: =IF(Tabelle_Auswertung[[#This Row],[Bildname]]<>"",SUM(Tabelle_Auswertung[[#This Row],[Juror 1]:[Juror 20]])," - ") -> - | W57: =IF(Tabelle_Auswertung[[#This Row],[Bildname]]<>"",IF(Tabelle_Auswertung[[#This Row],[Punkte]]>0,AVERAGE(Tabelle_Auswertung[[#This Row],[Juror 1]:[Juror 20]])," - ")," - ") -> - | X57: =IF(Tabelle_Auswertung[[#This Row],[Bildname]]<>"",IF(Tabelle_Auswertung[[#This Row],[Punkte]]>0,RANK(Tabelle_Auswertung[[#This Row],[Punkte]],[Punkte],0)," - ")," - ") -> - | Y57: - - - | Z57: =IF(Tabelle_Auswertung[[#This Row],[Platz]]=1,CONCATENATE(Tabelle_Auswertung[[#This Row],[Bildname]]," von ",Tabelle_Auswertung[[#This Row],[Autor(in)]]),"") ->  | AA57: =IF(Tabelle_Auswertung[[#This Row],[Platz]]=2,CONCATENATE(Tabelle_Auswertung[[#This Row],[Bildname]]," von ",Tabelle_Auswertung[[#This Row],[Autor(in)]]),"") ->  | AB57: =IF(Tabelle_Auswertung[[#This Row],[Platz]]=3,CONCATENATE(Tabelle_Auswertung[[#This Row],[Bildname]]," von ",Tabelle_Auswertung[[#This Row],[Autor(in)]]),"") ->  | AC57: =IF(Tabelle_Auswertung[[#This Row],[Platz]]=4,CONCATENATE(Tabelle_Auswertung[[#This Row],[Bildname]]," von ",Tabelle_Auswertung[[#This Row],[Autor(in)]]),"") ->  | AD57: =IF(Tabelle_Auswertung[[#This Row],[Platz]]=5,CONCATENATE(Tabelle_Auswertung[[#This Row],[Bildname]]," von ",Tabelle_Auswertung[[#This Row],[Autor(in)]]),"") ->  | AE57: =IF(Tabelle_Auswertung[[#This Row],[Platz]]=6,CONCATENATE(Tabelle_Auswertung[[#This Row],[Bildname]]," von ",Tabelle_Auswertung[[#This Row],[Autor(in)]]),"") ->  | AF57: =IF(Tabelle_Auswertung[[#This Row],[Platz]]=7,CONCATENATE(Tabelle_Auswertung[[#This Row],[Bildname]]," von ",Tabelle_Auswertung[[#This Row],[Autor(in)]]),"") ->  | AG57: =IF(Tabelle_Auswertung[[#This Row],[Platz]]=8,CONCATENATE(Tabelle_Auswertung[[#This Row],[Bildname]]," von ",Tabelle_Auswertung[[#This Row],[Autor(in)]]),"") ->  | AH57: =IF(Tabelle_Auswertung[[#This Row],[Platz]]=9,CONCATENATE(Tabelle_Auswertung[[#This Row],[Bildname]]," von ",Tabelle_Auswertung[[#This Row],[Autor(in)]]),"") ->  | AI57: =IF(Tabelle_Auswertung[[#This Row],[Platz]]=10,CONCATENATE(Tabelle_Auswertung[[#This Row],[Bildname]]," von ",Tabelle_Auswertung[[#This Row],[Autor(in)]]),"") -> 
V58: =IF(Tabelle_Auswertung[[#This Row],[Bildname]]<>"",SUM(Tabelle_Auswertung[[#This Row],[Juror 1]:[Juror 20]])," - ") -> - | W58: =IF(Tabelle_Auswertung[[#This Row],[Bildname]]<>"",IF(Tabelle_Auswertung[[#This Row],[Punkte]]>0,AVERAGE(Tabelle_Auswertung[[#This Row],[Juror 1]:[Juror 20]])," - ")," - ") -> - | X58: =IF(Tabelle_Auswertung[[#This Row],[Bildname]]<>"",IF(Tabelle_Auswertung[[#This Row],[Punkte]]>0,RANK(Tabelle_Auswertung[[#This Row],[Punkte]],[Punkte],0)," - ")," - ") -> - | Y58: - - - | Z58: =IF(Tabelle_Auswertung[[#This Row],[Platz]]=1,CONCATENATE(Tabelle_Auswertung[[#This Row],[Bildname]]," von ",Tabelle_Auswertung[[#This Row],[Autor(in)]]),"") ->  | AA58: =IF(Tabelle_Auswertung[[#This Row],[Platz]]=2,CONCATENATE(Tabelle_Auswertung[[#This Row],[Bildname]]," von ",Tabelle_Auswertung[[#This Row],[Autor(in)]]),"") ->  | AB58: =IF(Tabelle_Auswertung[[#This Row],[Platz]]=3,CONCATENATE(Tabelle_Auswertung[[#This Row],[Bildname]]," von ",Tabelle_Auswertung[[#This Row],[Autor(in)]]),"") ->  | AC58: =IF(Tabelle_Auswertung[[#This Row],[Platz]]=4,CONCATENATE(Tabelle_Auswertung[[#This Row],[Bildname]]," von ",Tabelle_Auswertung[[#This Row],[Autor(in)]]),"") ->  | AD58: =IF(Tabelle_Auswertung[[#This Row],[Platz]]=5,CONCATENATE(Tabelle_Auswertung[[#This Row],[Bildname]]," von ",Tabelle_Auswertung[[#This Row],[Autor(in)]]),"") ->  | AE58: =IF(Tabelle_Auswertung[[#This Row],[Platz]]=6,CONCATENATE(Tabelle_Auswertung[[#This Row],[Bildname]]," von ",Tabelle_Auswertung[[#This Row],[Autor(in)]]),"") ->  | AF58: =IF(Tabelle_Auswertung[[#This Row],[Platz]]=7,CONCATENATE(Tabelle_Auswertung[[#This Row],[Bildname]]," von ",Tabelle_Auswertung[[#This Row],[Autor(in)]]),"") ->  | AG58: =IF(Tabelle_Auswertung[[#This Row],[Platz]]=8,CONCATENATE(Tabelle_Auswertung[[#This Row],[Bildname]]," von ",Tabelle_Auswertung[[#This Row],[Autor(in)]]),"") ->  | AH58: =IF(Tabelle_Auswertung[[#This Row],[Platz]]=9,CONCATENATE(Tabelle_Auswertung[[#This Row],[Bildname]]," von ",Tabelle_Auswertung[[#This Row],[Autor(in)]]),"") ->  | AI58: =IF(Tabelle_Auswertung[[#This Row],[Platz]]=10,CONCATENATE(Tabelle_Auswertung[[#This Row],[Bildname]]," von ",Tabelle_Auswertung[[#This Row],[Autor(in)]]),"") -> 
V59: =IF(Tabelle_Auswertung[[#This Row],[Bildname]]<>"",SUM(Tabelle_Auswertung[[#This Row],[Juror 1]:[Juror 20]])," - ") -> - | W59: =IF(Tabelle_Auswertung[[#This Row],[Bildname]]<>"",IF(Tabelle_Auswertung[[#This Row],[Punkte]]>0,AVERAGE(Tabelle_Auswertung[[#This Row],[Juror 1]:[Juror 20]])," - ")," - ") -> - | X59: =IF(Tabelle_Auswertung[[#This Row],[Bildname]]<>"",IF(Tabelle_Auswertung[[#This Row],[Punkte]]>0,RANK(Tabelle_Auswertung[[#This Row],[Punkte]],[Punkte],0)," - ")," - ") -> - | Y59: - - - | Z59: =IF(Tabelle_Auswertung[[#This Row],[Platz]]=1,CONCATENATE(Tabelle_Auswertung[[#This Row],[Bildname]]," von ",Tabelle_Auswertung[[#This Row],[Autor(in)]]),"") ->  | AA59: =IF(Tabelle_Auswertung[[#This Row],[Platz]]=2,CONCATENATE(Tabelle_Auswertung[[#This Row],[Bildname]]," von ",Tabelle_Auswertung[[#This Row],[Autor(in)]]),"") ->  | AB59: =IF(Tabelle_Auswertung[[#This Row],[Platz]]=3,CONCATENATE(Tabelle_Auswertung[[#This Row],[Bildname]]," von ",Tabelle_Auswertung[[#This Row],[Autor(in)]]),"") ->  | AC59: =IF(Tabelle_Auswertung[[#This Row],[Platz]]=4,CONCATENATE(Tabelle_Auswertung[[#This Row],[Bildname]]," von ",Tabelle_Auswertung[[#This Row],[Autor(in)]]),"") ->  | AD59: =IF(Tabelle_Auswertung[[#This Row],[Platz]]=5,CONCATENATE(Tabelle_Auswertung[[#This Row],[Bildname]]," von ",Tabelle_Auswertung[[#This Row],[Autor(in)]]),"") ->  | AE59: =IF(Tabelle_Auswertung[[#This Row],[Platz]]=6,CONCATENATE(Tabelle_Auswertung[[#This Row],[Bildname]]," von ",Tabelle_Auswertung[[#This Row],[Autor(in)]]),"") ->  | AF59: =IF(Tabelle_Auswertung[[#This Row],[Platz]]=7,CONCATENATE(Tabelle_Auswertung[[#This Row],[Bildname]]," von ",Tabelle_Auswertung[[#This Row],[Autor(in)]]),"") ->  | AG59: =IF(Tabelle_Auswertung[[#This Row],[Platz]]=8,CONCATENATE(Tabelle_Auswertung[[#This Row],[Bildname]]," von ",Tabelle_Auswertung[[#This Row],[Autor(in)]]),"") ->  | AH59: =IF(Tabelle_Auswertung[[#This Row],[Platz]]=9,CONCATENATE(Tabelle_Auswertung[[#This Row],[Bildname]]," von ",Tabelle_Auswertung[[#This Row],[Autor(in)]]),"") ->  | AI59: =IF(Tabelle_Auswertung[[#This Row],[Platz]]=10,CONCATENATE(Tabelle_Auswertung[[#This Row],[Bildname]]," von ",Tabelle_Auswertung[[#This Row],[Autor(in)]]),"") -> 
V60: =IF(Tabelle_Auswertung[[#This Row],[Bildname]]<>"",SUM(Tabelle_Auswertung[[#This Row],[Juror 1]:[Juror 20]])," - ") -> - | W60: =IF(Tabelle_Auswertung[[#This Row],[Bildname]]<>"",IF(Tabelle_Auswertung[[#This Row],[Punkte]]>0,AVERAGE(Tabelle_Auswertung[[#This Row],[Juror 1]:[Juror 20]])," - ")," - ") -> - | X60: =IF(Tabelle_Auswertung[[#This Row],[Bildname]]<>"",IF(Tabelle_Auswertung[[#This Row],[Punkte]]>0,RANK(Tabelle_Auswertung[[#This Row],[Punkte]],[Punkte],0)," - ")," - ") -> - | Y60: - - - | Z60: =IF(Tabelle_Auswertung[[#This Row],[Platz]]=1,CONCATENATE(Tabelle_Auswertung[[#This Row],[Bildname]]," von ",Tabelle_Auswertung[[#This Row],[Autor(in)]]),"") ->  | AA60: =IF(Tabelle_Auswertung[[#This Row],[Platz]]=2,CONCATENATE(Tabelle_Auswertung[[#This Row],[Bildname]]," von ",Tabelle_Auswertung[[#This Row],[Autor(in)]]),"") ->  | AB60: =IF(Tabelle_Auswertung[[#This Row],[Platz]]=3,CONCATENATE(Tabelle_Auswertung[[#This Row],[Bildname]]," von ",Tabelle_Auswertung[[#This Row],[Autor(in)]]),"") ->  | AC60: =IF(Tabelle_Auswertung[[#This Row],[Platz]]=4,CONCATENATE(Tabelle_Auswertung[[#This Row],[Bildname]]," von ",Tabelle_Auswertung[[#This Row],[Autor(in)]]),"") ->  | AD60: =IF(Tabelle_Auswertung[[#This Row],[Platz]]=5,CONCATENATE(Tabelle_Auswertung[[#This Row],[Bildname]]," von ",Tabelle_Auswertung[[#This Row],[Autor(in)]]),"") ->  | AE60: =IF(Tabelle_Auswertung[[#This Row],[Platz]]=6,CONCATENATE(Tabelle_Auswertung[[#This Row],[Bildname]]," von ",Tabelle_Auswertung[[#This Row],[Autor(in)]]),"") ->  | AF60: =IF(Tabelle_Auswertung[[#This Row],[Platz]]=7,CONCATENATE(Tabelle_Auswertung[[#This Row],[Bildname]]," von ",Tabelle_Auswertung[[#This Row],[Autor(in)]]),"") ->  | AG60: =IF(Tabelle_Auswertung[[#This Row],[Platz]]=8,CONCATENATE(Tabelle_Auswertung[[#This Row],[Bildname]]," von ",Tabelle_Auswertung[[#This Row],[Autor(in)]]),"") ->  | AH60: =IF(Tabelle_Auswertung[[#This Row],[Platz]]=9,CONCATENATE(Tabelle_Auswertung[[#This Row],[Bildname]]," von ",Tabelle_Auswertung[[#This Row],[Autor(in)]]),"") ->  | AI60: =IF(Tabelle_Auswertung[[#This Row],[Platz]]=10,CONCATENATE(Tabelle_Auswertung[[#This Row],[Bildname]]," von ",Tabelle_Auswertung[[#This Row],[Autor(in)]]),"") -> 
V61: =IF(Tabelle_Auswertung[[#This Row],[Bildname]]<>"",SUM(Tabelle_Auswertung[[#This Row],[Juror 1]:[Juror 20]])," - ") -> - | W61: =IF(Tabelle_Auswertung[[#This Row],[Bildname]]<>"",IF(Tabelle_Auswertung[[#This Row],[Punkte]]>0,AVERAGE(Tabelle_Auswertung[[#This Row],[Juror 1]:[Juror 20]])," - ")," - ") -> - | X61: =IF(Tabelle_Auswertung[[#This Row],[Bildname]]<>"",IF(Tabelle_Auswertung[[#This Row],[Punkte]]>0,RANK(Tabelle_Auswertung[[#This Row],[Punkte]],[Punkte],0)," - ")," - ") -> - | Y61: - - - | Z61: =IF(Tabelle_Auswertung[[#This Row],[Platz]]=1,CONCATENATE(Tabelle_Auswertung[[#This Row],[Bildname]]," von ",Tabelle_Auswertung[[#This Row],[Autor(in)]]),"") ->  | AA61: =IF(Tabelle_Auswertung[[#This Row],[Platz]]=2,CONCATENATE(Tabelle_Auswertung[[#This Row],[Bildname]]," von ",Tabelle_Auswertung[[#This Row],[Autor(in)]]),"") ->  | AB61: =IF(Tabelle_Auswertung[[#This Row],[Platz]]=3,CONCATENATE(Tabelle_Auswertung[[#This Row],[Bildname]]," von ",Tabelle_Auswertung[[#This Row],[Autor(in)]]),"") ->  | AC61: =IF(Tabelle_Auswertung[[#This Row],[Platz]]=4,CONCATENATE(Tabelle_Auswertung[[#This Row],[Bildname]]," von ",Tabelle_Auswertung[[#This Row],[Autor(in)]]),"") ->  | AD61: =IF(Tabelle_Auswertung[[#This Row],[Platz]]=5,CONCATENATE(Tabelle_Auswertung[[#This Row],[Bildname]]," von ",Tabelle_Auswertung[[#This Row],[Autor(in)]]),"") ->  | AE61: =IF(Tabelle_Auswertung[[#This Row],[Platz]]=6,CONCATENATE(Tabelle_Auswertung[[#This Row],[Bildname]]," von ",Tabelle_Auswertung[[#This Row],[Autor(in)]]),"") ->  | AF61: =IF(Tabelle_Auswertung[[#This Row],[Platz]]=7,CONCATENATE(Tabelle_Auswertung[[#This Row],[Bildname]]," von ",Tabelle_Auswertung[[#This Row],[Autor(in)]]),"") ->  | AG61: =IF(Tabelle_Auswertung[[#This Row],[Platz]]=8,CONCATENATE(Tabelle_Auswertung[[#This Row],[Bildname]]," von ",Tabelle_Auswertung[[#This Row],[Autor(in)]]),"") ->  | AH61: =IF(Tabelle_Auswertung[[#This Row],[Platz]]=9,CONCATENATE(Tabelle_Auswertung[[#This Row],[Bildname]]," von ",Tabelle_Auswertung[[#This Row],[Autor(in)]]),"") ->  | AI61: =IF(Tabelle_Auswertung[[#This Row],[Platz]]=10,CONCATENATE(Tabelle_Auswertung[[#This Row],[Bildname]]," von ",Tabelle_Auswertung[[#This Row],[Autor(in)]]),"") -> 
V62: =IF(Tabelle_Auswertung[[#This Row],[Bildname]]<>"",SUM(Tabelle_Auswertung[[#This Row],[Juror 1]:[Juror 20]])," - ") -> - | W62: =IF(Tabelle_Auswertung[[#This Row],[Bildname]]<>"",IF(Tabelle_Auswertung[[#This Row],[Punkte]]>0,AVERAGE(Tabelle_Auswertung[[#This Row],[Juror 1]:[Juror 20]])," - ")," - ") -> - | X62: =IF(Tabelle_Auswertung[[#This Row],[Bildname]]<>"",IF(Tabelle_Auswertung[[#This Row],[Punkte]]>0,RANK(Tabelle_Auswertung[[#This Row],[Punkte]],[Punkte],0)," - ")," - ") -> - | Y62: - - - | Z62: =IF(Tabelle_Auswertung[[#This Row],[Platz]]=1,CONCATENATE(Tabelle_Auswertung[[#This Row],[Bildname]]," von ",Tabelle_Auswertung[[#This Row],[Autor(in)]]),"") ->  | AA62: =IF(Tabelle_Auswertung[[#This Row],[Platz]]=2,CONCATENATE(Tabelle_Auswertung[[#This Row],[Bildname]]," von ",Tabelle_Auswertung[[#This Row],[Autor(in)]]),"") ->  | AB62: =IF(Tabelle_Auswertung[[#This Row],[Platz]]=3,CONCATENATE(Tabelle_Auswertung[[#This Row],[Bildname]]," von ",Tabelle_Auswertung[[#This Row],[Autor(in)]]),"") ->  | AC62: =IF(Tabelle_Auswertung[[#This Row],[Platz]]=4,CONCATENATE(Tabelle_Auswertung[[#This Row],[Bildname]]," von ",Tabelle_Auswertung[[#This Row],[Autor(in)]]),"") ->  | AD62: =IF(Tabelle_Auswertung[[#This Row],[Platz]]=5,CONCATENATE(Tabelle_Auswertung[[#This Row],[Bildname]]," von ",Tabelle_Auswertung[[#This Row],[Autor(in)]]),"") ->  | AE62: =IF(Tabelle_Auswertung[[#This Row],[Platz]]=6,CONCATENATE(Tabelle_Auswertung[[#This Row],[Bildname]]," von ",Tabelle_Auswertung[[#This Row],[Autor(in)]]),"") ->  | AF62: =IF(Tabelle_Auswertung[[#This Row],[Platz]]=7,CONCATENATE(Tabelle_Auswertung[[#This Row],[Bildname]]," von ",Tabelle_Auswertung[[#This Row],[Autor(in)]]),"") ->  | AG62: =IF(Tabelle_Auswertung[[#This Row],[Platz]]=8,CONCATENATE(Tabelle_Auswertung[[#This Row],[Bildname]]," von ",Tabelle_Auswertung[[#This Row],[Autor(in)]]),"") ->  | AH62: =IF(Tabelle_Auswertung[[#This Row],[Platz]]=9,CONCATENATE(Tabelle_Auswertung[[#This Row],[Bildname]]," von ",Tabelle_Auswertung[[#This Row],[Autor(in)]]),"") ->  | AI62: =IF(Tabelle_Auswertung[[#This Row],[Platz]]=10,CONCATENATE(Tabelle_Auswertung[[#This Row],[Bildname]]," von ",Tabelle_Auswertung[[#This Row],[Autor(in)]]),"") -> 
V63: =IF(Tabelle_Auswertung[[#This Row],[Bildname]]<>"",SUM(Tabelle_Auswertung[[#This Row],[Juror 1]:[Juror 20]])," - ") -> - | W63: =IF(Tabelle_Auswertung[[#This Row],[Bildname]]<>"",IF(Tabelle_Auswertung[[#This Row],[Punkte]]>0,AVERAGE(Tabelle_Auswertung[[#This Row],[Juror 1]:[Juror 20]])," - ")," - ") -> - | X63: =IF(Tabelle_Auswertung[[#This Row],[Bildname]]<>"",IF(Tabelle_Auswertung[[#This Row],[Punkte]]>0,RANK(Tabelle_Auswertung[[#This Row],[Punkte]],[Punkte],0)," - ")," - ") -> - | Y63: - - - | Z63: =IF(Tabelle_Auswertung[[#This Row],[Platz]]=1,CONCATENATE(Tabelle_Auswertung[[#This Row],[Bildname]]," von ",Tabelle_Auswertung[[#This Row],[Autor(in)]]),"") ->  | AA63: =IF(Tabelle_Auswertung[[#This Row],[Platz]]=2,CONCATENATE(Tabelle_Auswertung[[#This Row],[Bildname]]," von ",Tabelle_Auswertung[[#This Row],[Autor(in)]]),"") ->  | AB63: =IF(Tabelle_Auswertung[[#This Row],[Platz]]=3,CONCATENATE(Tabelle_Auswertung[[#This Row],[Bildname]]," von ",Tabelle_Auswertung[[#This Row],[Autor(in)]]),"") ->  | AC63: =IF(Tabelle_Auswertung[[#This Row],[Platz]]=4,CONCATENATE(Tabelle_Auswertung[[#This Row],[Bildname]]," von ",Tabelle_Auswertung[[#This Row],[Autor(in)]]),"") ->  | AD63: =IF(Tabelle_Auswertung[[#This Row],[Platz]]=5,CONCATENATE(Tabelle_Auswertung[[#This Row],[Bildname]]," von ",Tabelle_Auswertung[[#This Row],[Autor(in)]]),"") ->  | AE63: =IF(Tabelle_Auswertung[[#This Row],[Platz]]=6,CONCATENATE(Tabelle_Auswertung[[#This Row],[Bildname]]," von ",Tabelle_Auswertung[[#This Row],[Autor(in)]]),"") ->  | AF63: =IF(Tabelle_Auswertung[[#This Row],[Platz]]=7,CONCATENATE(Tabelle_Auswertung[[#This Row],[Bildname]]," von ",Tabelle_Auswertung[[#This Row],[Autor(in)]]),"") ->  | AG63: =IF(Tabelle_Auswertung[[#This Row],[Platz]]=8,CONCATENATE(Tabelle_Auswertung[[#This Row],[Bildname]]," von ",Tabelle_Auswertung[[#This Row],[Autor(in)]]),"") ->  | AH63: =IF(Tabelle_Auswertung[[#This Row],[Platz]]=9,CONCATENATE(Tabelle_Auswertung[[#This Row],[Bildname]]," von ",Tabelle_Auswertung[[#This Row],[Autor(in)]]),"") ->  | AI63: =IF(Tabelle_Auswertung[[#This Row],[Platz]]=10,CONCATENATE(Tabelle_Auswertung[[#This Row],[Bildname]]," von ",Tabelle_Auswertung[[#This Row],[Autor(in)]]),"") -> 
V64: =IF(Tabelle_Auswertung[[#This Row],[Bildname]]<>"",SUM(Tabelle_Auswertung[[#This Row],[Juror 1]:[Juror 20]])," - ") -> - | W64: =IF(Tabelle_Auswertung[[#This Row],[Bildname]]<>"",IF(Tabelle_Auswertung[[#This Row],[Punkte]]>0,AVERAGE(Tabelle_Auswertung[[#This Row],[Juror 1]:[Juror 20]])," - ")," - ") -> - | X64: =IF(Tabelle_Auswertung[[#This Row],[Bildname]]<>"",IF(Tabelle_Auswertung[[#This Row],[Punkte]]>0,RANK(Tabelle_Auswertung[[#This Row],[Punkte]],[Punkte],0)," - ")," - ") -> - | Y64: - - - | Z64: =IF(Tabelle_Auswertung[[#This Row],[Platz]]=1,CONCATENATE(Tabelle_Auswertung[[#This Row],[Bildname]]," von ",Tabelle_Auswertung[[#This Row],[Autor(in)]]),"") ->  | AA64: =IF(Tabelle_Auswertung[[#This Row],[Platz]]=2,CONCATENATE(Tabelle_Auswertung[[#This Row],[Bildname]]," von ",Tabelle_Auswertung[[#This Row],[Autor(in)]]),"") ->  | AB64: =IF(Tabelle_Auswertung[[#This Row],[Platz]]=3,CONCATENATE(Tabelle_Auswertung[[#This Row],[Bildname]]," von ",Tabelle_Auswertung[[#This Row],[Autor(in)]]),"") ->  | AC64: =IF(Tabelle_Auswertung[[#This Row],[Platz]]=4,CONCATENATE(Tabelle_Auswertung[[#This Row],[Bildname]]," von ",Tabelle_Auswertung[[#This Row],[Autor(in)]]),"") ->  | AD64: =IF(Tabelle_Auswertung[[#This Row],[Platz]]=5,CONCATENATE(Tabelle_Auswertung[[#This Row],[Bildname]]," von ",Tabelle_Auswertung[[#This Row],[Autor(in)]]),"") ->  | AE64: =IF(Tabelle_Auswertung[[#This Row],[Platz]]=6,CONCATENATE(Tabelle_Auswertung[[#This Row],[Bildname]]," von ",Tabelle_Auswertung[[#This Row],[Autor(in)]]),"") ->  | AF64: =IF(Tabelle_Auswertung[[#This Row],[Platz]]=7,CONCATENATE(Tabelle_Auswertung[[#This Row],[Bildname]]," von ",Tabelle_Auswertung[[#This Row],[Autor(in)]]),"") ->  | AG64: =IF(Tabelle_Auswertung[[#This Row],[Platz]]=8,CONCATENATE(Tabelle_Auswertung[[#This Row],[Bildname]]," von ",Tabelle_Auswertung[[#This Row],[Autor(in)]]),"") ->  | AH64: =IF(Tabelle_Auswertung[[#This Row],[Platz]]=9,CONCATENATE(Tabelle_Auswertung[[#This Row],[Bildname]]," von ",Tabelle_Auswertung[[#This Row],[Autor(in)]]),"") ->  | AI64: =IF(Tabelle_Auswertung[[#This Row],[Platz]]=10,CONCATENATE(Tabelle_Auswertung[[#This Row],[Bildname]]," von ",Tabelle_Auswertung[[#This Row],[Autor(in)]]),"") -> 
V65: =IF(Tabelle_Auswertung[[#This Row],[Bildname]]<>"",SUM(Tabelle_Auswertung[[#This Row],[Juror 1]:[Juror 20]])," - ") -> - | W65: =IF(Tabelle_Auswertung[[#This Row],[Bildname]]<>"",IF(Tabelle_Auswertung[[#This Row],[Punkte]]>0,AVERAGE(Tabelle_Auswertung[[#This Row],[Juror 1]:[Juror 20]])," - ")," - ") -> - | X65: =IF(Tabelle_Auswertung[[#This Row],[Bildname]]<>"",IF(Tabelle_Auswertung[[#This Row],[Punkte]]>0,RANK(Tabelle_Auswertung[[#This Row],[Punkte]],[Punkte],0)," - ")," - ") -> - | Y65: - - - | Z65: =IF(Tabelle_Auswertung[[#This Row],[Platz]]=1,CONCATENATE(Tabelle_Auswertung[[#This Row],[Bildname]]," von ",Tabelle_Auswertung[[#This Row],[Autor(in)]]),"") ->  | AA65: =IF(Tabelle_Auswertung[[#This Row],[Platz]]=2,CONCATENATE(Tabelle_Auswertung[[#This Row],[Bildname]]," von ",Tabelle_Auswertung[[#This Row],[Autor(in)]]),"") ->  | AB65: =IF(Tabelle_Auswertung[[#This Row],[Platz]]=3,CONCATENATE(Tabelle_Auswertung[[#This Row],[Bildname]]," von ",Tabelle_Auswertung[[#This Row],[Autor(in)]]),"") ->  | AC65: =IF(Tabelle_Auswertung[[#This Row],[Platz]]=4,CONCATENATE(Tabelle_Auswertung[[#This Row],[Bildname]]," von ",Tabelle_Auswertung[[#This Row],[Autor(in)]]),"") ->  | AD65: =IF(Tabelle_Auswertung[[#This Row],[Platz]]=5,CONCATENATE(Tabelle_Auswertung[[#This Row],[Bildname]]," von ",Tabelle_Auswertung[[#This Row],[Autor(in)]]),"") ->  | AE65: =IF(Tabelle_Auswertung[[#This Row],[Platz]]=6,CONCATENATE(Tabelle_Auswertung[[#This Row],[Bildname]]," von ",Tabelle_Auswertung[[#This Row],[Autor(in)]]),"") ->  | AF65: =IF(Tabelle_Auswertung[[#This Row],[Platz]]=7,CONCATENATE(Tabelle_Auswertung[[#This Row],[Bildname]]," von ",Tabelle_Auswertung[[#This Row],[Autor(in)]]),"") ->  | AG65: =IF(Tabelle_Auswertung[[#This Row],[Platz]]=8,CONCATENATE(Tabelle_Auswertung[[#This Row],[Bildname]]," von ",Tabelle_Auswertung[[#This Row],[Autor(in)]]),"") ->  | AH65: =IF(Tabelle_Auswertung[[#This Row],[Platz]]=9,CONCATENATE(Tabelle_Auswertung[[#This Row],[Bildname]]," von ",Tabelle_Auswertung[[#This Row],[Autor(in)]]),"") ->  | AI65: =IF(Tabelle_Auswertung[[#This Row],[Platz]]=10,CONCATENATE(Tabelle_Auswertung[[#This Row],[Bildname]]," von ",Tabelle_Auswertung[[#This Row],[Autor(in)]]),"") -> 
V66: =IF(Tabelle_Auswertung[[#This Row],[Bildname]]<>"",SUM(Tabelle_Auswertung[[#This Row],[Juror 1]:[Juror 20]])," - ") -> - | W66: =IF(Tabelle_Auswertung[[#This Row],[Bildname]]<>"",IF(Tabelle_Auswertung[[#This Row],[Punkte]]>0,AVERAGE(Tabelle_Auswertung[[#This Row],[Juror 1]:[Juror 20]])," - ")," - ") -> - | X66: =IF(Tabelle_Auswertung[[#This Row],[Bildname]]<>"",IF(Tabelle_Auswertung[[#This Row],[Punkte]]>0,RANK(Tabelle_Auswertung[[#This Row],[Punkte]],[Punkte],0)," - ")," - ") -> - | Y66: - - - | Z66: =IF(Tabelle_Auswertung[[#This Row],[Platz]]=1,CONCATENATE(Tabelle_Auswertung[[#This Row],[Bildname]]," von ",Tabelle_Auswertung[[#This Row],[Autor(in)]]),"") ->  | AA66: =IF(Tabelle_Auswertung[[#This Row],[Platz]]=2,CONCATENATE(Tabelle_Auswertung[[#This Row],[Bildname]]," von ",Tabelle_Auswertung[[#This Row],[Autor(in)]]),"") ->  | AB66: =IF(Tabelle_Auswertung[[#This Row],[Platz]]=3,CONCATENATE(Tabelle_Auswertung[[#This Row],[Bildname]]," von ",Tabelle_Auswertung[[#This Row],[Autor(in)]]),"") ->  | AC66: =IF(Tabelle_Auswertung[[#This Row],[Platz]]=4,CONCATENATE(Tabelle_Auswertung[[#This Row],[Bildname]]," von ",Tabelle_Auswertung[[#This Row],[Autor(in)]]),"") ->  | AD66: =IF(Tabelle_Auswertung[[#This Row],[Platz]]=5,CONCATENATE(Tabelle_Auswertung[[#This Row],[Bildname]]," von ",Tabelle_Auswertung[[#This Row],[Autor(in)]]),"") ->  | AE66: =IF(Tabelle_Auswertung[[#This Row],[Platz]]=6,CONCATENATE(Tabelle_Auswertung[[#This Row],[Bildname]]," von ",Tabelle_Auswertung[[#This Row],[Autor(in)]]),"") ->  | AF66: =IF(Tabelle_Auswertung[[#This Row],[Platz]]=7,CONCATENATE(Tabelle_Auswertung[[#This Row],[Bildname]]," von ",Tabelle_Auswertung[[#This Row],[Autor(in)]]),"") ->  | AG66: =IF(Tabelle_Auswertung[[#This Row],[Platz]]=8,CONCATENATE(Tabelle_Auswertung[[#This Row],[Bildname]]," von ",Tabelle_Auswertung[[#This Row],[Autor(in)]]),"") ->  | AH66: =IF(Tabelle_Auswertung[[#This Row],[Platz]]=9,CONCATENATE(Tabelle_Auswertung[[#This Row],[Bildname]]," von ",Tabelle_Auswertung[[#This Row],[Autor(in)]]),"") ->  | AI66: =IF(Tabelle_Auswertung[[#This Row],[Platz]]=10,CONCATENATE(Tabelle_Auswertung[[#This Row],[Bildname]]," von ",Tabelle_Auswertung[[#This Row],[Autor(in)]]),"") -> 
V67: =IF(Tabelle_Auswertung[[#This Row],[Bildname]]<>"",SUM(Tabelle_Auswertung[[#This Row],[Juror 1]:[Juror 20]])," - ") -> - | W67: =IF(Tabelle_Auswertung[[#This Row],[Bildname]]<>"",IF(Tabelle_Auswertung[[#This Row],[Punkte]]>0,AVERAGE(Tabelle_Auswertung[[#This Row],[Juror 1]:[Juror 20]])," - ")," - ") -> - | X67: =IF(Tabelle_Auswertung[[#This Row],[Bildname]]<>"",IF(Tabelle_Auswertung[[#This Row],[Punkte]]>0,RANK(Tabelle_Auswertung[[#This Row],[Punkte]],[Punkte],0)," - ")," - ") -> - | Y67: - - - | Z67: =IF(Tabelle_Auswertung[[#This Row],[Platz]]=1,CONCATENATE(Tabelle_Auswertung[[#This Row],[Bildname]]," von ",Tabelle_Auswertung[[#This Row],[Autor(in)]]),"") ->  | AA67: =IF(Tabelle_Auswertung[[#This Row],[Platz]]=2,CONCATENATE(Tabelle_Auswertung[[#This Row],[Bildname]]," von ",Tabelle_Auswertung[[#This Row],[Autor(in)]]),"") ->  | AB67: =IF(Tabelle_Auswertung[[#This Row],[Platz]]=3,CONCATENATE(Tabelle_Auswertung[[#This Row],[Bildname]]," von ",Tabelle_Auswertung[[#This Row],[Autor(in)]]),"") ->  | AC67: =IF(Tabelle_Auswertung[[#This Row],[Platz]]=4,CONCATENATE(Tabelle_Auswertung[[#This Row],[Bildname]]," von ",Tabelle_Auswertung[[#This Row],[Autor(in)]]),"") ->  | AD67: =IF(Tabelle_Auswertung[[#This Row],[Platz]]=5,CONCATENATE(Tabelle_Auswertung[[#This Row],[Bildname]]," von ",Tabelle_Auswertung[[#This Row],[Autor(in)]]),"") ->  | AE67: =IF(Tabelle_Auswertung[[#This Row],[Platz]]=6,CONCATENATE(Tabelle_Auswertung[[#This Row],[Bildname]]," von ",Tabelle_Auswertung[[#This Row],[Autor(in)]]),"") ->  | AF67: =IF(Tabelle_Auswertung[[#This Row],[Platz]]=7,CONCATENATE(Tabelle_Auswertung[[#This Row],[Bildname]]," von ",Tabelle_Auswertung[[#This Row],[Autor(in)]]),"") ->  | AG67: =IF(Tabelle_Auswertung[[#This Row],[Platz]]=8,CONCATENATE(Tabelle_Auswertung[[#This Row],[Bildname]]," von ",Tabelle_Auswertung[[#This Row],[Autor(in)]]),"") ->  | AH67: =IF(Tabelle_Auswertung[[#This Row],[Platz]]=9,CONCATENATE(Tabelle_Auswertung[[#This Row],[Bildname]]," von ",Tabelle_Auswertung[[#This Row],[Autor(in)]]),"") ->  | AI67: =IF(Tabelle_Auswertung[[#This Row],[Platz]]=10,CONCATENATE(Tabelle_Auswertung[[#This Row],[Bildname]]," von ",Tabelle_Auswertung[[#This Row],[Autor(in)]]),"") -> 
V68: =IF(Tabelle_Auswertung[[#This Row],[Bildname]]<>"",SUM(Tabelle_Auswertung[[#This Row],[Juror 1]:[Juror 20]])," - ") -> - | W68: =IF(Tabelle_Auswertung[[#This Row],[Bildname]]<>"",IF(Tabelle_Auswertung[[#This Row],[Punkte]]>0,AVERAGE(Tabelle_Auswertung[[#This Row],[Juror 1]:[Juror 20]])," - ")," - ") -> - | X68: =IF(Tabelle_Auswertung[[#This Row],[Bildname]]<>"",IF(Tabelle_Auswertung[[#This Row],[Punkte]]>0,RANK(Tabelle_Auswertung[[#This Row],[Punkte]],[Punkte],0)," - ")," - ") -> - | Y68: - - - | Z68: =IF(Tabelle_Auswertung[[#This Row],[Platz]]=1,CONCATENATE(Tabelle_Auswertung[[#This Row],[Bildname]]," von ",Tabelle_Auswertung[[#This Row],[Autor(in)]]),"") ->  | AA68: =IF(Tabelle_Auswertung[[#This Row],[Platz]]=2,CONCATENATE(Tabelle_Auswertung[[#This Row],[Bildname]]," von ",Tabelle_Auswertung[[#This Row],[Autor(in)]]),"") ->  | AB68: =IF(Tabelle_Auswertung[[#This Row],[Platz]]=3,CONCATENATE(Tabelle_Auswertung[[#This Row],[Bildname]]," von ",Tabelle_Auswertung[[#This Row],[Autor(in)]]),"") ->  | AC68: =IF(Tabelle_Auswertung[[#This Row],[Platz]]=4,CONCATENATE(Tabelle_Auswertung[[#This Row],[Bildname]]," von ",Tabelle_Auswertung[[#This Row],[Autor(in)]]),"") ->  | AD68: =IF(Tabelle_Auswertung[[#This Row],[Platz]]=5,CONCATENATE(Tabelle_Auswertung[[#This Row],[Bildname]]," von ",Tabelle_Auswertung[[#This Row],[Autor(in)]]),"") ->  | AE68: =IF(Tabelle_Auswertung[[#This Row],[Platz]]=6,CONCATENATE(Tabelle_Auswertung[[#This Row],[Bildname]]," von ",Tabelle_Auswertung[[#This Row],[Autor(in)]]),"") ->  | AF68: =IF(Tabelle_Auswertung[[#This Row],[Platz]]=7,CONCATENATE(Tabelle_Auswertung[[#This Row],[Bildname]]," von ",Tabelle_Auswertung[[#This Row],[Autor(in)]]),"") ->  | AG68: =IF(Tabelle_Auswertung[[#This Row],[Platz]]=8,CONCATENATE(Tabelle_Auswertung[[#This Row],[Bildname]]," von ",Tabelle_Auswertung[[#This Row],[Autor(in)]]),"") ->  | AH68: =IF(Tabelle_Auswertung[[#This Row],[Platz]]=9,CONCATENATE(Tabelle_Auswertung[[#This Row],[Bildname]]," von ",Tabelle_Auswertung[[#This Row],[Autor(in)]]),"") ->  | AI68: =IF(Tabelle_Auswertung[[#This Row],[Platz]]=10,CONCATENATE(Tabelle_Auswertung[[#This Row],[Bildname]]," von ",Tabelle_Auswertung[[#This Row],[Autor(in)]]),"") -> 
V69: =IF(Tabelle_Auswertung[[#This Row],[Bildname]]<>"",SUM(Tabelle_Auswertung[[#This Row],[Juror 1]:[Juror 20]])," - ") -> - | W69: =IF(Tabelle_Auswertung[[#This Row],[Bildname]]<>"",IF(Tabelle_Auswertung[[#This Row],[Punkte]]>0,AVERAGE(Tabelle_Auswertung[[#This Row],[Juror 1]:[Juror 20]])," - ")," - ") -> - | X69: =IF(Tabelle_Auswertung[[#This Row],[Bildname]]<>"",IF(Tabelle_Auswertung[[#This Row],[Punkte]]>0,RANK(Tabelle_Auswertung[[#This Row],[Punkte]],[Punkte],0)," - ")," - ") -> - | Y69: - - - | Z69: =IF(Tabelle_Auswertung[[#This Row],[Platz]]=1,CONCATENATE(Tabelle_Auswertung[[#This Row],[Bildname]]," von ",Tabelle_Auswertung[[#This Row],[Autor(in)]]),"") ->  | AA69: =IF(Tabelle_Auswertung[[#This Row],[Platz]]=2,CONCATENATE(Tabelle_Auswertung[[#This Row],[Bildname]]," von ",Tabelle_Auswertung[[#This Row],[Autor(in)]]),"") ->  | AB69: =IF(Tabelle_Auswertung[[#This Row],[Platz]]=3,CONCATENATE(Tabelle_Auswertung[[#This Row],[Bildname]]," von ",Tabelle_Auswertung[[#This Row],[Autor(in)]]),"") ->  | AC69: =IF(Tabelle_Auswertung[[#This Row],[Platz]]=4,CONCATENATE(Tabelle_Auswertung[[#This Row],[Bildname]]," von ",Tabelle_Auswertung[[#This Row],[Autor(in)]]),"") ->  | AD69: =IF(Tabelle_Auswertung[[#This Row],[Platz]]=5,CONCATENATE(Tabelle_Auswertung[[#This Row],[Bildname]]," von ",Tabelle_Auswertung[[#This Row],[Autor(in)]]),"") ->  | AE69: =IF(Tabelle_Auswertung[[#This Row],[Platz]]=6,CONCATENATE(Tabelle_Auswertung[[#This Row],[Bildname]]," von ",Tabelle_Auswertung[[#This Row],[Autor(in)]]),"") ->  | AF69: =IF(Tabelle_Auswertung[[#This Row],[Platz]]=7,CONCATENATE(Tabelle_Auswertung[[#This Row],[Bildname]]," von ",Tabelle_Auswertung[[#This Row],[Autor(in)]]),"") ->  | AG69: =IF(Tabelle_Auswertung[[#This Row],[Platz]]=8,CONCATENATE(Tabelle_Auswertung[[#This Row],[Bildname]]," von ",Tabelle_Auswertung[[#This Row],[Autor(in)]]),"") ->  | AH69: =IF(Tabelle_Auswertung[[#This Row],[Platz]]=9,CONCATENATE(Tabelle_Auswertung[[#This Row],[Bildname]]," von ",Tabelle_Auswertung[[#This Row],[Autor(in)]]),"") ->  | AI69: =IF(Tabelle_Auswertung[[#This Row],[Platz]]=10,CONCATENATE(Tabelle_Auswertung[[#This Row],[Bildname]]," von ",Tabelle_Auswertung[[#This Row],[Autor(in)]]),"") -> 
V70: =IF(Tabelle_Auswertung[[#This Row],[Bildname]]<>"",SUM(Tabelle_Auswertung[[#This Row],[Juror 1]:[Juror 20]])," - ") -> - | W70: =IF(Tabelle_Auswertung[[#This Row],[Bildname]]<>"",IF(Tabelle_Auswertung[[#This Row],[Punkte]]>0,AVERAGE(Tabelle_Auswertung[[#This Row],[Juror 1]:[Juror 20]])," - ")," - ") -> - | X70: =IF(Tabelle_Auswertung[[#This Row],[Bildname]]<>"",IF(Tabelle_Auswertung[[#This Row],[Punkte]]>0,RANK(Tabelle_Auswertung[[#This Row],[Punkte]],[Punkte],0)," - ")," - ") -> - | Y70: - - - | Z70: =IF(Tabelle_Auswertung[[#This Row],[Platz]]=1,CONCATENATE(Tabelle_Auswertung[[#This Row],[Bildname]]," von ",Tabelle_Auswertung[[#This Row],[Autor(in)]]),"") ->  | AA70: =IF(Tabelle_Auswertung[[#This Row],[Platz]]=2,CONCATENATE(Tabelle_Auswertung[[#This Row],[Bildname]]," von ",Tabelle_Auswertung[[#This Row],[Autor(in)]]),"") ->  | AB70: =IF(Tabelle_Auswertung[[#This Row],[Platz]]=3,CONCATENATE(Tabelle_Auswertung[[#This Row],[Bildname]]," von ",Tabelle_Auswertung[[#This Row],[Autor(in)]]),"") ->  | AC70: =IF(Tabelle_Auswertung[[#This Row],[Platz]]=4,CONCATENATE(Tabelle_Auswertung[[#This Row],[Bildname]]," von ",Tabelle_Auswertung[[#This Row],[Autor(in)]]),"") ->  | AD70: =IF(Tabelle_Auswertung[[#This Row],[Platz]]=5,CONCATENATE(Tabelle_Auswertung[[#This Row],[Bildname]]," von ",Tabelle_Auswertung[[#This Row],[Autor(in)]]),"") ->  | AE70: =IF(Tabelle_Auswertung[[#This Row],[Platz]]=6,CONCATENATE(Tabelle_Auswertung[[#This Row],[Bildname]]," von ",Tabelle_Auswertung[[#This Row],[Autor(in)]]),"") ->  | AF70: =IF(Tabelle_Auswertung[[#This Row],[Platz]]=7,CONCATENATE(Tabelle_Auswertung[[#This Row],[Bildname]]," von ",Tabelle_Auswertung[[#This Row],[Autor(in)]]),"") ->  | AG70: =IF(Tabelle_Auswertung[[#This Row],[Platz]]=8,CONCATENATE(Tabelle_Auswertung[[#This Row],[Bildname]]," von ",Tabelle_Auswertung[[#This Row],[Autor(in)]]),"") ->  | AH70: =IF(Tabelle_Auswertung[[#This Row],[Platz]]=9,CONCATENATE(Tabelle_Auswertung[[#This Row],[Bildname]]," von ",Tabelle_Auswertung[[#This Row],[Autor(in)]]),"") ->  | AI70: =IF(Tabelle_Auswertung[[#This Row],[Platz]]=10,CONCATENATE(Tabelle_Auswertung[[#This Row],[Bildname]]," von ",Tabelle_Auswertung[[#This Row],[Autor(in)]]),"") -> 
V71: =SUBTOTAL(101,[Punkte]) -> 17.81 | W71: =SUBTOTAL(101,[Schnitt]) -> 5.94 | Y71: - - -
Y72: - - -
Y73: - - -
Y74: - - -
Y75: - - -
Y76: - - -
Y77: - - -
Y78: - - -
Y79: - - -
Y80: - - -
Y81: - - -
Y82: - - -
Y83: - - -
Y84: - - -
Y85: - - -
Y86: - - -
Y87: - - -
Y88: - - -
Y89: - - -
Y90: - - -
Y91: - - -
Y92: - - -
Y93: - - -
Y94: - - -
Y95: - - -
Y96: - - -
Y97: - - -
Y98: - - -
Y99: - - -
Y100: - - -
Y101: - - -

Sheet Statistik nach Autor(in)
A1: Statistik | J1: 1 | K1: - Platz 1
J2: 2 | K2: - Platz 2
J3: 3 | K3: - Platz 3
J4: 4-10 | K4: - Top 10
A5: Autor(in) | B5: Punkte | C5: Platz | D5: Teilnahme | E5: 1ster | F5: 2ter | G5: 3ter | H5: TOP 10
A6: =IF(AND(Fotografen!$A29<>"",Fotografen!$A29<>" - - -"),Fotografen!$A29,"") -> Susanne Deinhardt | B6: =IF(Tabelle_Statistik[[#This Row],[Teilnahme]]="ja",SUMIF(Tabelle_Auswertung[Autor(in)],Tabelle_Statistik[[#This Row],[Autor(in)]],Tabelle_Auswertung[Punkte]),IF(Tabelle_Statistik[[#This Row],[Autor(in)]]<>""," - ","")) -> 122 | C6: =IF(Tabelle_Statistik[[#This Row],[Teilnahme]]="ja",RANK(Tabelle_Statistik[[#This Row],[Punkte]],[Punkte],0),IF(Tabelle_Statistik[[#This Row],[Autor(in)]]<>""," - ","")) -> 1 | D6: =IF(Tabelle_Statistik[[#This Row],[Autor(in)]]<>"",IF(COUNTIF(Tabelle_Auswertung[Autor(in)],Tabelle_Statistik[[#This Row],[Autor(in)]])>0,"ja","nein"),"") -> ja | E6: =IF(Tabelle_Statistik[[#This Row],[Platz]]=1,Tabelle_Statistik[[#This Row],[Autor(in)]],"") -> Susanne Deinhardt | F6: =IF(Tabelle_Statistik[[#This Row],[Platz]]=2,Tabelle_Statistik[[#This Row],[Autor(in)]],"") ->  | G6: =IF(Tabelle_Statistik[[#This Row],[Platz]]=3,Tabelle_Statistik[[#This Row],[Autor(in)]],"") ->  | H6: =IF(Tabelle_Statistik[[#This Row],[Platz]]<11,Tabelle_Statistik[[#This Row],[Autor(in)]],"") -> Susanne Deinhardt
A7: =IF(AND(Fotografen!$A12<>"",Fotografen!$A12<>" - - -"),Fotografen!$A12,"") -> Gerhard Rieß | B7: =IF(Tabelle_Statistik[[#This Row],[Teilnahme]]="ja",SUMIF(Tabelle_Auswertung[Autor(in)],Tabelle_Statistik[[#This Row],[Autor(in)]],Tabelle_Auswertung[Punkte]),IF(Tabelle_Statistik[[#This Row],[Autor(in)]]<>""," - ","")) -> 112 | C7: =IF(Tabelle_Statistik[[#This Row],[Teilnahme]]="ja",RANK(Tabelle_Statistik[[#This Row],[Punkte]],[Punkte],0),IF(Tabelle_Statistik[[#This Row],[Autor(in)]]<>""," - ","")) -> 2 | D7: =IF(Tabelle_Statistik[[#This Row],[Autor(in)]]<>"",IF(COUNTIF(Tabelle_Auswertung[Autor(in)],Tabelle_Statistik[[#This Row],[Autor(in)]])>0,"ja","nein"),"") -> ja | E7: =IF(Tabelle_Statistik[[#This Row],[Platz]]=1,Tabelle_Statistik[[#This Row],[Autor(in)]],"") ->  | F7: =IF(Tabelle_Statistik[[#This Row],[Platz]]=2,Tabelle_Statistik[[#This Row],[Autor(in)]],"") -> Gerhard Rieß | G7: =IF(Tabelle_Statistik[[#This Row],[Platz]]=3,Tabelle_Statistik[[#This Row],[Autor(in)]],"") ->  | H7: =IF(Tabelle_Statistik[[#This Row],[Platz]]<11,Tabelle_Statistik[[#This Row],[Autor(in)]],"") -> Gerhard Rieß
A8: =IF(AND(Fotografen!$A5<>"",Fotografen!$A5<>" - - -"),Fotografen!$A5,"") -> Andreas Toltz | B8: =IF(Tabelle_Statistik[[#This Row],[Teilnahme]]="ja",SUMIF(Tabelle_Auswertung[Autor(in)],Tabelle_Statistik[[#This Row],[Autor(in)]],Tabelle_Auswertung[Punkte]),IF(Tabelle_Statistik[[#This Row],[Autor(in)]]<>""," - ","")) -> 110 | C8: =IF(Tabelle_Statistik[[#This Row],[Teilnahme]]="ja",RANK(Tabelle_Statistik[[#This Row],[Punkte]],[Punkte],0),IF(Tabelle_Statistik[[#This Row],[Autor(in)]]<>""," - ","")) -> 3 | D8: =IF(Tabelle_Statistik[[#This Row],[Autor(in)]]<>"",IF(COUNTIF(Tabelle_Auswertung[Autor(in)],Tabelle_Statistik[[#This Row],[Autor(in)]])>0,"ja","nein"),"") -> ja | E8: =IF(Tabelle_Statistik[[#This Row],[Platz]]=1,Tabelle_Statistik[[#This Row],[Autor(in)]],"") ->  | F8: =IF(Tabelle_Statistik[[#This Row],[Platz]]=2,Tabelle_Statistik[[#This Row],[Autor(in)]],"") ->  | G8: =IF(Tabelle_Statistik[[#This Row],[Platz]]=3,Tabelle_Statistik[[#This Row],[Autor(in)]],"") -> Andreas Toltz | H8: =IF(Tabelle_Statistik[[#This Row],[Platz]]<11,Tabelle_Statistik[[#This Row],[Autor(in)]],"") -> Andreas Toltz
A9: =IF(AND(Fotografen!$A8<>"",Fotografen!$A8<>" - - -"),Fotografen!$A8,"") -> Chris Finsterer | B9: =IF(Tabelle_Statistik[[#This Row],[Teilnahme]]="ja",SUMIF(Tabelle_Auswertung[Autor(in)],Tabelle_Statistik[[#This Row],[Autor(in)]],Tabelle_Auswertung[Punkte]),IF(Tabelle_Statistik[[#This Row],[Autor(in)]]<>""," - ","")) -> 107 | C9: =IF(Tabelle_Statistik[[#This Row],[Teilnahme]]="ja",RANK(Tabelle_Statistik[[#This Row],[Punkte]],[Punkte],0),IF(Tabelle_Statistik[[#This Row],[Autor(in)]]<>""," - ","")) -> 4 | D9: =IF(Tabelle_Statistik[[#This Row],[Autor(in)]]<>"",IF(COUNTIF(Tabelle_Auswertung[Autor(in)],Tabelle_Statistik[[#This Row],[Autor(in)]])>0,"ja","nein"),"") -> ja | E9: =IF(Tabelle_Statistik[[#This Row],[Platz]]=1,Tabelle_Statistik[[#This Row],[Autor(in)]],"") ->  | F9: =IF(Tabelle_Statistik[[#This Row],[Platz]]=2,Tabelle_Statistik[[#This Row],[Autor(in)]],"") ->  | G9: =IF(Tabelle_Statistik[[#This Row],[Platz]]=3,Tabelle_Statistik[[#This Row],[Autor(in)]],"") ->  | H9: =IF(Tabelle_Statistik[[#This Row],[Platz]]<11,Tabelle_Statistik[[#This Row],[Autor(in)]],"") -> Chris Finsterer
A10: =IF(AND(Fotografen!$A17<>"",Fotografen!$A17<>" - - -"),Fotografen!$A17,"") -> Jan Grünler | B10: =IF(Tabelle_Statistik[[#This Row],[Teilnahme]]="ja",SUMIF(Tabelle_Auswertung[Autor(in)],Tabelle_Statistik[[#This Row],[Autor(in)]],Tabelle_Auswertung[Punkte]),IF(Tabelle_Statistik[[#This Row],[Autor(in)]]<>""," - ","")) -> 96 | C10: =IF(Tabelle_Statistik[[#This Row],[Teilnahme]]="ja",RANK(Tabelle_Statistik[[#This Row],[Punkte]],[Punkte],0),IF(Tabelle_Statistik[[#This Row],[Autor(in)]]<>""," - ","")) -> 5 | D10: =IF(Tabelle_Statistik[[#This Row],[Autor(in)]]<>"",IF(COUNTIF(Tabelle_Auswertung[Autor(in)],Tabelle_Statistik[[#This Row],[Autor(in)]])>0,"ja","nein"),"") -> ja | E10: =IF(Tabelle_Statistik[[#This Row],[Platz]]=1,Tabelle_Statistik[[#This Row],[Autor(in)]],"") ->  | F10: =IF(Tabelle_Statistik[[#This Row],[Platz]]=2,Tabelle_Statistik[[#This Row],[Autor(in)]],"") ->  | G10: =IF(Tabelle_Statistik[[#This Row],[Platz]]=3,Tabelle_Statistik[[#This Row],[Autor(in)]],"") ->  | H10: =IF(Tabelle_Statistik[[#This Row],[Platz]]<11,Tabelle_Statistik[[#This Row],[Autor(in)]],"") -> Jan Grünler
A11: =IF(AND(Fotografen!$A13<>"",Fotografen!$A13<>" - - -"),Fotografen!$A13,"") -> Gert Häberlein | B11: =IF(Tabelle_Statistik[[#This Row],[Teilnahme]]="ja",SUMIF(Tabelle_Auswertung[Autor(in)],Tabelle_Statistik[[#This Row],[Autor(in)]],Tabelle_Auswertung[Punkte]),IF(Tabelle_Statistik[[#This Row],[Autor(in)]]<>""," - ","")) -> 94 | C11: =IF(Tabelle_Statistik[[#This Row],[Teilnahme]]="ja",RANK(Tabelle_Statistik[[#This Row],[Punkte]],[Punkte],0),IF(Tabelle_Statistik[[#This Row],[Autor(in)]]<>""," - ","")) -> 6 | D11: =IF(Tabelle_Statistik[[#This Row],[Autor(in)]]<>"",IF(COUNTIF(Tabelle_Auswertung[Autor(in)],Tabelle_Statistik[[#This Row],[Autor(in)]])>0,"ja","nein"),"") -> ja | E11: =IF(Tabelle_Statistik[[#This Row],[Platz]]=1,Tabelle_Statistik[[#This Row],[Autor(in)]],"") ->  | F11: =IF(Tabelle_Statistik[[#This Row],[Platz]]=2,Tabelle_Statistik[[#This Row],[Autor(in)]],"") ->  | G11: =IF(Tabelle_Statistik[[#This Row],[Platz]]=3,Tabelle_Statistik[[#This Row],[Autor(in)]],"") ->  | H11: =IF(Tabelle_Statistik[[#This Row],[Platz]]<11,Tabelle_Statistik[[#This Row],[Autor(in)]],"") -> Gert Häberlein
A12: =IF(AND(Fotografen!$A2<>"",Fotografen!$A2<>" - - -"),Fotografen!$A2,"") ->  | B12: =IF(Tabelle_Statistik[[#This Row],[Teilnahme]]="ja",SUMIF(Tabelle_Auswertung[Autor(in)],Tabelle_Statistik[[#This Row],[Autor(in)]],Tabelle_Auswertung[Punkte]),IF(Tabelle_Statistik[[#This Row],[Autor(in)]]<>""," - ","")) ->  | C12: =IF(Tabelle_Statistik[[#This Row],[Teilnahme]]="ja",RANK(Tabelle_Statistik[[#This Row],[Punkte]],[Punkte],0),IF(Tabelle_Statistik[[#This Row],[Autor(in)]]<>""," - ","")) ->  | D12: =IF(Tabelle_Statistik[[#This Row],[Autor(in)]]<>"",IF(COUNTIF(Tabelle_Auswertung[Autor(in)],Tabelle_Statistik[[#This Row],[Autor(in)]])>0,"ja","nein"),"") ->  | E12: =IF(Tabelle_Statistik[[#This Row],[Platz]]=1,Tabelle_Statistik[[#This Row],[Autor(in)]],"") ->  | F12: =IF(Tabelle_Statistik[[#This Row],[Platz]]=2,Tabelle_Statistik[[#This Row],[Autor(in)]],"") ->  | G12: =IF(Tabelle_Statistik[[#This Row],[Platz]]=3,Tabelle_Statistik[[#This Row],[Autor(in)]],"") ->  | H12: =IF(Tabelle_Statistik[[#This Row],[Platz]]<11,Tabelle_Statistik[[#This Row],[Autor(in)]],"") -> 
A13: =IF(AND(Fotografen!$A25<>"",Fotografen!$A25<>" - - -"),Fotografen!$A25,"") -> Nadja Cassim | B13: =IF(Tabelle_Statistik[[#This Row],[Teilnahme]]="ja",SUMIF(Tabelle_Auswertung[Autor(in)],Tabelle_Statistik[[#This Row],[Autor(in)]],Tabelle_Auswertung[Punkte]),IF(Tabelle_Statistik[[#This Row],[Autor(in)]]<>""," - ","")) -> - | C13: =IF(Tabelle_Statistik[[#This Row],[Teilnahme]]="ja",RANK(Tabelle_Statistik[[#This Row],[Punkte]],[Punkte],0),IF(Tabelle_Statistik[[#This Row],[Autor(in)]]<>""," - ","")) -> - | D13: =IF(Tabelle_Statistik[[#This Row],[Autor(in)]]<>"",IF(COUNTIF(Tabelle_Auswertung[Autor(in)],Tabelle_Statistik[[#This Row],[Autor(in)]])>0,"ja","nein"),"") -> nein | E13: =IF(Tabelle_Statistik[[#This Row],[Platz]]=1,Tabelle_Statistik[[#This Row],[Autor(in)]],"") ->  | F13: =IF(Tabelle_Statistik[[#This Row],[Platz]]=2,Tabelle_Statistik[[#This Row],[Autor(in)]],"") ->  | G13: =IF(Tabelle_Statistik[[#This Row],[Platz]]=3,Tabelle_Statistik[[#This Row],[Autor(in)]],"") ->  | H13: =IF(Tabelle_Statistik[[#This Row],[Platz]]<11,Tabelle_Statistik[[#This Row],[Autor(in)]],"") -> 
A14: =IF(AND(Fotografen!$A26<>"",Fotografen!$A26<>" - - -"),Fotografen!$A26,"") -> Oliver von Guérard | B14: =IF(Tabelle_Statistik[[#This Row],[Teilnahme]]="ja",SUMIF(Tabelle_Auswertung[Autor(in)],Tabelle_Statistik[[#This Row],[Autor(in)]],Tabelle_Auswertung[Punkte]),IF(Tabelle_Statistik[[#This Row],[Autor(in)]]<>""," - ","")) -> - | C14: =IF(Tabelle_Statistik[[#This Row],[Teilnahme]]="ja",RANK(Tabelle_Statistik[[#This Row],[Punkte]],[Punkte],0),IF(Tabelle_Statistik[[#This Row],[Autor(in)]]<>""," - ","")) -> - | D14: =IF(Tabelle_Statistik[[#This Row],[Autor(in)]]<>"",IF(COUNTIF(Tabelle_Auswertung[Autor(in)],Tabelle_Statistik[[#This Row],[Autor(in)]])>0,"ja","nein"),"") -> nein | E14: =IF(Tabelle_Statistik[[#This Row],[Platz]]=1,Tabelle_Statistik[[#This Row],[Autor(in)]],"") ->  | F14: =IF(Tabelle_Statistik[[#This Row],[Platz]]=2,Tabelle_Statistik[[#This Row],[Autor(in)]],"") ->  | G14: =IF(Tabelle_Statistik[[#This Row],[Platz]]=3,Tabelle_Statistik[[#This Row],[Autor(in)]],"") ->  | H14: =IF(Tabelle_Statistik[[#This Row],[Platz]]<11,Tabelle_Statistik[[#This Row],[Autor(in)]],"") -> 
A15: =IF(AND(Fotografen!$A3<>"",Fotografen!$A3<>" - - -"),Fotografen!$A3,"") -> Albrecht Flierl | B15: =IF(Tabelle_Statistik[[#This Row],[Teilnahme]]="ja",SUMIF(Tabelle_Auswertung[Autor(in)],Tabelle_Statistik[[#This Row],[Autor(in)]],Tabelle_Auswertung[Punkte]),IF(Tabelle_Statistik[[#This Row],[Autor(in)]]<>""," - ","")) -> - | C15: =IF(Tabelle_Statistik[[#This Row],[Teilnahme]]="ja",RANK(Tabelle_Statistik[[#This Row],[Punkte]],[Punkte],0),IF(Tabelle_Statistik[[#This Row],[Autor(in)]]<>""," - ","")) -> - | D15: =IF(Tabelle_Statistik[[#This Row],[Autor(in)]]<>"",IF(COUNTIF(Tabelle_Auswertung[Autor(in)],Tabelle_Statistik[[#This Row],[Autor(in)]])>0,"ja","nein"),"") -> nein | E15: =IF(Tabelle_Statistik[[#This Row],[Platz]]=1,Tabelle_Statistik[[#This Row],[Autor(in)]],"") ->  | F15: =IF(Tabelle_Statistik[[#This Row],[Platz]]=2,Tabelle_Statistik[[#This Row],[Autor(in)]],"") ->  | G15: =IF(Tabelle_Statistik[[#This Row],[Platz]]=3,Tabelle_Statistik[[#This Row],[Autor(in)]],"") ->  | H15: =IF(Tabelle_Statistik[[#This Row],[Platz]]<11,Tabelle_Statistik[[#This Row],[Autor(in)]],"") -> 
A16: =IF(AND(Fotografen!$A4<>"",Fotografen!$A4<>" - - -"),Fotografen!$A4,"") -> Alexander Häberlein | B16: =IF(Tabelle_Statistik[[#This Row],[Teilnahme]]="ja",SUMIF(Tabelle_Auswertung[Autor(in)],Tabelle_Statistik[[#This Row],[Autor(in)]],Tabelle_Auswertung[Punkte]),IF(Tabelle_Statistik[[#This Row],[Autor(in)]]<>""," - ","")) -> - | C16: =IF(Tabelle_Statistik[[#This Row],[Teilnahme]]="ja",RANK(Tabelle_Statistik[[#This Row],[Punkte]],[Punkte],0),IF(Tabelle_Statistik[[#This Row],[Autor(in)]]<>""," - ","")) -> - | D16: =IF(Tabelle_Statistik[[#This Row],[Autor(in)]]<>"",IF(COUNTIF(Tabelle_Auswertung[Autor(in)],Tabelle_Statistik[[#This Row],[Autor(in)]])>0,"ja","nein"),"") -> nein | E16: =IF(Tabelle_Statistik[[#This Row],[Platz]]=1,Tabelle_Statistik[[#This Row],[Autor(in)]],"") ->  | F16: =IF(Tabelle_Statistik[[#This Row],[Platz]]=2,Tabelle_Statistik[[#This Row],[Autor(in)]],"") ->  | G16: =IF(Tabelle_Statistik[[#This Row],[Platz]]=3,Tabelle_Statistik[[#This Row],[Autor(in)]],"") ->  | H16: =IF(Tabelle_Statistik[[#This Row],[Platz]]<11,Tabelle_Statistik[[#This Row],[Autor(in)]],"") -> 
A17: =IF(AND(Fotografen!$A6<>"",Fotografen!$A6<>" - - -"),Fotografen!$A6,"") -> Bernd Kober | B17: =IF(Tabelle_Statistik[[#This Row],[Teilnahme]]="ja",SUMIF(Tabelle_Auswertung[Autor(in)],Tabelle_Statistik[[#This Row],[Autor(in)]],Tabelle_Auswertung[Punkte]),IF(Tabelle_Statistik[[#This Row],[Autor(in)]]<>""," - ","")) -> - | C17: =IF(Tabelle_Statistik[[#This Row],[Teilnahme]]="ja",RANK(Tabelle_Statistik[[#This Row],[Punkte]],[Punkte],0),IF(Tabelle_Statistik[[#This Row],[Autor(in)]]<>""," - ","")) -> - | D17: =IF(Tabelle_Statistik[[#This Row],[Autor(in)]]<>"",IF(COUNTIF(Tabelle_Auswertung[Autor(in)],Tabelle_Statistik[[#This Row],[Autor(in)]])>0,"ja","nein"),"") -> nein | E17: =IF(Tabelle_Statistik[[#This Row],[Platz]]=1,Tabelle_Statistik[[#This Row],[Autor(in)]],"") ->  | F17: =IF(Tabelle_Statistik[[#This Row],[Platz]]=2,Tabelle_Statistik[[#This Row],[Autor(in)]],"") ->  | G17: =IF(Tabelle_Statistik[[#This Row],[Platz]]=3,Tabelle_Statistik[[#This Row],[Autor(in)]],"") ->  | H17: =IF(Tabelle_Statistik[[#This Row],[Platz]]<11,Tabelle_Statistik[[#This Row],[Autor(in)]],"") -> 
A18: =IF(AND(Fotografen!$A7<>"",Fotografen!$A7<>" - - -"),Fotografen!$A7,"") -> Bernd Marek | B18: =IF(Tabelle_Statistik[[#This Row],[Teilnahme]]="ja",SUMIF(Tabelle_Auswertung[Autor(in)],Tabelle_Statistik[[#This Row],[Autor(in)]],Tabelle_Auswertung[Punkte]),IF(Tabelle_Statistik[[#This Row],[Autor(in)]]<>""," - ","")) -> - | C18: =IF(Tabelle_Statistik[[#This Row],[Teilnahme]]="ja",RANK(Tabelle_Statistik[[#This Row],[Punkte]],[Punkte],0),IF(Tabelle_Statistik[[#This Row],[Autor(in)]]<>""," - ","")) -> - | D18: =IF(Tabelle_Statistik[[#This Row],[Autor(in)]]<>"",IF(COUNTIF(Tabelle_Auswertung[Autor(in)],Tabelle_Statistik[[#This Row],[Autor(in)]])>0,"ja","nein"),"") -> nein | E18: =IF(Tabelle_Statistik[[#This Row],[Platz]]=1,Tabelle_Statistik[[#This Row],[Autor(in)]],"") ->  | F18: =IF(Tabelle_Statistik[[#This Row],[Platz]]=2,Tabelle_Statistik[[#This Row],[Autor(in)]],"") ->  | G18: =IF(Tabelle_Statistik[[#This Row],[Platz]]=3,Tabelle_Statistik[[#This Row],[Autor(in)]],"") ->  | H18: =IF(Tabelle_Statistik[[#This Row],[Platz]]<11,Tabelle_Statistik[[#This Row],[Autor(in)]],"") -> 
A19: =IF(AND(Fotografen!$A9<>"",Fotografen!$A9<>" - - -"),Fotografen!$A9,"") -> Claudia Dommel | B19: =IF(Tabelle_Statistik[[#This Row],[Teilnahme]]="ja",SUMIF(Tabelle_Auswertung[Autor(in)],Tabelle_Statistik[[#This Row],[Autor(in)]],Tabelle_Auswertung[Punkte]),IF(Tabelle_Statistik[[#This Row],[Autor(in)]]<>""," - ","")) -> - | C19: =IF(Tabelle_Statistik[[#This Row],[Teilnahme]]="ja",RANK(Tabelle_Statistik[[#This Row],[Punkte]],[Punkte],0),IF(Tabelle_Statistik[[#This Row],[Autor(in)]]<>""," - ","")) -> - | D19: =IF(Tabelle_Statistik[[#This Row],[Autor(in)]]<>"",IF(COUNTIF(Tabelle_Auswertung[Autor(in)],Tabelle_Statistik[[#This Row],[Autor(in)]])>0,"ja","nein"),"") -> nein | E19: =IF(Tabelle_Statistik[[#This Row],[Platz]]=1,Tabelle_Statistik[[#This Row],[Autor(in)]],"") ->  | F19: =IF(Tabelle_Statistik[[#This Row],[Platz]]=2,Tabelle_Statistik[[#This Row],[Autor(in)]],"") ->  | G19: =IF(Tabelle_Statistik[[#This Row],[Platz]]=3,Tabelle_Statistik[[#This Row],[Autor(in)]],"") ->  | H19: =IF(Tabelle_Statistik[[#This Row],[Platz]]<11,Tabelle_Statistik[[#This Row],[Autor(in)]],"") -> 
A20: =IF(AND(Fotografen!$A10<>"",Fotografen!$A10<>" - - -"),Fotografen!$A10,"") -> Georg Held | B20: =IF(Tabelle_Statistik[[#This Row],[Teilnahme]]="ja",SUMIF(Tabelle_Auswertung[Autor(in)],Tabelle_Statistik[[#This Row],[Autor(in)]],Tabelle_Auswertung[Punkte]),IF(Tabelle_Statistik[[#This Row],[Autor(in)]]<>""," - ","")) -> - | C20: =IF(Tabelle_Statistik[[#This Row],[Teilnahme]]="ja",RANK(Tabelle_Statistik[[#This Row],[Punkte]],[Punkte],0),IF(Tabelle_Statistik[[#This Row],[Autor(in)]]<>""," - ","")) -> - | D20: =IF(Tabelle_Statistik[[#This Row],[Autor(in)]]<>"",IF(COUNTIF(Tabelle_Auswertung[Autor(in)],Tabelle_Statistik[[#This Row],[Autor(in)]])>0,"ja","nein"),"") -> nein | E20: =IF(Tabelle_Statistik[[#This Row],[Platz]]=1,Tabelle_Statistik[[#This Row],[Autor(in)]],"") ->  | F20: =IF(Tabelle_Statistik[[#This Row],[Platz]]=2,Tabelle_Statistik[[#This Row],[Autor(in)]],"") ->  | G20: =IF(Tabelle_Statistik[[#This Row],[Platz]]=3,Tabelle_Statistik[[#This Row],[Autor(in)]],"") ->  | H20: =IF(Tabelle_Statistik[[#This Row],[Platz]]<11,Tabelle_Statistik[[#This Row],[Autor(in)]],"") -> 
A21: =IF(AND(Fotografen!$A11<>"",Fotografen!$A11<>" - - -"),Fotografen!$A11,"") -> Georg Lindörfer | B21: =IF(Tabelle_Statistik[[#This Row],[Teilnahme]]="ja",SUMIF(Tabelle_Auswertung[Autor(in)],Tabelle_Statistik[[#This Row],[Autor(in)]],Tabelle_Auswertung[Punkte]),IF(Tabelle_Statistik[[#This Row],[Autor(in)]]<>""," - ","")) -> - | C21: =IF(Tabelle_Statistik[[#This Row],[Teilnahme]]="ja",RANK(Tabelle_Statistik[[#This Row],[Punkte]],[Punkte],0),IF(Tabelle_Statistik[[#This Row],[Autor(in)]]<>""," - ","")) -> - | D21: =IF(Tabelle_Statistik[[#This Row],[Autor(in)]]<>"",IF(COUNTIF(Tabelle_Auswertung[Autor(in)],Tabelle_Statistik[[#This Row],[Autor(in)]])>0,"ja","nein"),"") -> nein | E21: =IF(Tabelle_Statistik[[#This Row],[Platz]]=1,Tabelle_Statistik[[#This Row],[Autor(in)]],"") ->  | F21: =IF(Tabelle_Statistik[[#This Row],[Platz]]=2,Tabelle_Statistik[[#This Row],[Autor(in)]],"") ->  | G21: =IF(Tabelle_Statistik[[#This Row],[Platz]]=3,Tabelle_Statistik[[#This Row],[Autor(in)]],"") ->  | H21: =IF(Tabelle_Statistik[[#This Row],[Platz]]<11,Tabelle_Statistik[[#This Row],[Autor(in)]],"") -> 
A22: =IF(AND(Fotografen!$A14<>"",Fotografen!$A14<>" - - -"),Fotografen!$A14,"") -> Günter Buckl | B22: =IF(Tabelle_Statistik[[#This Row],[Teilnahme]]="ja",SUMIF(Tabelle_Auswertung[Autor(in)],Tabelle_Statistik[[#This Row],[Autor(in)]],Tabelle_Auswertung[Punkte]),IF(Tabelle_Statistik[[#This Row],[Autor(in)]]<>""," - ","")) -> - | C22: =IF(Tabelle_Statistik[[#This Row],[Teilnahme]]="ja",RANK(Tabelle_Statistik[[#This Row],[Punkte]],[Punkte],0),IF(Tabelle_Statistik[[#This Row],[Autor(in)]]<>""," - ","")) -> - | D22: =IF(Tabelle_Statistik[[#This Row],[Autor(in)]]<>"",IF(COUNTIF(Tabelle_Auswertung[Autor(in)],Tabelle_Statistik[[#This Row],[Autor(in)]])>0,"ja","nein"),"") -> nein | E22: =IF(Tabelle_Statistik[[#This Row],[Platz]]=1,Tabelle_Statistik[[#This Row],[Autor(in)]],"") ->  | F22: =IF(Tabelle_Statistik[[#This Row],[Platz]]=2,Tabelle_Statistik[[#This Row],[Autor(in)]],"") ->  | G22: =IF(Tabelle_Statistik[[#This Row],[Platz]]=3,Tabelle_Statistik[[#This Row],[Autor(in)]],"") ->  | H22: =IF(Tabelle_Statistik[[#This Row],[Platz]]<11,Tabelle_Statistik[[#This Row],[Autor(in)]],"") -> 
A23: =IF(AND(Fotografen!$A15<>"",Fotografen!$A15<>" - - -"),Fotografen!$A15,"") -> Günter Wieser | B23: =IF(Tabelle_Statistik[[#This Row],[Teilnahme]]="ja",SUMIF(Tabelle_Auswertung[Autor(in)],Tabelle_Statistik[[#This Row],[Autor(in)]],Tabelle_Auswertung[Punkte]),IF(Tabelle_Statistik[[#This Row],[Autor(in)]]<>""," - ","")) -> - | C23: =IF(Tabelle_Statistik[[#This Row],[Teilnahme]]="ja",RANK(Tabelle_Statistik[[#This Row],[Punkte]],[Punkte],0),IF(Tabelle_Statistik[[#This Row],[Autor(in)]]<>""," - ","")) -> - | D23: =IF(Tabelle_Statistik[[#This Row],[Autor(in)]]<>"",IF(COUNTIF(Tabelle_Auswertung[Autor(in)],Tabelle_Statistik[[#This Row],[Autor(in)]])>0,"ja","nein"),"") -> nein | E23: =IF(Tabelle_Statistik[[#This Row],[Platz]]=1,Tabelle_Statistik[[#This Row],[Autor(in)]],"") ->  | F23: =IF(Tabelle_Statistik[[#This Row],[Platz]]=2,Tabelle_Statistik[[#This Row],[Autor(in)]],"") ->  | G23: =IF(Tabelle_Statistik[[#This Row],[Platz]]=3,Tabelle_Statistik[[#This Row],[Autor(in)]],"") ->  | H23: =IF(Tabelle_Statistik[[#This Row],[Platz]]<11,Tabelle_Statistik[[#This Row],[Autor(in)]],"") -> 
A24: =IF(AND(Fotografen!$A16<>"",Fotografen!$A16<>" - - -"),Fotografen!$A16,"") -> Günther Arold | B24: =IF(Tabelle_Statistik[[#This Row],[Teilnahme]]="ja",SUMIF(Tabelle_Auswertung[Autor(in)],Tabelle_Statistik[[#This Row],[Autor(in)]],Tabelle_Auswertung[Punkte]),IF(Tabelle_Statistik[[#This Row],[Autor(in)]]<>""," - ","")) -> - | C24: =IF(Tabelle_Statistik[[#This Row],[Teilnahme]]="ja",RANK(Tabelle_Statistik[[#This Row],[Punkte]],[Punkte],0),IF(Tabelle_Statistik[[#This Row],[Autor(in)]]<>""," - ","")) -> - | D24: =IF(Tabelle_Statistik[[#This Row],[Autor(in)]]<>"",IF(COUNTIF(Tabelle_Auswertung[Autor(in)],Tabelle_Statistik[[#This Row],[Autor(in)]])>0,"ja","nein"),"") -> nein | E24: =IF(Tabelle_Statistik[[#This Row],[Platz]]=1,Tabelle_Statistik[[#This Row],[Autor(in)]],"") ->  | F24: =IF(Tabelle_Statistik[[#This Row],[Platz]]=2,Tabelle_Statistik[[#This Row],[Autor(in)]],"") ->  | G24: =IF(Tabelle_Statistik[[#This Row],[Platz]]=3,Tabelle_Statistik[[#This Row],[Autor(in)]],"") ->  | H24: =IF(Tabelle_Statistik[[#This Row],[Platz]]<11,Tabelle_Statistik[[#This Row],[Autor(in)]],"") -> 
A25: =IF(AND(Fotografen!$A18<>"",Fotografen!$A18<>" - - -"),Fotografen!$A18,"") -> Jürgen Abt | B25: =IF(Tabelle_Statistik[[#This Row],[Teilnahme]]="ja",SUMIF(Tabelle_Auswertung[Autor(in)],Tabelle_Statistik[[#This Row],[Autor(in)]],Tabelle_Auswertung[Punkte]),IF(Tabelle_Statistik[[#This Row],[Autor(in)]]<>""," - ","")) -> - | C25: =IF(Tabelle_Statistik[[#This Row],[Teilnahme]]="ja",RANK(Tabelle_Statistik[[#This Row],[Punkte]],[Punkte],0),IF(Tabelle_Statistik[[#This Row],[Autor(in)]]<>""," - ","")) -> - | D25: =IF(Tabelle_Statistik[[#This Row],[Autor(in)]]<>"",IF(COUNTIF(Tabelle_Auswertung[Autor(in)],Tabelle_Statistik[[#This Row],[Autor(in)]])>0,"ja","nein"),"") -> nein | E25: =IF(Tabelle_Statistik[[#This Row],[Platz]]=1,Tabelle_Statistik[[#This Row],[Autor(in)]],"") ->  | F25: =IF(Tabelle_Statistik[[#This Row],[Platz]]=2,Tabelle_Statistik[[#This Row],[Autor(in)]],"") ->  | G25: =IF(Tabelle_Statistik[[#This Row],[Platz]]=3,Tabelle_Statistik[[#This Row],[Autor(in)]],"") ->  | H25: =IF(Tabelle_Statistik[[#This Row],[Platz]]<11,Tabelle_Statistik[[#This Row],[Autor(in)]],"") -> 
A26: =IF(AND(Fotografen!$A19<>"",Fotografen!$A19<>" - - -"),Fotografen!$A19,"") -> Klaus Leitloff | B26: =IF(Tabelle_Statistik[[#This Row],[Teilnahme]]="ja",SUMIF(Tabelle_Auswertung[Autor(in)],Tabelle_Statistik[[#This Row],[Autor(in)]],Tabelle_Auswertung[Punkte]),IF(Tabelle_Statistik[[#This Row],[Autor(in)]]<>""," - ","")) -> - | C26: =IF(Tabelle_Statistik[[#This Row],[Teilnahme]]="ja",RANK(Tabelle_Statistik[[#This Row],[Punkte]],[Punkte],0),IF(Tabelle_Statistik[[#This Row],[Autor(in)]]<>""," - ","")) -> - | D26: =IF(Tabelle_Statistik[[#This Row],[Autor(in)]]<>"",IF(COUNTIF(Tabelle_Auswertung[Autor(in)],Tabelle_Statistik[[#This Row],[Autor(in)]])>0,"ja","nein"),"") -> nein | E26: =IF(Tabelle_Statistik[[#This Row],[Platz]]=1,Tabelle_Statistik[[#This Row],[Autor(in)]],"") ->  | F26: =IF(Tabelle_Statistik[[#This Row],[Platz]]=2,Tabelle_Statistik[[#This Row],[Autor(in)]],"") ->  | G26: =IF(Tabelle_Statistik[[#This Row],[Platz]]=3,Tabelle_Statistik[[#This Row],[Autor(in)]],"") ->  | H26: =IF(Tabelle_Statistik[[#This Row],[Platz]]<11,Tabelle_Statistik[[#This Row],[Autor(in)]],"") -> 
A27: =IF(AND(Fotografen!$A20<>"",Fotografen!$A20<>" - - -"),Fotografen!$A20,"") -> Klaus Lindörfer | B27: =IF(Tabelle_Statistik[[#This Row],[Teilnahme]]="ja",SUMIF(Tabelle_Auswertung[Autor(in)],Tabelle_Statistik[[#This Row],[Autor(in)]],Tabelle_Auswertung[Punkte]),IF(Tabelle_Statistik[[#This Row],[Autor(in)]]<>""," - ","")) -> - | C27: =IF(Tabelle_Statistik[[#This Row],[Teilnahme]]="ja",RANK(Tabelle_Statistik[[#This Row],[Punkte]],[Punkte],0),IF(Tabelle_Statistik[[#This Row],[Autor(in)]]<>""," - ","")) -> - | D27: =IF(Tabelle_Statistik[[#This Row],[Autor(in)]]<>"",IF(COUNTIF(Tabelle_Auswertung[Autor(in)],Tabelle_Statistik[[#This Row],[Autor(in)]])>0,"ja","nein"),"") -> nein | E27: =IF(Tabelle_Statistik[[#This Row],[Platz]]=1,Tabelle_Statistik[[#This Row],[Autor(in)]],"") ->  | F27: =IF(Tabelle_Statistik[[#This Row],[Platz]]=2,Tabelle_Statistik[[#This Row],[Autor(in)]],"") ->  | G27: =IF(Tabelle_Statistik[[#This Row],[Platz]]=3,Tabelle_Statistik[[#This Row],[Autor(in)]],"") ->  | H27: =IF(Tabelle_Statistik[[#This Row],[Platz]]<11,Tabelle_Statistik[[#This Row],[Autor(in)]],"") -> 
A28: =IF(AND(Fotografen!$A21<>"",Fotografen!$A21<>" - - -"),Fotografen!$A21,"") -> Lisa Schmidt | B28: =IF(Tabelle_Statistik[[#This Row],[Teilnahme]]="ja",SUMIF(Tabelle_Auswertung[Autor(in)],Tabelle_Statistik[[#This Row],[Autor(in)]],Tabelle_Auswertung[Punkte]),IF(Tabelle_Statistik[[#This Row],[Autor(in)]]<>""," - ","")) -> - | C28: =IF(Tabelle_Statistik[[#This Row],[Teilnahme]]="ja",RANK(Tabelle_Statistik[[#This Row],[Punkte]],[Punkte],0),IF(Tabelle_Statistik[[#This Row],[Autor(in)]]<>""," - ","")) -> - | D28: =IF(Tabelle_Statistik[[#This Row],[Autor(in)]]<>"",IF(COUNTIF(Tabelle_Auswertung[Autor(in)],Tabelle_Statistik[[#This Row],[Autor(in)]])>0,"ja","nein"),"") -> nein | E28: =IF(Tabelle_Statistik[[#This Row],[Platz]]=1,Tabelle_Statistik[[#This Row],[Autor(in)]],"") ->  | F28: =IF(Tabelle_Statistik[[#This Row],[Platz]]=2,Tabelle_Statistik[[#This Row],[Autor(in)]],"") ->  | G28: =IF(Tabelle_Statistik[[#This Row],[Platz]]=3,Tabelle_Statistik[[#This Row],[Autor(in)]],"") ->  | H28: =IF(Tabelle_Statistik[[#This Row],[Platz]]<11,Tabelle_Statistik[[#This Row],[Autor(in)]],"") -> 
A29: =IF(AND(Fotografen!$A22<>"",Fotografen!$A22<>" - - -"),Fotografen!$A22,"") -> Manfred Schwab | B29: =IF(Tabelle_Statistik[[#This Row],[Teilnahme]]="ja",SUMIF(Tabelle_Auswertung[Autor(in)],Tabelle_Statistik[[#This Row],[Autor(in)]],Tabelle_Auswertung[Punkte]),IF(Tabelle_Statistik[[#This Row],[Autor(in)]]<>""," - ","")) -> - | C29: =IF(Tabelle_Statistik[[#This Row],[Teilnahme]]="ja",RANK(Tabelle_Statistik[[#This Row],[Punkte]],[Punkte],0),IF(Tabelle_Statistik[[#This Row],[Autor(in)]]<>""," - ","")) -> - | D29: =IF(Tabelle_Statistik[[#This Row],[Autor(in)]]<>"",IF(COUNTIF(Tabelle_Auswertung[Autor(in)],Tabelle_Statistik[[#This Row],[Autor(in)]])>0,"ja","nein"),"") -> nein | E29: =IF(Tabelle_Statistik[[#This Row],[Platz]]=1,Tabelle_Statistik[[#This Row],[Autor(in)]],"") ->  | F29: =IF(Tabelle_Statistik[[#This Row],[Platz]]=2,Tabelle_Statistik[[#This Row],[Autor(in)]],"") ->  | G29: =IF(Tabelle_Statistik[[#This Row],[Platz]]=3,Tabelle_Statistik[[#This Row],[Autor(in)]],"") ->  | H29: =IF(Tabelle_Statistik[[#This Row],[Platz]]<11,Tabelle_Statistik[[#This Row],[Autor(in)]],"") -> 
A30: =IF(AND(Fotografen!$A23<>"",Fotografen!$A23<>" - - -"),Fotografen!$A23,"") -> Manfred Wenz | B30: =IF(Tabelle_Statistik[[#This Row],[Teilnahme]]="ja",SUMIF(Tabelle_Auswertung[Autor(in)],Tabelle_Statistik[[#This Row],[Autor(in)]],Tabelle_Auswertung[Punkte]),IF(Tabelle_Statistik[[#This Row],[Autor(in)]]<>""," - ","")) -> - | C30: =IF(Tabelle_Statistik[[#This Row],[Teilnahme]]="ja",RANK(Tabelle_Statistik[[#This Row],[Punkte]],[Punkte],0),IF(Tabelle_Statistik[[#This Row],[Autor(in)]]<>""," - ","")) -> - | D30: =IF(Tabelle_Statistik[[#This Row],[Autor(in)]]<>"",IF(COUNTIF(Tabelle_Auswertung[Autor(in)],Tabelle_Statistik[[#This Row],[Autor(in)]])>0,"ja","nein"),"") -> nein | E30: =IF(Tabelle_Statistik[[#This Row],[Platz]]=1,Tabelle_Statistik[[#This Row],[Autor(in)]],"") ->  | F30: =IF(Tabelle_Statistik[[#This Row],[Platz]]=2,Tabelle_Statistik[[#This Row],[Autor(in)]],"") ->  | G30: =IF(Tabelle_Statistik[[#This Row],[Platz]]=3,Tabelle_Statistik[[#This Row],[Autor(in)]],"") ->  | H30: =IF(Tabelle_Statistik[[#This Row],[Platz]]<11,Tabelle_Statistik[[#This Row],[Autor(in)]],"") -> 
A31: =IF(AND(Fotografen!$A24<>"",Fotografen!$A24<>" - - -"),Fotografen!$A24,"") -> Margit Schmidt | B31: =IF(Tabelle_Statistik[[#This Row],[Teilnahme]]="ja",SUMIF(Tabelle_Auswertung[Autor(in)],Tabelle_Statistik[[#This Row],[Autor(in)]],Tabelle_Auswertung[Punkte]),IF(Tabelle_Statistik[[#This Row],[Autor(in)]]<>""," - ","")) -> - | C31: =IF(Tabelle_Statistik[[#This Row],[Teilnahme]]="ja",RANK(Tabelle_Statistik[[#This Row],[Punkte]],[Punkte],0),IF(Tabelle_Statistik[[#This Row],[Autor(in)]]<>""," - ","")) -> - | D31: =IF(Tabelle_Statistik[[#This Row],[Autor(in)]]<>"",IF(COUNTIF(Tabelle_Auswertung[Autor(in)],Tabelle_Statistik[[#This Row],[Autor(in)]])>0,"ja","nein"),"") -> nein | E31: =IF(Tabelle_Statistik[[#This Row],[Platz]]=1,Tabelle_Statistik[[#This Row],[Autor(in)]],"") ->  | F31: =IF(Tabelle_Statistik[[#This Row],[Platz]]=2,Tabelle_Statistik[[#This Row],[Autor(in)]],"") ->  | G31: =IF(Tabelle_Statistik[[#This Row],[Platz]]=3,Tabelle_Statistik[[#This Row],[Autor(in)]],"") ->  | H31: =IF(Tabelle_Statistik[[#This Row],[Platz]]<11,Tabelle_Statistik[[#This Row],[Autor(in)]],"") -> 
A32: =IF(AND(Fotografen!$A27<>"",Fotografen!$A27<>" - - -"),Fotografen!$A27,"") -> Patricia Spyra | B32: =IF(Tabelle_Statistik[[#This Row],[Teilnahme]]="ja",SUMIF(Tabelle_Auswertung[Autor(in)],Tabelle_Statistik[[#This Row],[Autor(in)]],Tabelle_Auswertung[Punkte]),IF(Tabelle_Statistik[[#This Row],[Autor(in)]]<>""," - ","")) -> - | C32: =IF(Tabelle_Statistik[[#This Row],[Teilnahme]]="ja",RANK(Tabelle_Statistik[[#This Row],[Punkte]],[Punkte],0),IF(Tabelle_Statistik[[#This Row],[Autor(in)]]<>""," - ","")) -> - | D32: =IF(Tabelle_Statistik[[#This Row],[Autor(in)]]<>"",IF(COUNTIF(Tabelle_Auswertung[Autor(in)],Tabelle_Statistik[[#This Row],[Autor(in)]])>0,"ja","nein"),"") -> nein | E32: =IF(Tabelle_Statistik[[#This Row],[Platz]]=1,Tabelle_Statistik[[#This Row],[Autor(in)]],"") ->  | F32: =IF(Tabelle_Statistik[[#This Row],[Platz]]=2,Tabelle_Statistik[[#This Row],[Autor(in)]],"") ->  | G32: =IF(Tabelle_Statistik[[#This Row],[Platz]]=3,Tabelle_Statistik[[#This Row],[Autor(in)]],"") ->  | H32: =IF(Tabelle_Statistik[[#This Row],[Platz]]<11,Tabelle_Statistik[[#This Row],[Autor(in)]],"") -> 
A33: =IF(AND(Fotografen!$A28<>"",Fotografen!$A28<>" - - -"),Fotografen!$A28,"") -> Peter Höhn | B33: =IF(Tabelle_Statistik[[#This Row],[Teilnahme]]="ja",SUMIF(Tabelle_Auswertung[Autor(in)],Tabelle_Statistik[[#This Row],[Autor(in)]],Tabelle_Auswertung[Punkte]),IF(Tabelle_Statistik[[#This Row],[Autor(in)]]<>""," - ","")) -> - | C33: =IF(Tabelle_Statistik[[#This Row],[Teilnahme]]="ja",RANK(Tabelle_Statistik[[#This Row],[Punkte]],[Punkte],0),IF(Tabelle_Statistik[[#This Row],[Autor(in)]]<>""," - ","")) -> - | D33: =IF(Tabelle_Statistik[[#This Row],[Autor(in)]]<>"",IF(COUNTIF(Tabelle_Auswertung[Autor(in)],Tabelle_Statistik[[#This Row],[Autor(in)]])>0,"ja","nein"),"") -> nein | E33: =IF(Tabelle_Statistik[[#This Row],[Platz]]=1,Tabelle_Statistik[[#This Row],[Autor(in)]],"") ->  | F33: =IF(Tabelle_Statistik[[#This Row],[Platz]]=2,Tabelle_Statistik[[#This Row],[Autor(in)]],"") ->  | G33: =IF(Tabelle_Statistik[[#This Row],[Platz]]=3,Tabelle_Statistik[[#This Row],[Autor(in)]],"") ->  | H33: =IF(Tabelle_Statistik[[#This Row],[Platz]]<11,Tabelle_Statistik[[#This Row],[Autor(in)]],"") -> 
A34: =IF(AND(Fotografen!$A30<>"",Fotografen!$A30<>" - - -"),Fotografen!$A30,"") -> Thomas Fuchs | B34: =IF(Tabelle_Statistik[[#This Row],[Teilnahme]]="ja",SUMIF(Tabelle_Auswertung[Autor(in)],Tabelle_Statistik[[#This Row],[Autor(in)]],Tabelle_Auswertung[Punkte]),IF(Tabelle_Statistik[[#This Row],[Autor(in)]]<>""," - ","")) -> - | C34: =IF(Tabelle_Statistik[[#This Row],[Teilnahme]]="ja",RANK(Tabelle_Statistik[[#This Row],[Punkte]],[Punkte],0),IF(Tabelle_Statistik[[#This Row],[Autor(in)]]<>""," - ","")) -> - | D34: =IF(Tabelle_Statistik[[#This Row],[Autor(in)]]<>"",IF(COUNTIF(Tabelle_Auswertung[Autor(in)],Tabelle_Statistik[[#This Row],[Autor(in)]])>0,"ja","nein"),"") -> nein | E34: =IF(Tabelle_Statistik[[#This Row],[Platz]]=1,Tabelle_Statistik[[#This Row],[Autor(in)]],"") ->  | F34: =IF(Tabelle_Statistik[[#This Row],[Platz]]=2,Tabelle_Statistik[[#This Row],[Autor(in)]],"") ->  | G34: =IF(Tabelle_Statistik[[#This Row],[Platz]]=3,Tabelle_Statistik[[#This Row],[Autor(in)]],"") ->  | H34: =IF(Tabelle_Statistik[[#This Row],[Platz]]<11,Tabelle_Statistik[[#This Row],[Autor(in)]],"") -> 
A35: =IF(AND(Fotografen!$A31<>"",Fotografen!$A31<>" - - -"),Fotografen!$A31,"") -> Walter Böse | B35: =IF(Tabelle_Statistik[[#This Row],[Teilnahme]]="ja",SUMIF(Tabelle_Auswertung[Autor(in)],Tabelle_Statistik[[#This Row],[Autor(in)]],Tabelle_Auswertung[Punkte]),IF(Tabelle_Statistik[[#This Row],[Autor(in)]]<>""," - ","")) -> - | C35: =IF(Tabelle_Statistik[[#This Row],[Teilnahme]]="ja",RANK(Tabelle_Statistik[[#This Row],[Punkte]],[Punkte],0),IF(Tabelle_Statistik[[#This Row],[Autor(in)]]<>""," - ","")) -> - | D35: =IF(Tabelle_Statistik[[#This Row],[Autor(in)]]<>"",IF(COUNTIF(Tabelle_Auswertung[Autor(in)],Tabelle_Statistik[[#This Row],[Autor(in)]])>0,"ja","nein"),"") -> nein | E35: =IF(Tabelle_Statistik[[#This Row],[Platz]]=1,Tabelle_Statistik[[#This Row],[Autor(in)]],"") ->  | F35: =IF(Tabelle_Statistik[[#This Row],[Platz]]=2,Tabelle_Statistik[[#This Row],[Autor(in)]],"") ->  | G35: =IF(Tabelle_Statistik[[#This Row],[Platz]]=3,Tabelle_Statistik[[#This Row],[Autor(in)]],"") ->  | H35: =IF(Tabelle_Statistik[[#This Row],[Platz]]<11,Tabelle_Statistik[[#This Row],[Autor(in)]],"") -> 
A36: =IF(AND(Fotografen!$A32<>"",Fotografen!$A32<>" - - -"),Fotografen!$A32,"") -> Wolfgang Brenner | B36: =IF(Tabelle_Statistik[[#This Row],[Teilnahme]]="ja",SUMIF(Tabelle_Auswertung[Autor(in)],Tabelle_Statistik[[#This Row],[Autor(in)]],Tabelle_Auswertung[Punkte]),IF(Tabelle_Statistik[[#This Row],[Autor(in)]]<>""," - ","")) -> - | C36: =IF(Tabelle_Statistik[[#This Row],[Teilnahme]]="ja",RANK(Tabelle_Statistik[[#This Row],[Punkte]],[Punkte],0),IF(Tabelle_Statistik[[#This Row],[Autor(in)]]<>""," - ","")) -> - | D36: =IF(Tabelle_Statistik[[#This Row],[Autor(in)]]<>"",IF(COUNTIF(Tabelle_Auswertung[Autor(in)],Tabelle_Statistik[[#This Row],[Autor(in)]])>0,"ja","nein"),"") -> nein | E36: =IF(Tabelle_Statistik[[#This Row],[Platz]]=1,Tabelle_Statistik[[#This Row],[Autor(in)]],"") ->  | F36: =IF(Tabelle_Statistik[[#This Row],[Platz]]=2,Tabelle_Statistik[[#This Row],[Autor(in)]],"") ->  | G36: =IF(Tabelle_Statistik[[#This Row],[Platz]]=3,Tabelle_Statistik[[#This Row],[Autor(in)]],"") ->  | H36: =IF(Tabelle_Statistik[[#This Row],[Platz]]<11,Tabelle_Statistik[[#This Row],[Autor(in)]],"") -> 

Sheet Top 10 Bilder
A1: TOP 10 Bilder
A5: Platz | B5: Bild(er)
A6: 1 | B6: =VERKETTEN_P1(Tabelle_Auswertung[Platz 1],CHAR(10)) -> Puck, die Fliege.JPG von Susanne Deinhardt
A7: 2 | B7: =VERKETTEN_P1(Tabelle_Auswertung[Platz 2],CHAR(10)) -> Pinseltanz.jpg von Gerhard Rieß Tautropfen.JPG von Susanne Deinhardt
A8: 3 | B8: =VERKETTEN_P1(Tabelle_Auswertung[Platz 3],CHAR(10)) -> 
A9: 4 | B9: =VERKETTEN_P1(Tabelle_Auswertung[Platz 4],CHAR(10)) -> Ready to take off.jpg von Jan Grünler Stairs.jpg von Andreas Toltz
A10: 5 | B10: =VERKETTEN_P1(Tabelle_Auswertung[Platz 5],CHAR(10)) -> 
A11: 6 | B11: =VERKETTEN_P1(Tabelle_Auswertung[Platz 6],CHAR(10)) -> Maja.jpg von Gerhard Rieß Moos.jpg von Chris Finsterer
A12: 7 | B12: =VERKETTEN_P1(Tabelle_Auswertung[Platz 6],CHAR(10)) -> Maja.jpg von Gerhard Rieß Moos.jpg von Chris Finsterer
A13: 8 | B13: =VERKETTEN_P1(Tabelle_Auswertung[Platz 8],CHAR(10)) -> cedok.jpg von Chris Finsterer dicke Raupe.JPG von Susanne Deinhardt heavy metal.jpg von Gerhard Rieß Love1.JPG von Andreas Toltz
A14: 9 | B14: =VERKETTEN_P1(Tabelle_Auswertung[Platz 9],CHAR(10)) -> 
A15: 10 | B15: =VERKETTEN_P1(Tabelle_Auswertung[Platz 10],CHAR(10)) -> 

Sheet Fotografen
A1: Autoren
A2: - - -
A3: Albrecht Flierl
A4: Alexander Häberlein
A5: Andreas Toltz
A6: Bernd Kober
A7: Bernd Marek
A8: Chris Finsterer
A9: Claudia Dommel
A10: Georg Held
A11: Georg Lindörfer
A12: Gerhard Rieß
A13: Gert Häberlein
A14: Günter Buckl
A15: Günter Wieser
A16: Günther Arold
A17: Jan Grünler
A18: Jürgen Abt
A19: Klaus Leitloff
A20: Klaus Lindörfer
A21: Lisa Schmidt
A22: Manfred Schwab
A23: Manfred Wenz
A24: Margit Schmidt
A25: Nadja Cassim
A26: Oliver von Guérard
A27: Patricia Spyra
A28: Peter Höhn
A29: Susanne Deinhardt
A30: Thomas Fuchs
A31: Walter Böse
A32: Wolfgang Brenner
A33: Gast 1
A34: Gast 2
A35: Gast 3
A36: Gast 4
A37: Gast 5
A38: Gast 6
A39: Gast 7

Sheet online
A1: Sortierung | B1: Titel | C1: Punkte | D1: Schnitt | E1: Platz | F1: Fotograf/in | G1: Tags | I1: Fotograf/in | J1: Gesamtpunkte | K1: Platz
